Workbook

Sheet 1. Information Sheet
U1: a | AA1: =IF(OR(F16="", F16="(if applicable)"), F14, F14 & " - " & F16) -> PowerStream Inc. - York Region
M12: Version | N12: 1
E14: Utility Name | F14: PowerStream Inc.
E16: Service Territory | F16: York Region
E18: Assigned EB Number | F18: EB-2004-0420
E20: Name of Contact and Title | F20: Tom Barrett, Manager, Rates Applications
E22: Phone Number | F22: 905-532-4640
E24: Email Address | F24: tom.barrett@powerstream.ca
E26: We are applying for rates effective | F26: 2015-01-01
E28: Rate-Setting Method | F28: Price Cap IR
A30: Please indicate in which Rate Year the Group 1 accounts were last cleared1 | F30: 2014
A32: Please indicate the last Cost of Service Re-Basing Year | F32: 2013
B35: Notes
C37: Pale green cells represent input cells.
C39: Pale blue cells represent drop-down lists. The applicant should select the appropriate item from the drop-down list.
C41: White cells contain fixed values, automatically generated values or formulae.
A44: Note: 1. Rate year of application

Sheet 2. Table of Contents
D13: 1. Information Sheet | I13: 15. RTSR - UTRs & Sub-Tx
D14: 2. Table of Contents | I14: 16. RTSR - Historical Wholesale
D15: 3. Rate Class Selection | I15: 17. RTSR - Current Wholesale
D16: 4. Current Tariff Schedule | I16: 18. RTSR - Forecast Wholesale
D17: 5. 2014 Continuity Schedule | I17: 19. RTSR Ntwrk to Curren WS
D18: 6. Billing Det. for Def-Var | I18: 20. RTSR Adj Conn to Current WS
D19: 7. Allocating Def-Var Balances | I19: 21. RTSR Adj Ntwk to Forcast WS
D20: 8. Calculation of Def-Var RR | I20: 22. RTSR Adj Conn. to Forcst WS
D21: 9. STS - Billing Det & Rates | I21: 23. RTSR Final 2015 RTS Rates
D22: 10. STS - Rebased Rev | I22: 24. Rev2Cost_GDPIPI
D23: 11. STS - Tax Change | I23: 25. Other Charges & LF
D24: 12. STS - Tax Change Rate Rider | I24: 26. Proposed Rates
D25: 13. RTSR Rate Sheet | I25: 27. Final Tariff Schedule
D26: 14. RTSR RRR Data | I26: 28. Bill Impacts

Sheet 3. Rate Class Selection
A12: Select the appropriate rate classes as they appear on your most recent Board-Approved Tariff of Rates and Charges, including the MicroFit Class.
A14: How many classes are on your most recent Board-Approved Tariff of Rates and Charges? | J14: 9
A16: Select Your Rate Classes from the Blue Cells below. Please ensure that a rate class is assigned to each shaded cell.
B18: Rate Class Classification | Q18: # of duplicates
A19: 1 | B19: RESIDENTIAL | P19: =COUNTIF($B$19:$J$40, B19) -> 1 | Q19: =COUNTIF(P19:P40, 2)/2 -> 0
A20: 2 | B20: GENERAL SERVICE LESS THAN 50 KW | P20: =COUNTIF($B$19:$J$40, B20) -> 1
A21: 3 | B21: GENERAL SERVICE 500 TO 4,999 KW | P21: 1
A22: 4 | B22: LARGE USE | P22: 1
A23: 5 | B23: STANDBY POWER | P23: 1
A24: 6 | B24: UNMETERED SCATTERED LOAD | P24: 1
A25: 7 | B25: SENTINEL LIGHTING | P25: 1
A26: 8 | B26: STREET LIGHTING | P26: 1
A27: 9 | B27: microFIT | P27: 1
P28: 0
P29: 0
P30: 0
P31: 0
P32: 0
P33: 0

Sheet 4. Current Tariff Schedule
Z1: 3 | AA1: January | AB1: ≥
AA2: February
AA3: March
AA4: April
AA5: May
AA6: June
AA7: July
AA8: August
AA9: September
AA10: October
AA11: November
B12: For each class, Applicants are required to copy and paste the class descriptions (located directly under the class name) and the description of the applicability of those rates (description is found under the class name and directly under the word "APPLICATION"). By using the drop-down lists located under the column labeled "Rate Description", please select the descriptions of the rates and charges that BEST MATCHES the descriptions on your most recent Board-Approved Tariff of Rates and Charges. If the description is not found in the drop-down list, please enter the description in the green cells under the correct class exactly as it appears on the tariff. Please do not enter more than one "Service Charge" for each class for which a base monthly fixed charge applies. | AA12: December
B21: =IF(ISBLANK('1. Information Sheet'!F14), "Please Choose Distributor Name on Sheet 1", '1. Information Sheet'!F14) -> PowerStream Inc.
B22: TARIFF OF RATES AND CHARGES
A24: RESIDENTIAL | B24: RESIDENTIAL Service Classification
A25: RESIDENTIAL
A26: RESIDENTIAL | B26: This classification refers to an account taking electricity at 750 volts or less where the electricity is used exclusively in a separately metered living accommodation. Customers shall be residing in single-dwelling units that consist of a detached house or one unit of a semi-detached, duplex, triplex or quadruplex house, with a residential zoning. Separately metered dwellings within a town house complex or apartment building also qualify as residential customers. Multi-unit residential establishments such as apartment buildings supplied through one service (bulk metered) shall be classified as general service. Further servicing details are available in the distributor’s Conditions of Service.
A27: RESIDENTIAL
A28: RESIDENTIAL
A29: RESIDENTIAL
A30: RESIDENTIAL
A31: RESIDENTIAL
A32: RESIDENTIAL | B32: APPLICATION
A33: RESIDENTIAL
A34: RESIDENTIAL | B34: The application of these rates and charges shall be in accordance with the Licence of the Distributor and any Code or Order of the Board, and amendments thereto as approved by the Board, which may be applicable to the administration of this schedule.
A35: RESIDENTIAL
A36: RESIDENTIAL
A37: RESIDENTIAL | B37: No rates and charges for the distribution of electricity and charges to meet the costs of any work or service done or furnished for the purpose of the distribution of electricity shall be made except as permitted by this schedule, unless required by the Distributor’s Licence or a Code or Order of the Board, and amendments thereto as approved by the Board, or as specified herein.
A38: RESIDENTIAL
A39: RESIDENTIAL
A40: RESIDENTIAL
A41: RESIDENTIAL | B41: Unless specifically noted, this schedule does not contain any charges for the electricity commodity, be it under the Regulated Price Plan, a contract with a retailer or the wholesale market price, as applicable. In addition, the charges in the MONTHLY RATES AND CHARGES – Regulatory Component of this schedule do not apply to a customer that is an embedded wholesale market participant.
A42: RESIDENTIAL
A43: RESIDENTIAL
A44: RESIDENTIAL | B44: t should be noted that this schedule does not list any charges, assessments or credits that are required by law to be invoiced by a distributor and that are not subject to Board approval, such as the Debt Retirement Charge, the Global Adjustment, the Ontario Clean Energy Benefit and the HST.
A45: RESIDENTIAL
A46: RESIDENTIAL
A47: RESIDENTIAL
A48: RESIDENTIAL | B48: MONTHLY RATES AND CHARGES - Delivery Component (If applicable, Effective Date MUST be included in rate description)
A49: RESIDENTIAL | B49: Service Charge | H49: $ | I49: 12.51 | K49: 1_C_MSC
A50: RESIDENTIAL | B50: Rate Rider for Smart Metering Entity Charge - effective until October 31, 2018 | H50: $ | I50: 0.79 | K50: 1_C_SMEC | L50: 2018-10-31
A51: RESIDENTIAL | B51: Smart Grid Funding Adder (2014) - in effect until December 31, 2014 | H51: $ | I51: 0.15 | K51: 1_C_MSC_Rate_Rider_2 | L51: 2014-12-31
A52: RESIDENTIAL | B52: Rate Rider for Recovery of CGAAP/CWIP Differential - in effect until December 31, 2016 | H52: $ | I52: 0.2 | K52: 1_C_MSC_Rate_Rider_3 | L52: 2016-12-31
A53: RESIDENTIAL | B53: Rate Rider for Recovery of Forgone Revenue - effective until December 31, 2014 | H53: $ | I53: 0.09 | K53: 1_C_MSC_Rate_Rider_4 | L53: 2014-12-31
A54: RESIDENTIAL
A55: RESIDENTIAL | B55: Distribution Volumetric Rate | H55: $/kWh | I55: 0.0138 | K55: 1_C_VC_1
A56: RESIDENTIAL | B56: Low Voltage Service Rate | H56: $/kWh | I56: 0.0003 | K56: 1_C_LVrate
A57: RESIDENTIAL | B57: Rate Rider for Disposition of Global Adjustment Sub-Account (2013) - effective until December 31, 2014 Applicable only for Non-RPP Customers | H57: $/kWh | I57: 0.0018 | K57: 1_C_VC_GA_Rate_Rider_kWh_1 | L57: 2014-12-31
A58: RESIDENTIAL | B58: Rate Rider for Recovery of Stranded Meter Assets - effective until December 31, 2014 | H58: $/kWh | I58: 0.0014 | K58: 1_C_VC_Rate_Rider_kWh_1 | L58: 2014-12-31
A59: RESIDENTIAL | B59: Rate Rider for Disposition of Deferral/Variance Accounts (2013) - effective until December 31, 2014 | H59: $/kWh | I59: -0.0019 | K59: 1_C_VC_DEFVAR_kWh_1 | L59: 2014-12-31
A60: RESIDENTIAL | B60: Retail Transmission Rate - Network Service Rate | H60: $/kWh | I60: 0.0077 | K60: 1_C_RTSR_Network
A61: RESIDENTIAL | B61: Retail Transmission Rate - Line and Transformation Connection Service Rate | H61: $/kWh | I61: 0.0034 | K61: 1_C_RTSR_Connection
A62: RESIDENTIAL
A63: RESIDENTIAL
A64: RESIDENTIAL
A65: RESIDENTIAL
A66: RESIDENTIAL
A67: RESIDENTIAL
A68: RESIDENTIAL
A69: RESIDENTIAL
A70: RESIDENTIAL
A71: RESIDENTIAL
A72: RESIDENTIAL
A73: RESIDENTIAL | B73: Rate Rider for Recovery of Incremental Capital Module Costs (2014) - in effect until the effective date of the next cost of service-based rate order | H73: $ | I73: 0.07 | K73: 1_C_MSC_Rate_Rider_5
A74: RESIDENTIAL | B74: Rate Rider for Disposition of Global Adjustment Sub-Account (2014) - effective until December 31, 2015. Applicable only for Non-RPP Customers. | H74: $/kWh | I74: -0.0002 | K74: 1_C_VC_GA_Rate_Rider_kWh_2 | L74: 2015-12-31
A75: RESIDENTIAL | B75: Rate Rider for Disposition of Deferral/Variance Accounts (2014) - effective until December 31, 2015 | H75: $/kWh | I75: -0.0006 | K75: 1_C_VC_DEFVAR_kWh_2 | L75: 2015-12-31
A76: RESIDENTIAL | B76: Rate Rider for Recovery of Incremental Capital Module Costs (2014) - in effect until the effective date of the next cost of service-based rate order | H76: $/kWh | I76: 0.0001 | K76: 1_C_VC_Rate_Rider_kWh_4
A77: RESIDENTIAL
A78: RESIDENTIAL
A79: RESIDENTIAL | B79: MONTHLY RATES AND CHARGES - Regulatory Component
A80: RESIDENTIAL
A81: RESIDENTIAL | B81: Wholesale Market Service Rate | H81: $/kWh | I81: 0.0044 | K81: 1_C_WMSR
A82: RESIDENTIAL | B82: Rural or Remote Electricity Rate Protection Charge (RRRP) | H82: $/kWh | I82: 0.0013 | K82: 1_C_RRPC
A83: RESIDENTIAL | B83: Standard Supply Service - Administrative Charge (if applicable) | H83: $ | I83: 0.25 | K83: 1_C_SSS
A84: RESIDENTIAL
A87: GENERAL SERVICE LESS THAN 50 KW | B87: GENERAL SERVICE LESS THAN 50 KW Service Classification
A88: GENERAL SERVICE LESS THAN 50 KW
A89: GENERAL SERVICE LESS THAN 50 KW | B89: This classification refers to a non residential account taking electricity at 750 volts or less whose monthly average peak demand is less than, or is forecast to be less than, 50 kW. Further servicing details are available in the distributor’s Conditions of Service.
A90: GENERAL SERVICE LESS THAN 50 KW
A91: GENERAL SERVICE LESS THAN 50 KW
A92: GENERAL SERVICE LESS THAN 50 KW
A93: GENERAL SERVICE LESS THAN 50 KW
A94: GENERAL SERVICE LESS THAN 50 KW
A95: GENERAL SERVICE LESS THAN 50 KW | B95: APPLICATION
A96: GENERAL SERVICE LESS THAN 50 KW
A97: GENERAL SERVICE LESS THAN 50 KW | B97: The application of these rates and charges shall be in accordance with the Licence of the Distributor and any Code or Order of the Board, and amendments thereto as approved by the Board, which may be applicable to the administration of this schedule.
A98: GENERAL SERVICE LESS THAN 50 KW
A99: GENERAL SERVICE LESS THAN 50 KW
A100: GENERAL SERVICE LESS THAN 50 KW | B100: No rates and charges for the distribution of electricity and charges to meet the costs of any work or service done or furnished for the purpose of the distribution of electricity shall be made except as permitted by this schedule, unless required by the Distributor’s Licence or a Code or Order of the Board, and amendments thereto as approved by the Board, or as specified herein.
A101: GENERAL SERVICE LESS THAN 50 KW
A102: GENERAL SERVICE LESS THAN 50 KW
A103: GENERAL SERVICE LESS THAN 50 KW
A104: GENERAL SERVICE LESS THAN 50 KW | B104: Unless specifically noted, this schedule does not contain any charges for the electricity commodity, be it under the Regulated Price Plan, a contract with a retailer or the wholesale market price, as applicable. In addition, the charges in the MONTHLY RATES AND CHARGES – Regulatory Component of this schedule do not apply to a customer that is an embedded wholesale market participant.
A105: GENERAL SERVICE LESS THAN 50 KW
A106: GENERAL SERVICE LESS THAN 50 KW
A107: GENERAL SERVICE LESS THAN 50 KW | B107: It should be noted that this schedule does not list any charges, assessments or credits that are required by law to be invoiced by a distributor and that are not subject to Board approval, such as the Debt Retirement Charge, the Global Adjustment, the Ontario Clean Energy Benefit and the HST.
A108: GENERAL SERVICE LESS THAN 50 KW
A109: GENERAL SERVICE LESS THAN 50 KW
A110: GENERAL SERVICE LESS THAN 50 KW
A111: GENERAL SERVICE LESS THAN 50 KW | B111: MONTHLY RATES AND CHARGES - Delivery Component (If applicable, Effective Date MUST be included in rate description)
A112: GENERAL SERVICE LESS THAN 50 KW | B112: Service Charge | H112: $ | I112: 25.75 | K112: 2_C_MSC
A113: GENERAL SERVICE LESS THAN 50 KW | B113: Rate Rider for Smart Metering Entity Charge - effective until October 31, 2018 | H113: $ | I113: 0.79 | K113: 2_C_SMEC | L113: 2018-10-31
A114: GENERAL SERVICE LESS THAN 50 KW | B114: Smart Grid Funding Adder (2014) - in effect until December 31, 2014 | H114: $ | I114: 0.41 | K114: 2_C_MSC_Rate_Rider_2 | L114: 2014-12-31
A115: GENERAL SERVICE LESS THAN 50 KW | B115: Rate Rider for Recovery of CGAAP/CWIP Differential - in effect until December 31, 2016 | H115: $ | I115: 0.55 | K115: 2_C_MSC_Rate_Rider_3 | L115: 2016-12-31
A116: GENERAL SERVICE LESS THAN 50 KW | B116: Rate Rider for Recovery of Forgone Revenue - effective until December 31, 2014 | H116: $ | I116: 0.27 | K116: 2_C_MSC_Rate_Rider_4 | L116: 2014-12-31
A117: GENERAL SERVICE LESS THAN 50 KW
A118: GENERAL SERVICE LESS THAN 50 KW | B118: Distribution Volumetric Rate | H118: $/kWh | I118: 0.0137 | K118: 2_C_VC_1
A119: GENERAL SERVICE LESS THAN 50 KW | B119: Low Voltage Service Rate | H119: $/kWh | I119: 0.0003 | K119: 2_C_LVrate
A120: GENERAL SERVICE LESS THAN 50 KW | B120: Rate Rider for Disposition of Global Adjustment Sub-Account (2013) - effective until December 31, 2014 Applicable only for Non-RPP Customers | H120: $/kWh | I120: 0.0018 | K120: 2_C_VC_GA_Rate_Rider_kWh_1 | L120: 2014-12-31
A121: GENERAL SERVICE LESS THAN 50 KW | B121: Rate Rider for Recovery of Stranded Meter Assets - effective until December 31, 2014 | H121: $/kWh | I121: 0.0017 | K121: 2_C_VC_Rate_Rider_kWh_1 | L121: 2014-12-31
A122: GENERAL SERVICE LESS THAN 50 KW | B122: Rate Rider for Disposition of Deferral/Variance Accounts (2013) - effective until December 31, 2014 | H122: $/kWh | I122: -0.0018 | K122: 2_C_VC_DEFVAR_kWh_1 | L122: 2014-12-31
A123: GENERAL SERVICE LESS THAN 50 KW | B123: Retail Transmission Rate - Network Service Rate | H123: $/kWh | I123: 0.007 | K123: 2_C_RTSR_Network
A124: GENERAL SERVICE LESS THAN 50 KW | B124: Retail Transmission Rate - Line and Transformation Connection Service Rate | H124: $/kWh | I124: 0.0029 | K124: 2_C_RTSR_Connection
A125: GENERAL SERVICE LESS THAN 50 KW
A126: GENERAL SERVICE LESS THAN 50 KW
A127: GENERAL SERVICE LESS THAN 50 KW
A128: GENERAL SERVICE LESS THAN 50 KW
A129: GENERAL SERVICE LESS THAN 50 KW
A130: GENERAL SERVICE LESS THAN 50 KW
A131: GENERAL SERVICE LESS THAN 50 KW
A132: GENERAL SERVICE LESS THAN 50 KW
A133: GENERAL SERVICE LESS THAN 50 KW
A134: GENERAL SERVICE LESS THAN 50 KW
A135: GENERAL SERVICE LESS THAN 50 KW
A136: GENERAL SERVICE LESS THAN 50 KW | B136: Rate Rider for Recovery of Incremental Capital Module Costs (2014) - in effect until the effective date of the next cost of service-based rate order | H136: $ | I136: 0.14 | K136: 2_C_MSC_Rate_Rider_5
A137: GENERAL SERVICE LESS THAN 50 KW | B137: Rate Rider for Disposition of Global Adjustment Sub-Account (2014) - effective until December 31, 2015. Applicable only for Non-RPP Customers. | H137: $/kWh | I137: -0.0002 | K137: 2_C_VC_GA_Rate_Rider_kWh_2 | L137: 2015-12-31
A138: GENERAL SERVICE LESS THAN 50 KW | B138: Rate Rider for Disposition of Deferral/Variance Accounts (2014) - effective until December 31, 2015 | H138: $/kWh | I138: -0.0006 | K138: 2_C_VC_DEFVAR_kWh_2 | L138: 2015-12-31
A139: GENERAL SERVICE LESS THAN 50 KW | B139: Rate Rider for Recovery of Incremental Capital Module Costs (2014) - in effect until the effective date of the next cost of service-based rate order | H139: $/kWh | I139: 0.0001 | K139: 2_C_VC_Rate_Rider_kWh_4
A140: GENERAL SERVICE LESS THAN 50 KW
A141: GENERAL SERVICE LESS THAN 50 KW
A142: GENERAL SERVICE LESS THAN 50 KW | B142: MONTHLY RATES AND CHARGES - Regulatory Component
A143: GENERAL SERVICE LESS THAN 50 KW
A144: GENERAL SERVICE LESS THAN 50 KW | B144: Wholesale Market Service Rate | H144: $/kWh | I144: 0.0044 | K144: 2_C_WMSR
A145: GENERAL SERVICE LESS THAN 50 KW | B145: Rural or Remote Electricity Rate Protection Charge (RRRP) | H145: $/kWh | I145: 0.0013 | K145: 2_C_RRPC
A146: GENERAL SERVICE LESS THAN 50 KW | B146: Standard Supply Service - Administrative Charge (if applicable) | H146: $ | I146: 0.25 | K146: 2_C_SSS
A147: GENERAL SERVICE LESS THAN 50 KW
A150: GENERAL SERVICE 500 TO 4,999 KW | B150: GENERAL SERVICE 500 TO 4,999 KW Service Classification
A151: GENERAL SERVICE 500 TO 4,999 KW
A152: GENERAL SERVICE 500 TO 4,999 KW | B152: his classification refers to a non residential account whose monthly average peak demand is equal to or greater than, or is forecast to be equal to or greater than, 50 kW but less than 5,000 kW, both regular and interval metered. Further servicing details are available in the distributor’s Conditions of Service.
A153: GENERAL SERVICE 500 TO 4,999 KW
A154: GENERAL SERVICE 500 TO 4,999 KW
A155: GENERAL SERVICE 500 TO 4,999 KW
A156: GENERAL SERVICE 500 TO 4,999 KW
A157: GENERAL SERVICE 500 TO 4,999 KW
A158: GENERAL SERVICE 500 TO 4,999 KW | B158: APPLICATION
A159: GENERAL SERVICE 500 TO 4,999 KW
A160: GENERAL SERVICE 500 TO 4,999 KW | B160: The application of these rates and charges shall be in accordance with the Licence of the Distributor and any Code or Order of the Board, and amendments thereto as approved by the Board, which may be applicable to the administration of this schedule.
A161: GENERAL SERVICE 500 TO 4,999 KW
A162: GENERAL SERVICE 500 TO 4,999 KW
A163: GENERAL SERVICE 500 TO 4,999 KW | B163: No rates and charges for the distribution of electricity and charges to meet the costs of any work or service done or furnished for the purpose of the distribution of electricity shall be made except as permitted by this schedule, unless required by the Distributor’s Licence or a Code or Order of the Board, and amendments thereto as approved by the Board, or as specified herein.
A164: GENERAL SERVICE 500 TO 4,999 KW
A165: GENERAL SERVICE 500 TO 4,999 KW
A166: GENERAL SERVICE 500 TO 4,999 KW
A167: GENERAL SERVICE 500 TO 4,999 KW | B167: Unless specifically noted, this schedule does not contain any charges for the electricity commodity, be it under the Regulated Price Plan, a contract with a retailer or the wholesale market price, as applicable. In addition, the charges in the MONTHLY RATES AND CHARGES – Regulatory Component of this schedule do not apply to a customer that is an embedded wholesale market participant.
A168: GENERAL SERVICE 500 TO 4,999 KW
A169: GENERAL SERVICE 500 TO 4,999 KW
A170: GENERAL SERVICE 500 TO 4,999 KW | B170: It should be noted that this schedule does not list any charges, assessments or credits that are required by law to be invoiced by a distributor and that are not subject to Board approval, such as the Debt Retirement Charge, the Global Adjustment, the Ontario Clean Energy Benefit and the HST.
A171: GENERAL SERVICE 500 TO 4,999 KW
A172: GENERAL SERVICE 500 TO 4,999 KW
A173: GENERAL SERVICE 500 TO 4,999 KW
A174: GENERAL SERVICE 500 TO 4,999 KW | B174: MONTHLY RATES AND CHARGES - Delivery Component (If applicable, Effective Date MUST be included in rate description)
A175: GENERAL SERVICE 500 TO 4,999 KW | B175: Service Charge | H175: $ | I175: 136.7 | K175: 3_C_MSC
A176: GENERAL SERVICE 500 TO 4,999 KW
A177: GENERAL SERVICE 500 TO 4,999 KW | B177: Smart Grid Funding Adder (2014) - in effect until December 31, 2014 | H177: $ | I177: 5.21 | K177: 3_C_MSC_Rate_Rider_1 | L177: 2014-12-31
A178: GENERAL SERVICE 500 TO 4,999 KW | B178: Rate Rider for Recovery of CGAAP/CWIP Differential - in effect until December 31, 2016 | H178: $ | I178: 6.99 | K178: 3_C_MSC_Rate_Rider_2 | L178: 2016-12-31
A179: GENERAL SERVICE 500 TO 4,999 KW | B179: Rate Rider for Recovery of Forgone Revenue - effective until December 31, 2014 | H179: $ | I179: 3.24 | K179: 3_C_MSC_Rate_Rider_3 | L179: 2014-12-31
A180: GENERAL SERVICE 500 TO 4,999 KW
A181: GENERAL SERVICE 500 TO 4,999 KW | B181: Distribution Volumetric Rate | H181: $/kW | I181: 3.2851 | K181: 3_C_VC_1
A182: GENERAL SERVICE 500 TO 4,999 KW | B182: Low Voltage Service Rate | H182: $/kW | I182: 0.1189 | K182: 3_C_LVrate
A183: GENERAL SERVICE 500 TO 4,999 KW | B183: Rate Rider for Disposition of Global Adjustment Sub-Account (2013) - effective until December 31, 2014 Applicable only for Non-RPP Customers | H183: $/kWh | I183: 0.0018 | K183: 3_C_VC_GA_Rate_Rider_kWh_1 | L183: 2014-12-31
A184: GENERAL SERVICE 500 TO 4,999 KW | B184: Rate Rider for Disposition of Deferral/Variance Accounts (2013) - effective until December 31, 2014 | H184: $/kW | I184: -0.578 | K184: 3_C_VC_DEFVAR_kW_1 | L184: 2014-12-31
A185: GENERAL SERVICE 500 TO 4,999 KW | B185: Retail Transmission Rate - Network Service Rate | H185: $/kW | I185: 2.8192 | K185: 3_C_RTSR_Network
A186: GENERAL SERVICE 500 TO 4,999 KW | B186: Retail Transmission Rate - Line and Transformation Connection Service Rate | H186: $/kW | I186: 1.1439 | K186: 3_C_RTSR_Connection
A187: GENERAL SERVICE 500 TO 4,999 KW | B187: Retail Transmission Rate - Network Service Rate - Interval Metered | H187: $/kW | I187: 2.9553 | K187: 3_C_RTSR_Network_Interval
A188: GENERAL SERVICE 500 TO 4,999 KW | B188: Retail Transmission Rate - Line and Transformation Connection Service Rate - Interval Metered | H188: $/kW | I188: 1.2376 | K188: 3_C_RTSR_Connection_Interval
A189: GENERAL SERVICE 500 TO 4,999 KW
A190: GENERAL SERVICE 500 TO 4,999 KW
A191: GENERAL SERVICE 500 TO 4,999 KW
A192: GENERAL SERVICE 500 TO 4,999 KW
A193: GENERAL SERVICE 500 TO 4,999 KW
A194: GENERAL SERVICE 500 TO 4,999 KW
A195: GENERAL SERVICE 500 TO 4,999 KW
A196: GENERAL SERVICE 500 TO 4,999 KW
A197: GENERAL SERVICE 500 TO 4,999 KW
A198: GENERAL SERVICE 500 TO 4,999 KW
A199: GENERAL SERVICE 500 TO 4,999 KW | B199: Rate Rider for Recovery of Incremental Capital Module Costs (2014) - in effect until the effective date of the next cost of service-based rate order | H199: $ | I199: 0.72 | K199: 3_C_MSC_Rate_Rider_4
A200: GENERAL SERVICE 500 TO 4,999 KW | B200: Rate Rider for Disposition of Global Adjustment Sub-Account (2014) - effective until December 31, 2015. Applicable only for Non-RPP Customers. | H200: $/kW | I200: -0.072 | K200: 3_C_VC_GA_Rate_Rider_kW_1 | L200: 2015-12-31
A201: GENERAL SERVICE 500 TO 4,999 KW | B201: Rate Rider for Disposition of Deferral/Variance Accounts (2014) - effective until December 31, 2015 | H201: $/kW | I201: -0.2207 | K201: 3_C_VC_DEFVAR_kW_2 | L201: 2015-12-31
A202: GENERAL SERVICE 500 TO 4,999 KW | B202: Rate Rider for Recovery of Incremental Capital Module Costs (2014) - in effect until the effective date of the next cost of service-based rate order | H202: $/kW | I202: 0.0173 | K202: 3_C_VC_Rate_Rider_kW_3
A203: GENERAL SERVICE 500 TO 4,999 KW
A204: GENERAL SERVICE 500 TO 4,999 KW
A205: GENERAL SERVICE 500 TO 4,999 KW | B205: MONTHLY RATES AND CHARGES - Regulatory Component
A206: GENERAL SERVICE 500 TO 4,999 KW
A207: GENERAL SERVICE 500 TO 4,999 KW | B207: Wholesale Market Service Rate | H207: =H81 -> $/kWh | I207: 0.0044 | K207: 3_C_WMSR
A208: GENERAL SERVICE 500 TO 4,999 KW | B208: Rural Rate Protection Charge | H208: $/kWh | I208: 0.0013
A209: GENERAL SERVICE 500 TO 4,999 KW | B209: Standard Supply Service - Administrative Charge (if applicable) | H209: $ | I209: 0.25 | K209: 3_C_SSS
A210: GENERAL SERVICE 500 TO 4,999 KW
A213: LARGE USE | B213: LARGE USE Service Classification
A214: LARGE USE
A215: LARGE USE | B215: This classification refers to an account whose monthly average peak demand is equal to or greater than, or is forecast to be equal to or greater than, 5,000 kW. Further servicing details are available in the distributor’s Conditions of Service.
... 357 more rows

Sheet 4. Hidden (hidden)
M1: Current Rate Classes | N1: Changed to Rate Classes | O1: Values in A that are NOT in B | P1: Values in B that are Not in A | Q1: Count of A | R1: Count of B
M2: RESIDENTIAL | N2: RESIDENTIAL | Q2: 9 | R2: 9
M3: GENERAL SERVICE LESS THAN 50 KW | N3: GENERAL SERVICE LESS THAN 50 KW
M4: GENERAL SERVICE 500 TO 4,999 KW | N4: GENERAL SERVICE 500 TO 4,999 KW
M5: LARGE USE | N5: LARGE USE
M6: STANDBY POWER | N6: STANDBY POWER
M7: UNMETERED SCATTERED LOAD | N7: UNMETERED SCATTERED LOAD
M8: SENTINEL LIGHTING | N8: SENTINEL LIGHTING
M9: STREET LIGHTING | N9: STREET LIGHTING
M10: microFIT | N10: microFIT
A24: RESIDENTIAL | B24: RESIDENTIAL Service Classification
A25: RESIDENTIAL
A26: RESIDENTIAL | B26: This classification refers to an account taking electricity at 750 volts or less where the electricity is used exclusively in a separately metered living accommodation. Customers shall be residing in single-dwelling units that consist of a detached house or one unit of a semi-detached, duplex, triplex or quadruplex house, with a residential zoning. Separately metered dwellings within a town house complex or apartment building also qualify as residential customers. Multi-unit residential establishments such as apartment buildings supplied through one service (bulk metered) shall be classified as general service. Further servicing details are available in the distributor’s Conditions of Service.
A27: RESIDENTIAL
A28: RESIDENTIAL
A29: RESIDENTIAL
A30: RESIDENTIAL
A31: RESIDENTIAL
A32: RESIDENTIAL | B32: APPLICATION
A33: RESIDENTIAL
A34: RESIDENTIAL | B34: The application of these rates and charges shall be in accordance with the Licence of the Distributor and any Code or Order of the Board, and amendments thereto as approved by the Board, which may be applicable to the administration of this schedule.
A35: RESIDENTIAL
A36: RESIDENTIAL
A37: RESIDENTIAL | B37: No rates and charges for the distribution of electricity and charges to meet the costs of any work or service done or furnished for the purpose of the distribution of electricity shall be made except as permitted by this schedule, unless required by the Distributor’s Licence or a Code or Order of the Board, and amendments thereto as approved by the Board, or as specified herein.
A38: RESIDENTIAL
A39: RESIDENTIAL
A40: RESIDENTIAL
A41: RESIDENTIAL | B41: Unless specifically noted, this schedule does not contain any charges for the electricity commodity, be it under the Regulated Price Plan, a contract with a retailer or the wholesale market price, as applicable. In addition, the charges in the MONTHLY RATES AND CHARGES – Regulatory Component of this schedule do not apply to a customer that is an embedded wholesale market participant.
A42: RESIDENTIAL
A43: RESIDENTIAL
A44: RESIDENTIAL | B44: t should be noted that this schedule does not list any charges, assessments or credits that are required by law to be invoiced by a distributor and that are not subject to Board approval, such as the Debt Retirement Charge, the Global Adjustment, the Ontario Clean Energy Benefit and the HST.
A45: RESIDENTIAL
A46: RESIDENTIAL
A47: RESIDENTIAL
A48: RESIDENTIAL | B48: MONTHLY RATES AND CHARGES - Delivery Component (If applicable, Effective Date MUST be included in rate description)
A49: RESIDENTIAL | B49: Service Charge | H49: $ | I49: 12.72
A50: RESIDENTIAL | B50: Rate Rider for Smart Metering Entity Charge - effective until October 31, 2018 | H50: $ | I50: 0.79
A51: RESIDENTIAL
A52: RESIDENTIAL
A53: RESIDENTIAL | B53: Distribution Volumetric Rate | H53: $/kWh | I53: 0.009
A54: RESIDENTIAL
A55: RESIDENTIAL
A56: RESIDENTIAL
A57: RESIDENTIAL
A58: RESIDENTIAL
A59: RESIDENTIAL
A60: RESIDENTIAL
A61: RESIDENTIAL
A62: RESIDENTIAL
A63: RESIDENTIAL
A64: RESIDENTIAL
A65: RESIDENTIAL
A66: RESIDENTIAL
A67: RESIDENTIAL
A68: RESIDENTIAL
A69: RESIDENTIAL
A70: RESIDENTIAL
A71: RESIDENTIAL
A72: RESIDENTIAL
A73: RESIDENTIAL
A74: RESIDENTIAL
A75: RESIDENTIAL
A76: RESIDENTIAL
A77: RESIDENTIAL
A78: RESIDENTIAL
A79: RESIDENTIAL | B79: MONTHLY RATES AND CHARGES - Regulatory Component
A80: RESIDENTIAL
A81: RESIDENTIAL | B81: Wholesale Market Service Rate | H81: $/kWh | I81: 0.0044
A82: RESIDENTIAL | B82: Rural or Remote Electricity Rate Protection Charge (RRRP) | H82: $/kWh | I82: 0.0013
A83: RESIDENTIAL | B83: Standard Supply Service - Administrative Charge (if applicable) | H83: $ | I83: 0.25
A84: RESIDENTIAL
A87: GENERAL SERVICE LESS THAN 50 KW | B87: GENERAL SERVICE LESS THAN 50 KW Service Classification
A88: GENERAL SERVICE LESS THAN 50 KW
A89: GENERAL SERVICE LESS THAN 50 KW | B89: This classification refers to a non residential account taking electricity at 750 volts or less whose monthly average peak demand is less than, or is forecast to be less than, 50 kW. Further servicing details are available in the distributor’s Conditions of Service.
A90: GENERAL SERVICE LESS THAN 50 KW
A91: GENERAL SERVICE LESS THAN 50 KW
A92: GENERAL SERVICE LESS THAN 50 KW
A93: GENERAL SERVICE LESS THAN 50 KW
A94: GENERAL SERVICE LESS THAN 50 KW
A95: GENERAL SERVICE LESS THAN 50 KW | B95: APPLICATION
A96: GENERAL SERVICE LESS THAN 50 KW
A97: GENERAL SERVICE LESS THAN 50 KW | B97: The application of these rates and charges shall be in accordance with the Licence of the Distributor and any Code or Order of the Board, and amendments thereto as approved by the Board, which may be applicable to the administration of this schedule.
A98: GENERAL SERVICE LESS THAN 50 KW
A99: GENERAL SERVICE LESS THAN 50 KW
A100: GENERAL SERVICE LESS THAN 50 KW | B100: No rates and charges for the distribution of electricity and charges to meet the costs of any work or service done or furnished for the purpose of the distribution of electricity shall be made except as permitted by this schedule, unless required by the Distributor’s Licence or a Code or Order of the Board, and amendments thereto as approved by the Board, or as specified herein.
A101: GENERAL SERVICE LESS THAN 50 KW
A102: GENERAL SERVICE LESS THAN 50 KW
A103: GENERAL SERVICE LESS THAN 50 KW
A104: GENERAL SERVICE LESS THAN 50 KW | B104: Unless specifically noted, this schedule does not contain any charges for the electricity commodity, be it under the Regulated Price Plan, a contract with a retailer or the wholesale market price, as applicable. In addition, the charges in the MONTHLY RATES AND CHARGES – Regulatory Component of this schedule do not apply to a customer that is an embedded wholesale market participant.
A105: GENERAL SERVICE LESS THAN 50 KW
A106: GENERAL SERVICE LESS THAN 50 KW
A107: GENERAL SERVICE LESS THAN 50 KW | B107: It should be noted that this schedule does not list any charges, assessments or credits that are required by law to be invoiced by a distributor and that are not subject to Board approval, such as the Debt Retirement Charge, the Global Adjustment, the Ontario Clean Energy Benefit and the HST.
A108: GENERAL SERVICE LESS THAN 50 KW
A109: GENERAL SERVICE LESS THAN 50 KW
A110: GENERAL SERVICE LESS THAN 50 KW
A111: GENERAL SERVICE LESS THAN 50 KW | B111: MONTHLY RATES AND CHARGES - Delivery Component (If applicable, Effective Date MUST be included in rate description)
A112: GENERAL SERVICE LESS THAN 50 KW | B112: Service Charge | H112: $ | I112: 14.97
A113: GENERAL SERVICE LESS THAN 50 KW | B113: Rate Rider for Smart Metering Entity Charge - effective until October 31, 2018 | H113: $ | I113: 0.79
A114: GENERAL SERVICE LESS THAN 50 KW
A115: GENERAL SERVICE LESS THAN 50 KW
A116: GENERAL SERVICE LESS THAN 50 KW | B116: Distribution Volumetric Rate | H116: $/kWh | I116: 0.0076
A117: GENERAL SERVICE LESS THAN 50 KW
A118: GENERAL SERVICE LESS THAN 50 KW
A119: GENERAL SERVICE LESS THAN 50 KW
A120: GENERAL SERVICE LESS THAN 50 KW
A121: GENERAL SERVICE LESS THAN 50 KW
A122: GENERAL SERVICE LESS THAN 50 KW
A123: GENERAL SERVICE LESS THAN 50 KW
A124: GENERAL SERVICE LESS THAN 50 KW
A125: GENERAL SERVICE LESS THAN 50 KW
A126: GENERAL SERVICE LESS THAN 50 KW
A127: GENERAL SERVICE LESS THAN 50 KW
A128: GENERAL SERVICE LESS THAN 50 KW
A129: GENERAL SERVICE LESS THAN 50 KW
A130: GENERAL SERVICE LESS THAN 50 KW
A131: GENERAL SERVICE LESS THAN 50 KW
A132: GENERAL SERVICE LESS THAN 50 KW
A133: GENERAL SERVICE LESS THAN 50 KW
A134: GENERAL SERVICE LESS THAN 50 KW
A135: GENERAL SERVICE LESS THAN 50 KW
A136: GENERAL SERVICE LESS THAN 50 KW
A137: GENERAL SERVICE LESS THAN 50 KW
A138: GENERAL SERVICE LESS THAN 50 KW
A139: GENERAL SERVICE LESS THAN 50 KW
A140: GENERAL SERVICE LESS THAN 50 KW
A141: GENERAL SERVICE LESS THAN 50 KW
A142: GENERAL SERVICE LESS THAN 50 KW | B142: MONTHLY RATES AND CHARGES - Regulatory Component
A143: GENERAL SERVICE LESS THAN 50 KW
A144: GENERAL SERVICE LESS THAN 50 KW | B144: Wholesale Market Service Rate | H144: $/kWh | I144: 0.0044
A145: GENERAL SERVICE LESS THAN 50 KW | B145: Rural or Remote Electricity Rate Protection Charge (RRRP) | H145: $/kWh | I145: 0.0013
A146: GENERAL SERVICE LESS THAN 50 KW | B146: Standard Supply Service - Administrative Charge (if applicable) | H146: $ | I146: 0.25
A147: GENERAL SERVICE LESS THAN 50 KW
A150: LARGE USE > 5000 KW | B150: LARGE USE > 5000 KW Service Classification
A151: LARGE USE > 5000 KW
A152: LARGE USE > 5000 KW
A153: LARGE USE > 5000 KW
A154: LARGE USE > 5000 KW
A155: LARGE USE > 5000 KW
A156: LARGE USE > 5000 KW
A157: LARGE USE > 5000 KW
A158: LARGE USE > 5000 KW | B158: APPLICATION
A159: LARGE USE > 5000 KW
A160: LARGE USE > 5000 KW
A161: LARGE USE > 5000 KW
A162: LARGE USE > 5000 KW
A163: LARGE USE > 5000 KW
A164: LARGE USE > 5000 KW
A165: LARGE USE > 5000 KW
A166: LARGE USE > 5000 KW
A167: LARGE USE > 5000 KW
A168: LARGE USE > 5000 KW
A169: LARGE USE > 5000 KW
A170: LARGE USE > 5000 KW
A171: LARGE USE > 5000 KW
A172: LARGE USE > 5000 KW
A173: LARGE USE > 5000 KW
A174: LARGE USE > 5000 KW | B174: MONTHLY RATES AND CHARGES - Delivery Component (If applicable, Effective Date MUST be included in rate description)
A175: LARGE USE > 5000 KW | B175: Service Charge | H175: $ | I175: 150
A176: LARGE USE > 5000 KW | B176: Rate Rider for Smart Metering Entity Charge - effective until October 31, 2018 | H176: $ | I176: 0.79
A177: LARGE USE > 5000 KW
A178: LARGE USE > 5000 KW
A179: LARGE USE > 5000 KW | B179: Distribution Volumetric Rate | H179: $/kW | I179: 0.1258
A180: LARGE USE > 5000 KW
A181: LARGE USE > 5000 KW
A182: LARGE USE > 5000 KW
A183: LARGE USE > 5000 KW
A184: LARGE USE > 5000 KW
A185: LARGE USE > 5000 KW
A186: LARGE USE > 5000 KW
A187: LARGE USE > 5000 KW
A188: LARGE USE > 5000 KW
A189: LARGE USE > 5000 KW
A190: LARGE USE > 5000 KW
A191: LARGE USE > 5000 KW
A192: LARGE USE > 5000 KW
A193: LARGE USE > 5000 KW
A194: LARGE USE > 5000 KW
A195: LARGE USE > 5000 KW
A196: LARGE USE > 5000 KW
A197: LARGE USE > 5000 KW
A198: LARGE USE > 5000 KW
A199: LARGE USE > 5000 KW
A200: LARGE USE > 5000 KW
A201: LARGE USE > 5000 KW
A202: LARGE USE > 5000 KW
A203: LARGE USE > 5000 KW
A204: LARGE USE > 5000 KW
A205: LARGE USE > 5000 KW | B205: MONTHLY RATES AND CHARGES - Regulatory Component
A206: LARGE USE > 5000 KW
A207: LARGE USE > 5000 KW | B207: Wholesale Market Service Rate | H207: =H81 -> $/kWh | I207: 0.0044
A208: LARGE USE > 5000 KW | B208: Rural Rate Protection Charge | H208: $/kWh | I208: 0.0013
A209: LARGE USE > 5000 KW | B209: Standard Supply Service - Administrative Charge (if applicable) | H209: $ | I209: 0.25
A210: LARGE USE > 5000 KW

Sheet 5. 2014 Continuity Schedule
C15: Please complete the following continuity schedule for the following Deferral / Variance Accounts. Enter information into green cells only. If you have received approval to dispose of balances from prior years, the starting point for entries in the 2015 DVA schedule below will be the balance sheet date as per your G/L for which you received approval. For example, if in the 2014 EDR process (CoS or IRM) you received approval for the December 31, 2012 balances, the starting point for your entries below should be the 2011 year. This will allow for the correct starting point for the 2012 opening balance columns for both principal and interest. Please refer to the footnotes for further instructions.
E19: 2010 | O19: 2011 | Y19: 2012 | AL19: 2013 | AY19: 2014 | BC19: Projected Interest on Dec-31-13 Balances | BF19: 2.1.7 RRR
C20: Account Descriptions | D20: Account Number | E20: Opening Principal Amounts as of Jan-1-10 | F20: Transactions Debit / (Credit) during 2010 excluding interest and adjustments 2 | G20: Board-Approved Disposition during 2010 | H20: Adjustments during 2010 - other 1 | I20: Closing Principal Balance as of Dec-31-10 | J20: Opening Interest Amounts as of Jan-1-10 | K20: Interest Jan-1 to Dec-31-10 | L20: Board-Approved Disposition during 2010 | M20: Adjustments during 2010 - other 2 | N20: Closing Interest Amounts as of Dec-31-10 | O20: Opening Principal Amounts as of Jan-1-11 | P20: Transactions Debit / (Credit) during 2011 excluding interest and adjustments 2 | Q20: Board-Approved Disposition during 2011 | R20: Adjustments during 2011 - other 1 | S20: Closing Principal Balance as of Dec-31-11 | T20: Opening Interest Amounts as of Jan-1-11 | U20: Interest Jan-1 to Dec-31-11 | V20: Board-Approved Disposition during 2011 | W20: Adjustments during 2011 - other 2 | X20: Closing Interest Amounts as of Dec-31-11 | Y20: Opening Principal Amounts as of Jan-1-12 | Z20: Transactions Debit / (Credit) during 2012 excluding interest and adjustments 2 | AA20: Board-Approved Disposition during 2012 | AB20: Other 1 Adjustments during Q1 2012 | AC20: Other 1 Adjustments during Q2 2012 | AD20: Other 1 Adjustments during Q3 2012 | AE20: Other 1 Adjustments during Q4 2012 | AF20: Closing Principal Balance as of Dec-31-12 | AG20: Opening Interest Amounts as of Jan-1-12 | AH20: Interest Jan-1 to Dec-31-12 | AI20: Board-Approved Disposition during 2012 | AJ20: Adjustments during 2012 - other 1 | AK20: Closing Interest Amounts as of Dec-31-12 | AL20: Opening Principal Amounts as of Jan-1-13 | AM20: Transactions Debit / (Credit) during 2013 excluding interest and adjustments 2 | AN20: Board-Approved Disposition during 2013 | AO20: Other 1 Adjustments during Q1 2013 | AP20: Other 1 Adjustments during Q2 2013 | AQ20: Other 1 Adjustments during Q3 2013 | AR20: Other 1 Adjustments during Q4 2013 | AS20: Closing Principal Balance as of Dec-31-13 | AT20: Opening Interest Amounts as of Jan-1-13 | AU20: Interest Jan-1 to Dec-31-13 | AV20: Board-Approved Disposition during 2013 | AW20: Adjustments during 2013 - other 1 | AX20: Closing Interest Amounts as of Dec-31-13 | AY20: Principal Disposition during 2014 - instructed by Board | AZ20: Interest Disposition during 2014 - instructed by Board | BA20: Closing Principal Balances as of Dec 31-13 Adjusted for Dispositions during 2014 | BB20: Closing Interest Balances as of Dec 31-13 Adjusted for Dispositions during 2014 | BC20: Projected Interest from Jan 1, 2014 to December 31, 2014 on Dec 31 -13 balance adjusted for disposition during 2014 3 | BD20: Projected Interest from January 1, 2015 to April 30, 2015 on Dec 31 -13 balance adjusted for disposition during 2014 3 | BE20: Total Claim | BF20: As of Dec 31-13 | BG20: Variance RRR vs. 2013 Balance (Principal + Interest)
BE22: Claim before Forecasted Transactions
C23: Group 1 Accounts
A24: 1 | C24: LV Variance Account | D24: 1550 | I24: =E24+F24-G24+H24 -> 0 | N24: =J24+K24-L24+M24 -> 0 | O24: =I24 -> 0 | S24: =O24+P24-Q24+R24 -> 0 | X24: =T24+U24-V24+W24 -> 0 | Y24: =S24 -> 0 | Z24: 477918.56 | AF24: =Y24+Z24-AA24+SUM(AB24:AE24) -> 477918.56 | AG24: =X24 -> 0 | AH24: 3032.446619 | AK24: =AG24+AH24-AI24+AJ24 -> 3032.446619 | AL24: =AF24 -> 477918.56 | AM24: -112182.12 | AS24: =AL24+AM24-AN24+SUM(AO24:AR24) -> 365736.44 | AT24: =AK24 -> 3032.446619 | AU24: 6431.05 | AX24: =AT24+AU24-AV24+AW24 -> 9463.496619 | AY24: 477918.56 | AZ24: 10057.84945 | BA24: =AS24-AY24 -> -112182.12 | BB24: =AX24-AZ24 -> -594.352832 | BC24: =BA24*1.47% -> -1649.077164 | BE24: =SUM(BA24:BD24) -> -114425.55 | BF24: 375199.77 | BG24: =BF24-SUM(AS24,AX24) -> -0.1666185288
C25: Smart Metering Entity Charge Variance | D25: 1551 | AK25: 0 | AL25: =AK25 -> 0 | AM25: 185108.27 | AS25: =AL25+AM25-AN25+SUM(AO25:AR25) -> 185108.27 | AT25: =AK25 -> 0 | AU25: 1632.25 | AX25: 1632.25 | AY25: 0 | AZ25: 0 | BA25: =AS25-AY25 -> 185108.27 | BB25: =AX25-AZ25 -> 1632.25 | BC25: =BA25*1.47% -> 2721.091569 | BE25: =SUM(BA25:BD25) -> 189461.6116 | BF25: 186740.52 | BG25: =BF25-SUM(AS25,AX25) -> 0
A26: 2 | C26: RSVA - Wholesale Market Service Charge | D26: 1580 | I26: =E26+F26-G26+SUM(H26:H26) -> 0 | N26: =J26+K26-L26+M26 -> 0 | O26: =I26 -> 0 | S26: =O26+P26-Q26+SUM(R26:R26) -> 0 | T26: =N26 -> 0 | X26: =T26+U26-V26+W26 -> 0 | Y26: =S26 -> 0 | Z26: -10646313.19 | AF26: -10646313.19 | AG26: =X26 -> 0 | AH26: -84418.18281 | AK26: -84418.18281 | AL26: =AF26 -> -10646313.19 | AM26: -5065917.04 | AS26: -15712230.23 | AT26: =AK26 -> -84418.18281 | AU26: -200434.32 | AX26: -284852.5028 | AY26: -10646313.19 | AZ26: -240918.9867 | BA26: -5065917.04 | BB26: -43933.51606 | BC26: -74468.98049 | BE26: =SUM(BA26:BD26) -> -5184319.537 | BF26: -15997082.68 | BG26: 0.0558116734
A27: 3 | C27: RSVA - Retail Transmission Network Charge | D27: 1584 | I27: 0 | N27: 0 | O27: 0 | S27: 0 | T27: 0 | X27: 0 | Y27: 0 | Z27: 1005953.27 | AF27: 1005953.27 | AG27: 0 | AH27: 23372.84098 | AK27: 23372.84098 | AL27: 1005953.27 | AM27: 2616583.65 | AS27: 3622536.92 | AT27: 23372.84098 | AU27: 30713.54 | AX27: 54086.38098 | AY27: 1005953.27 | AZ27: 38160.35405 | BA27: 2616583.65 | BB27: 15926.02693 | BC27: 38463.77965 | BE27: 2670973.457 | BF27: 3676623.37 | BG27: 0.06901754066
A28: 4 | C28: RSVA - Retail Transmission Connection Charge | D28: 1586 | I28: 0 | N28: 0 | O28: 0 | S28: 0 | T28: 0 | X28: 0 | Y28: 0 | Z28: -588229.64 | AF28: -588229.64 | AG28: 0 | AH28: -4962.618804 | AK28: -4962.618804 | AL28: -588229.64 | AM28: 601093.6 | AS28: 12863.96 | AT28: -4962.618804 | AU28: -5847.05 | AX28: -10809.6688 | AY28: -588229.64 | AZ28: -13609.59451 | BA28: 601093.6 | BB28: 2799.925708 | BC28: 8836.07592 | BE28: 612729.6016 | BF28: 2054.62 | BG28: 0.3288036979
A29: 5 | C29: RSVA - Power (excluding Global Adjustment) | D29: 1588 | I29: 0 | N29: 0 | O29: 0 | S29: 0 | T29: 0 | X29: 0 | Y29: 0 | Z29: 877087.82 | AF29: 877087.82 | AG29: 0 | AH29: -22209.7569 | AK29: -22209.7569 | AL29: 877087.82 | AM29: 1357195.78 | AS29: 2234283.6 | AT29: -22209.7569 | AU29: 51968.14 | AX29: 29758.3831 | AY29: 877087.82 | AZ29: -9316.565949 | BA29: 1357195.78 | BB29: 39074.94905 | BC29: 19950.77797 | BE29: 1416221.507 | BF29: 2264041.67 | BG29: -0.3130968455
A30: 6 | C30: RSVA - Global Adjustment | D30: 1589 | I30: 0 | N30: 0 | O30: 0 | S30: 0 | T30: 0 | X30: 0 | Y30: 0 | Z30: -1664567.87 | AF30: -1664567.87 | AG30: 0 | AH30: 1227.25 | AK30: 1227.25 | AL30: -1664567.87 | AM30: -3374331.81 | AS30: -5038899.68 | AT30: 1227.25 | AU30: 22025.41 | AX30: 23252.66 | AY30: -1664567.87 | AZ30: -23241.89769 | BA30: -3374331.81 | BB30: 46494.55769 | BC30: -49602.67761 | BE30: -3377439.93 | BF30: -5015646.91 | BG30: 0.1099999994
A31: 7 | C31: Recovery of Regulatory Asset Balances | D31: 1590 | I31: 0 | N31: 0 | O31: 0 | S31: 0 | T31: 0 | X31: 0 | Y31: 0 | Z31: -14.92706 | AF31: -14.92706 | AG31: 0 | AH31: 14.34 | AK31: 14.34 | AL31: -14.92706 | AM31: 0 | AS31: -14.92706 | AT31: 14.34 | AU31: 0 | AX31: 14.34 | AY31: -14.92706 | AZ31: 14.12057222 | BA31: 0 | BB31: 0.219427782 | BC31: 0 | BE31: 0.219427782 | BF31: 0 | BG31: 0.5870600005
A32: 8 | C32: Disposition and Recovery/Refund of Regulatory Balances (2008)5 | D32: 1595 | I32: 0 | N32: 0 | O32: =I32 -> 0 | S32: 0 | T32: 0 | X32: 0 | Y32: 0 | Z32: 0 | AF32: 0 | AG32: 0 | AH32: 0 | AK32: 0 | AL32: 0 | AS32: 0 | AT32: 0 | AX32: 0 | AY32: 0 | AZ32: 0 | BA32: 0 | BB32: 0 | BC32: 0 | BE32: 0 | BG32: 0
A33: 9 | C33: Disposition and Recovery/Refund of Regulatory Balances (2009)5 | D33: 1595 | I33: 0 | N33: 0 | O33: =I33 -> 0 | S33: 0 | T33: 0 | X33: 0 | Y33: 0 | Z33: 3900 | AF33: 3900 | AG33: 0 | AH33: -38301 | AK33: -38301 | AL33: 3900 | AS33: 3900 | AT33: -38301 | AX33: -38301 | AY33: 3900 | AZ33: -38243.67 | BA33: 0 | BB33: -57.33 | BC33: 0 | BE33: -57.33 | BG33: 34401
A34: 9 | C34: Disposition and Recovery/Refund of Regulatory Balances (2010)5 | D34: 1595 | I34: 0 | N34: 0 | O34: =I34 -> 0 | S34: 0 | T34: 0 | X34: 0 | Y34: 0 | Z34: 0 | AF34: 0 | AG34: 0 | AH34: 0 | AK34: 0 | AL34: 0 | AS34: 0 | AT34: 0 | AX34: 0 | AY34: 0 | AZ34: 0 | BA34: 0 | BB34: 0 | BC34: 0 | BE34: 0 | BG34: 0
A35: 9 | C35: Disposition and Recovery/Refund of Regulatory Balances (2011)5 | D35: 1595 | I35: 0 | N35: 0 | O35: =I35 -> 0 | S35: 0 | T35: 0 | X35: 0 | Y35: 0 | Z35: -6696630 | AF35: -6696630 | AG35: 0 | AH35: -1847542 | AK35: -1847542 | AL35: -6696630 | AM35: 4236921.35 | AR35: 2294102.76 | AS35: -165605.89 | AT35: -1847542 | AU35: -96444.16 | AW35: 1892384.19 | AX35: -51601.97 | AY35: -14007 | AZ35: -240.95145 | BA35: -151598.89 | BB35: -51361.01855 | BC35: -2228.503683 | BE35: =SUM(BA35:BD35) -> -205188.4122 | BF35: -4438094.85 | BG35: -4220886.99
A36: 9 | C36: Disposition and Recovery/Refund of Regulatory Balances (2012)5 | D36: 1595 | I36: 0 | N36: 0 | O36: =I36 -> 0 | S36: 0 | T36: =N36 -> 0 | X36: 0 | Y36: =S36 -> 0 | Z36: 0 | AF36: =Y36+Z36-AA36+SUM(AB36:AE36) -> 0 | AG36: =X36 -> 0 | AH36: 0 | AK36: =AG36+AH36-AI36+AJ36 -> 0 | AL36: =AF36 -> 0 | AS36: =AL36+AM36-AN36+SUM(AO36:AR36) -> 0 | AT36: =AK36 -> 0 | AX36: =AT36+AU36-AV36+AW36 -> 0 | BA36: 0 | BB36: 0 | BC36: 0 | BE36: =SUM(BA36:BD36) -> 0 | BG36: 0
C38: RSVA - Global Adjustment | D38: 1589 | E38: =E30 -> 0 | F38: =F30 -> 0 | G38: 0 | H38: 0 | I38: 0 | J38: 0 | K38: 0 | L38: 0 | M38: 0 | N38: 0 | O38: =O30 -> 0 | P38: =P30 -> 0 | Q38: 0 | R38: 0 | S38: 0 | T38: 0 | U38: 0 | V38: 0 | W38: 0 | X38: 0 | Y38: =Y30 -> 0 | Z38: =Z30 -> -1664567.87 | AA38: 0 | AB38: 0 | AC38: 0 | AD38: 0 | AE38: 0 | AF38: =AF30 -> -1664567.87 | AG38: 0 | AH38: 1227.25 | AI38: 0 | AJ38: =AJ30 -> 0 | AK38: 1227.25 | AL38: =AL30 -> -1664567.87 | AM38: =AM30 -> -3374331.81 | AN38: 0 | AO38: 0 | AP38: 0 | AQ38: 0 | AR38: 0 | AS38: -5038899.68 | AT38: 1227.25 | AU38: 22025.41 | AV38: 0 | AW38: 0 | AX38: 23252.66 | AY38: -1664567.87 | AZ38: =AZ30 -> -23241.89769 | BA38: -3374331.81 | BB38: 46494.55769 | BC38: -49602.67761 | BD38: 0 | BE38: -3377439.93 | BF38: -5015646.91 | BG38: 0.1099999994
C39: Total Group 1 Balance excluding Account 1589 - Global Adjustment | E39: =SUM(E24:E29,E31:E36) -> 0 | F39: =SUM(F24:F29,F31:F36) -> 0 | G39: 0 | H39: 0 | I39: 0 | J39: 0 | K39: 0 | L39: 0 | M39: 0 | N39: 0 | O39: =SUM(O24:O29,O31:O36) -> 0 | P39: =SUM(P24:P29,P31:P36) -> 0 | Q39: 0 | R39: 0 | S39: 0 | T39: 0 | U39: 0 | V39: 0 | W39: 0 | X39: 0 | Y39: =SUM(Y24:Y29,Y31:Y36) -> 0 | Z39: =SUM(Z24:Z29,Z31:Z36) -> -15566328.11 | AA39: 0 | AB39: 0 | AC39: 0 | AD39: 0 | AE39: 0 | AF39: =SUM(AF24:AF29,AF31:AF36) -> -15566328.11 | AG39: 0 | AH39: -1971013.931 | AI39: 0 | AJ39: =SUM(AJ24:AJ29,AJ31:AJ36) -> 0 | AK39: -1971013.931 | AL39: =SUM(AL24:AL29,AL31:AL36) -> -15566328.11 | AM39: =SUM(AM24:AM29,AM31:AM36) -> 3818803.49 | AN39: 0 | AO39: 0 | AP39: 0 | AQ39: 0 | AR39: 2294102.76 | AS39: -9453421.86 | AT39: -1971013.931 | AU39: -211980.55 | AV39: 0 | AW39: 1892384.19 | AX39: -290610.2909 | AY39: -8883705.11 | AZ39: =SUM(AZ24:AZ29,AZ31:AZ36) -> -254097.4446 | BA39: -569716.75 | BB39: -36512.84633 | BC39: -8374.836225 | BD39: 0 | BE39: -614604.4326 | BF39: -13930517.58 | BG39: -4186485.429
C40: Total Group 1 Balance | E40: =SUM(E24:E36) -> 0 | F40: =SUM(F24:F36) -> 0 | G40: 0 | H40: 0 | I40: 0 | J40: 0 | K40: 0 | L40: 0 | M40: 0 | N40: 0 | O40: =SUM(O24:O36) -> 0 | P40: =SUM(P24:P36) -> 0 | Q40: 0 | R40: 0 | S40: 0 | T40: 0 | U40: 0 | V40: 0 | W40: 0 | X40: 0 | Y40: =SUM(Y24:Y36) -> 0 | Z40: =SUM(Z24:Z36) -> -17230895.98 | AA40: 0 | AB40: 0 | AC40: 0 | AD40: 0 | AE40: 0 | AF40: =SUM(AF24:AF36) -> -17230895.98 | AG40: 0 | AH40: -1969786.681 | AI40: 0 | AJ40: =SUM(AJ24:AJ36) -> 0 | AK40: -1969786.681 | AL40: =SUM(AL24:AL36) -> -17230895.98 | AM40: =SUM(AM24:AM36) -> 444471.68 | AN40: 0 | AO40: 0 | AP40: 0 | AQ40: 0 | AR40: 2294102.76 | AS40: -14492321.54 | AT40: -1969786.681 | AU40: -189955.14 | AV40: 0 | AW40: 1892384.19 | AX40: -267357.6309 | AY40: -10548272.98 | AZ40: =SUM(AZ24:AZ36) -> -277339.3423 | BA40: -3944048.56 | BB40: 9981.711357 | BC40: -57977.51383 | BD40: 0 | BE40: -3992044.362 | BF40: -18946164.49 | BG40: -4186485.319
C42: LRAM Variance Account | D42: 1568 | I42: =E42+F42-G42+SUM(H42:H42) -> 0 | N42: =J42+K42-L42+M42 -> 0 | S42: =O42+P42-Q42+SUM(R42:R42) -> 0 | X42: =T42+U42-V42+W42 -> 0 | Y42: =S42 -> 0 | Z42: 770966.6063 | AF42: =Y42+Z42-AA42+SUM(AB42:AE42) -> 770966.6063 | AG42: =X42 -> 0 | AH42: 8047.268208 | AK42: =AG42+AH42-AI42+AJ42 -> 8047.268208 | AL42: =AF42 -> 770966.6063 | AS42: =AL42+AM42-AN42+SUM(AO42:AR42) -> 770966.6063 | AT42: =AK42 -> 8047.268208 | AU42: 11333.20911 | AX42: =AT42+AU42-AV42+AW42 -> 19380.47732 | BA42: =AS42-AY42 -> 770966.6063 | BB42: =AX42-AZ42 -> 19380.47732 | BC42: 11333.20911 | BE42: =SUM(BA42:BD42) -> 801680.2928 | BF42: 215978 | BG42: =BF42-SUM(AS42,AX42) -> -574369.0837
C44: Total including Account 1568 | E44: =E42+E40 -> 0 | F44: =F42+F40 -> 0 | G44: 0 | H44: 0 | I44: 0 | J44: 0 | K44: 0 | L44: 0 | M44: 0 | N44: 0 | O44: 0 | P44: 0 | Q44: 0 | R44: 0 | S44: 0 | T44: 0 | U44: 0 | V44: 0 | W44: 0 | X44: 0 | Y44: 0 | Z44: -16459929.37 | AA44: 0 | AB44: 0 | AC44: 0 | AD44: 0 | AE44: 0 | AF44: -16459929.37 | AG44: 0 | AH44: -1961739.413 | AI44: 0 | AJ44: 0 | AK44: -1961739.413 | AL44: -16459929.37 | AM44: 444471.68 | AN44: 0 | AO44: 0 | AP44: 0 | AQ44: 0 | AR44: 2294102.76 | AS44: -13721354.93 | AT44: -1961739.413 | AU44: -178621.9309 | AV44: 0 | AW44: 1892384.19 | AX44: -247977.1536 | AY44: -10548272.98 | AZ44: -277339.3423 | BA44: -3173081.954 | BB44: 29362.18868 | BC44: -46644.30472 | BD44: 0 | BE44: -3190364.07 | BF44: -18730186.49 | BG44: -4760854.403
C47: For all Board-Approved dispositions, please ensure that the disposition amount has the same sign (e.g: debit balances are to have a positive figure and credit balance are to have a negative figure) as per the related Board decision.
B50: 1 | C50: Please provide explanations for the nature of the adjustments. If the adjustment relates to previously Board Approved disposed balances, please provide amounts for adjustments and include supporting documentations.
B51: 2 | C51: For RSVA accounts only, report the net variance to the account during the year. For all other accounts, record the transactions during the year.
B52: 3 | C52: If the LDC’s 2013 rate year begins January 1, 2014, the projected interest is recorded from January 1, 2013 to December 31, 2013 on the December 31, 2012 balance adjusted for the disposed balances approved by the Board in the 2013 rate decision. If the LDC’s 2014 rate year begins May 1, 2014 the projected interest is recorded from January 1, 2013 to April 30, 2014 on the December 31, 2012 balance adjusted for the disposed balances approved by the Board in the 2013 rate decision.
B53: 4 | C53: Applicants that did not have the balance in Account 1521 cleared by the Board in the 2012 rate proceedings are expected to file to dispose of Account 1521 in the 2013 rate proceedings. No Account 1521 balance is to be filed for clearance in the 2013 rate proceedings for those distributors that had account 1521 cleared by the Board in the 2012 rate proceedings. In accordance with section 8 of the Special Purpose Charge (“SPC”) Regulation, Ontario Regulation 66/10, distributors were required to apply to the Board no later than April 15, 2012 for an order authorizing the distributor to clear the balance in Account 1521. As per the Board’s April 23, 2010 letter, the Board stated that it expected that requests for disposition of the balance in Account 1521 were to be addressed as part of the proceedings to set rates for the 2012 rate year, except in cases where this approach would result in non-compliance with the timeline set out in section 8 of the SPC Regulation.
B54: 5 | C54: Include Account 1595 as part of Group 1 accounts (lines 31, 32, 33 and 34) for review and disposition if the recovery (or refund) period has been completed. If the recovery (or refund) period has not been completed, do not include the respective balance in Account 1595 for disposition at this time.

Sheet 6. Billing Det. for Def-Var
A13: In the green shaded cells, enter the most recent Board Approved volumetric forecast. If there is a material difference between the latest Board-approved volumetric forecast and the most recent 12-month actual volumetric data, use the most recent 12-month actual data. Do not enter data for the MicroFit class.
E15: Billed kWh for Non-RPP Customers | F15: Estimated kW for Non-RPP Customers | H15: 1590 Recovery Share Proportion* | I15: 1595 Recovery Share Proportion (2008) 1 | J15: 1595 Recovery Share Proportion (2009) 1 | K15: 1595 Recovery Share Proportion (2010) 1 | L15: 1595 Recovery Share Proportion (2011) 1 | M15: 1595 Recovery Share Proportion (2012) 1 | N15: 1568 LRAM Variance Account Class Allocation ($ amounts)
A16: Rate Class | B16: Unit | C16: Metered kWh | D16: Metered kW
A17: RESIDENTIAL | B17: $/kWh | C17: 2691200335 | E17: 234304888 | F17: =IF(ISERROR(D17/C17*E17), 0, D17/C17*E17) -> 0 | N17: 219616.8096
A18: GENERAL SERVICE LESS THAN 50 KW | B18: $/kWh | C18: 1023964951 | E18: 174257093.1 | F18: 0 | N18: 417291.1333
A19: GENERAL SERVICE 500 TO 4,999 KW | B19: $/kW | C19: 4585343853 | D19: 12304410.1 | E19: 4330537512 | F19: 11620657.29 | N19: 164772.3498
A20: LARGE USE | B20: $/kW | C20: 62258328.72 | D20: 132253.6428 | F20: 0
A21: STANDBY POWER | B21: $/kW | F21: 0
A22: UNMETERED SCATTERED LOAD | B22: $/kWh | C22: 13143808.36 | E22: 948649.61 | F22: 0
A23: SENTINEL LIGHTING | B23: $/kW | C23: 410067.2802 | D23: 1062.250256 | E23: 61772.49 | F23: 160.0172618
A24: STREET LIGHTING | B24: $/kW | C24: 61301583.56 | D24: 172176.2489 | E24: 62187288.63 | F24: 174663.907
A25: microFIT
B27: Total | C27: =SUM(C17:C25) -> 8437622927 | D27: =SUM(D17:D25) -> 12609902.24 | E27: 4802297204 | F27: 11795481.22 | H27: 0 | I27: 0 | J27: 0 | K27: 0 | L27: 0 | M27: 0 | N27: 801680.2928
M28: Balance as per Sheet 5 | N28: ='5. 2014 Continuity Schedule'!BE42 -> 801680.2928
M29: Variance | N29: =N27-N28 -> 0
A31: Threshold Test
A32: Total Claim (including Account 1568) | B32: ='5. 2014 Continuity Schedule'!BE44 -> -3190364.07
A33: Total Claim for Threshold Test (All Group 1 Accounts) | B33: ='5. 2014 Continuity Schedule'!BE40 -> -3992044.362
A34: Threshold Test (Total claim per kWh) 3 | B34: =IF(ISERROR(B33/C27), 0, B33/C27) -> -0.0004731242907 | D34: =IF(AND(B34>-0.001,B34<0.001),"Claim does not meet the threshold test.","") -> Claim does not meet the threshold test.
A40: 1 Residual Account balance to be allocated to rate classes in proportion to the recovery share as established when rate riders were implemented.
A41: 2 The Threshold Test does not include the amount in 1568.

Sheet 6. hidden (hidden)
E1: Billed kWh for Non-RPP Customers | F1: Estimated kW for Non-RPP Customers | G1: Distribution Revenue 1 | H1: 1590 Recovery Share Proportion* | I1: 1595 Recovery Share Proportion (2008) 2 | J1: 1595 Recovery Share Proportion (2009) 2 | K1: 1595 Recovery Share Proportion (2010) 2 | L1: 1595 Recovery Share Proportion (2011) 2 | M1: 1568 LRAM Variance Account Class Allocation
A2: Rate Class | B2: Unit | C2: Metered kWh | D2: Metered kW
A3: RESIDENTIAL | B3: $/kWh | C3: 2691200335 | D3: 0 | E3: 234304888 | G3: 0 | H3: 0 | I3: 0 | J3: 0 | K3: 0 | L3: 0 | M3: 0 | N3: 219616.8096
A4: GENERAL SERVICE LESS THAN 50 KW | B4: $/kWh | C4: 1023964951 | D4: 0 | E4: 174257093.1 | G4: 0 | H4: 0 | I4: 0 | J4: 0 | K4: 0 | L4: 0 | M4: 0 | N4: 417291.1333
A5: GENERAL SERVICE 500 TO 4,999 KW | B5: $/kW | C5: 4585343853 | D5: 12304410.1 | E5: 4330537512 | G5: 0 | H5: 0 | I5: 0 | J5: 0 | K5: 0 | L5: 0 | M5: 0 | N5: 164772.3498
A6: LARGE USE | B6: $/kW | C6: 62258328.72 | D6: 132253.6428 | E6: 0 | G6: 0 | H6: 0 | I6: 0 | J6: 0 | K6: 0 | L6: 0 | M6: 0 | N6: 0
A7: STANDBY POWER | B7: $/kW | C7: 0 | D7: 0 | E7: 0 | G7: 0 | H7: 0 | I7: 0 | J7: 0 | K7: 0 | L7: 0 | M7: 0 | N7: 0
A8: UNMETERED SCATTERED LOAD | B8: $/kWh | C8: 13143808.36 | D8: 0 | E8: 948649.61 | G8: 0 | H8: 0 | I8: 0 | J8: 0 | K8: 0 | L8: 0 | M8: 0 | N8: 0
A9: SENTINEL LIGHTING | B9: $/kW | C9: 410067.2802 | D9: 1062.250256 | E9: 61772.49 | G9: 0 | H9: 0 | I9: 0 | J9: 0 | K9: 0 | L9: 0 | M9: 0 | N9: 0
A10: STREET LIGHTING | B10: $/kW | C10: 61301583.56 | D10: 172176.2489 | E10: 62187288.63 | G10: 0 | H10: 0 | I10: 0 | J10: 0 | K10: 0 | L10: 0 | M10: 0 | N10: 0
A11: microFIT | B11: 0 | C11: 0 | D11: 0 | E11: 0 | G11: 0 | H11: 0 | I11: 0 | J11: 0 | K11: 0 | L11: 0 | M11: 0 | N11: 0

Sheet 7. Allocating Def-Var Balances
A13: No input required. This workshseet allocates the deferral/variance account balances (Group 1, 1589, and 1568) to the appropriate classes as per the EDDVAR Report dated July 31, 2009
A15: Allocation of Group 1 Accounts (including Account 1568)
C16: % of Total kWh | D16: % of Total non-RPP kWh | N16: 1595 (2008) | O16: 1595 (2009) | P16: 1595 (2010) | Q16: 1595 (2011) | R16: 1595 (2012) | S16: 1568
A17: Rate Class | F17: 1550 | G17: 1551 | H17: 1580 | I17: 1584 | J17: 1586 | K17: 1588 | L17: 1589 | M17: 1590
A19: RESIDENTIAL | C19: =VLOOKUP(A19, '6. Billing Det. for Def-Var'!A17:D25, 3,0)/'6. Billing Det. for Def-Var'!C27 -> 0.3189524299 | D19: =VLOOKUP(A19, '6. Billing Det. for Def-Var'!A17:E25, 5,0)/'6. Billing Det. for Def-Var'!E27 -> 0.04879016814 | F19: 0 | G19: 0 | H19: 0 | I19: 0 | J19: 0 | K19: 0 | L19: 0 | M19: 0 | N19: 0 | O19: 0 | P19: 0 | Q19: 0 | R19: 0 | S19: ='6. Billing Det. for Def-Var'!N17 -> 219616.8096
A20: GENERAL SERVICE LESS THAN 50 KW | C20: =VLOOKUP(A20, '6. Billing Det. for Def-Var'!A17:D25, 3,0)/'6. Billing Det. for Def-Var'!C27 -> 0.121357041 | D20: =VLOOKUP(A20, '6. Billing Det. for Def-Var'!A17:E25, 5,0)/'6. Billing Det. for Def-Var'!E27 -> 0.03628619507 | F20: 0 | G20: 0 | H20: 0 | I20: 0 | J20: 0 | K20: 0 | L20: 0 | M20: 0 | N20: 0 | O20: 0 | P20: 0 | Q20: 0 | R20: 0 | S20: ='6. Billing Det. for Def-Var'!N18 -> 417291.1333
A21: GENERAL SERVICE 500 TO 4,999 KW | C21: =VLOOKUP(A21, '6. Billing Det. for Def-Var'!A17:D25, 3,0)/'6. Billing Det. for Def-Var'!C27 -> 0.5434402429 | D21: =VLOOKUP(A21, '6. Billing Det. for Def-Var'!A17:E25, 5,0)/'6. Billing Det. for Def-Var'!E27 -> 0.9017637452 | F21: 0 | G21: 0 | H21: 0 | I21: 0 | J21: 0 | K21: 0 | L21: 0 | M21: 0 | N21: 0 | O21: 0 | P21: 0 | Q21: 0 | R21: 0 | S21: ='6. Billing Det. for Def-Var'!N19 -> 164772.3498
A22: LARGE USE | C22: =VLOOKUP(A22, '6. Billing Det. for Def-Var'!A17:D25, 3,0)/'6. Billing Det. for Def-Var'!C27 -> 0.007378657385 | D22: =VLOOKUP(A22, '6. Billing Det. for Def-Var'!A17:E25, 5,0)/'6. Billing Det. for Def-Var'!E27 -> 0 | F22: 0 | G22: 0 | H22: 0 | I22: 0 | J22: 0 | K22: 0 | L22: 0 | M22: 0 | N22: 0 | O22: 0 | P22: 0 | Q22: 0 | R22: 0 | S22: ='6. Billing Det. for Def-Var'!N20 -> 0
A23: STANDBY POWER | C23: =VLOOKUP(A23, '6. Billing Det. for Def-Var'!A17:D25, 3,0)/'6. Billing Det. for Def-Var'!C27 -> 0 | D23: =VLOOKUP(A23, '6. Billing Det. for Def-Var'!A17:E25, 5,0)/'6. Billing Det. for Def-Var'!E27 -> 0 | F23: 0 | G23: 0 | H23: 0 | I23: 0 | J23: 0 | K23: 0 | L23: 0 | M23: 0 | N23: 0 | O23: 0 | P23: 0 | Q23: 0 | R23: 0 | S23: ='6. Billing Det. for Def-Var'!N21 -> 0
A24: UNMETERED SCATTERED LOAD | C24: =VLOOKUP(A24, '6. Billing Det. for Def-Var'!A17:D25, 3,0)/'6. Billing Det. for Def-Var'!C27 -> 0.001557762 | D24: =VLOOKUP(A24, '6. Billing Det. for Def-Var'!A17:E25, 5,0)/'6. Billing Det. for Def-Var'!E27 -> 0.0001975407955 | F24: 0 | G24: 0 | H24: 0 | I24: 0 | J24: 0 | K24: 0 | L24: 0 | M24: 0 | N24: 0 | O24: 0 | P24: 0 | Q24: 0 | R24: 0 | S24: ='6. Billing Det. for Def-Var'!N22 -> 0
A25: SENTINEL LIGHTING | C25: =VLOOKUP(A25, '6. Billing Det. for Def-Var'!A17:D25, 3,0)/'6. Billing Det. for Def-Var'!C27 -> 4.859985849e-05 | D25: =VLOOKUP(A25, '6. Billing Det. for Def-Var'!A17:E25, 5,0)/'6. Billing Det. for Def-Var'!E27 -> 1.286311267e-05 | F25: 0 | G25: 0 | H25: 0 | I25: 0 | J25: 0 | K25: 0 | L25: 0 | M25: 0 | N25: 0 | O25: 0 | P25: 0 | Q25: 0 | R25: 0 | S25: ='6. Billing Det. for Def-Var'!N23 -> 0
A26: STREET LIGHTING | C26: =VLOOKUP(A26, '6. Billing Det. for Def-Var'!A17:D25, 3,0)/'6. Billing Det. for Def-Var'!C27 -> 0.007265267018 | D26: =VLOOKUP(A26, '6. Billing Det. for Def-Var'!A17:E25, 5,0)/'6. Billing Det. for Def-Var'!E27 -> 0.01294948771 | F26: 0 | G26: 0 | H26: 0 | I26: 0 | J26: 0 | K26: 0 | L26: 0 | M26: 0 | N26: 0 | O26: 0 | P26: 0 | Q26: 0 | R26: 0 | S26: ='6. Billing Det. for Def-Var'!N24 -> 0
A27: microFIT | C27: 0 | D27: 0 | F27: 0 | G27: 0 | H27: 0 | I27: 0 | J27: 0 | K27: 0 | L27: 0 | M27: 0 | N27: 0 | O27: 0 | P27: 0 | Q27: 0 | R27: 0 | S27: ='6. Billing Det. for Def-Var'!N25 -> 0
A29: Total | C29: =SUM(C19:C27) -> 1 | D29: =SUM(D19:D27) -> 1 | F29: =SUM(F19:F27) -> 0 | G29: 0 | H29: 0 | I29: 0 | J29: 0 | K29: 0 | L29: 0 | M29: 0 | N29: 0 | O29: 0 | P29: 0 | Q29: 0 | R29: 0 | S29: =SUM(R19:S27) -> 801680.2928
A32: * RSVA - Power (Excluding Global Adjustment)

Sheet 8. Calculation of Def-Var RR
A12: Input required at cell C15 only. This workshseet calculates rate riders related to the Deferral/Variance Account Disposition (if applicable), associated rate riders for the global adjustment account (1589) and Account 1568. Rate Riders will not be generated for the microFIT class.
A15: Please indicate the Rate Rider Recovery Period (in years) | C15: 1
E17: Balance of Accounts Allocated by kWh/kW (RPP) or Distribution Revenue | F17: Deferral/Variance Account Rate Rider | G17: Allocation of Balance in Account 1589 | H17: Billed kWh or Estimated kW for Non-RPP Customers | I17: Global Adjustment Rate Rider | J17: Allocation of Account 1568 | K17: Account 1568 Rate Rider
A18: Rate Class | B18: Unit | C18: Billed kWh | D18: Billed kW or kVA
A20: RESIDENTIAL | B20: $/kWh | C20: 2691200335 | E20: =SUM('7. Allocating Def-Var Balances'!F19:K19)+SUM('7. Allocating Def-Var Balances'!M19:R19) -> 0 | F20: 0 | G20: 0 | H20: 234304888 | I20: 0 | J20: 219616.8096 | K20: 8.160552255e-05
A21: GENERAL SERVICE LESS THAN 50 KW | B21: $/kWh | C21: 1023964951 | E21: =SUM('7. Allocating Def-Var Balances'!F20:K20)+SUM('7. Allocating Def-Var Balances'!M20:R20) -> 0 | F21: 0 | G21: 0 | H21: 174257093.1 | I21: 0 | J21: 417291.1333 | K21: 0.0004075248209
A22: GENERAL SERVICE 500 TO 4,999 KW | B22: $/kW | C22: 4585343853 | D22: 12304410.1 | E22: =SUM('7. Allocating Def-Var Balances'!F21:K21)+SUM('7. Allocating Def-Var Balances'!M21:R21) -> 0 | F22: 0 | G22: 0 | H22: 11620657.29 | I22: 0 | J22: 164772.3498 | K22: 0.01339132462
A23: LARGE USE | B23: $/kW | C23: 62258328.72 | D23: 132253.6428 | E23: =SUM('7. Allocating Def-Var Balances'!F22:K22)+SUM('7. Allocating Def-Var Balances'!M22:R22) -> 0 | F23: 0 | G23: 0 | H23: 0 | I23: 0 | K23: 0
A24: STANDBY POWER | B24: $/kW | E24: =SUM('7. Allocating Def-Var Balances'!F23:K23)+SUM('7. Allocating Def-Var Balances'!M23:R23) -> 0 | F24: 0 | G24: 0 | H24: 0 | I24: 0
A25: UNMETERED SCATTERED LOAD | B25: $/kWh | C25: 13143808.36 | E25: =SUM('7. Allocating Def-Var Balances'!F24:K24)+SUM('7. Allocating Def-Var Balances'!M24:R24) -> 0 | F25: 0 | G25: 0 | H25: 948649.61 | I25: 0 | K25: 0
A26: SENTINEL LIGHTING | B26: $/kW | C26: 410067.2802 | D26: 1062.250256 | E26: =SUM('7. Allocating Def-Var Balances'!F25:K25)+SUM('7. Allocating Def-Var Balances'!M25:R25) -> 0 | F26: 0 | G26: 0 | H26: 160.0172618 | I26: 0 | K26: 0
A27: STREET LIGHTING | B27: $/kW | C27: 61301583.56 | D27: 172176.2489 | E27: =SUM('7. Allocating Def-Var Balances'!F26:K26)+SUM('7. Allocating Def-Var Balances'!M26:R26) -> 0 | F27: 0 | G27: 0 | H27: 174663.907 | I27: 0 | K27: 0
A28: microFIT
A29: Total | C29: =SUM(C20:C28) -> 8437622927 | D29: =SUM(D20:D28) -> 12609902.24 | E29: =SUM(E20:E28) -> 0 | G29: =SUM(G20:G28) -> 0 | H29: =SUM(H20:H28) -> 421306111.9 | J29: =SUM(J20:J28) -> 801680.2928

Sheet 9. STS - Billing Det & Rates
A11: Shared Tax Savings
A13: ="Enter your " & '1. Information Sheet'!F32 & " Board-Approved Billing Determinents into columns B, C and D." -> Enter your 2013 Board-Approved Billing Determinents into columns B, C and D.
A14: ="Enter your " & '1. Information Sheet'!F32 & " Board-Approved Base monthly service and volumetric charges into columns G, H and I." -> Enter your 2013 Board-Approved Base monthly service and volumetric charges into columns G, H and I.
A16: Rate Class | B16: Units | C16: Re-based Billed Customers or Connections | D16: Re-based Billed kWh | E16: Re-based Billed kW (if applicable) | G16: ='1. Information Sheet'!F32 &" Base Monthly Service Charge" -> 2013 Base Monthly Service Charge | H16: ='1. Information Sheet'!F32 &" Base Distribution Volumetric Rate kWh" -> 2013 Base Distribution Volumetric Rate kWh | I16: ='1. Information Sheet'!F32 &" Base Distribution Volumetric Rate kW" -> 2013 Base Distribution Volumetric Rate kW
A17: RESIDENTIAL | B17: $/kWh | C17: 308309 | D17: 2732090682 | E17: 0 | G17: 12.34 | H17: 0.0136 | I17: 0
A18: GENERAL SERVICE LESS THAN 50 KW | B18: $/kWh | C18: 31199 | D18: 1051489461 | E18: 0 | G18: 25.39 | H18: 0.0135 | I18: 0
A19: GENERAL SERVICE 500 TO 4,999 KW | B19: $/kW | C19: 4662 | D19: 4560475622 | E19: 12149352 | G19: 134.81 | H19: 0 | I19: 3.2397
A20: LARGE USE | B20: $/kW | C20: 2 | D20: 63129774 | E20: 188221 | G20: 5808.4 | H20: 0 | I20: 1.3784
A21: STANDBY POWER | B21: $/kW | C21: 0 | D21: 0 | E21: 0 | G21: 0 | H21: 0 | I21: 2.6854
A22: UNMETERED SCATTERED LOAD | B22: $/kWh | C22: 2814 | D22: 12938386 | E22: 0 | G22: 6.82 | H22: 0.0155 | I22: 0
A23: SENTINEL LIGHTING | B23: $/kW | C23: 120 | D23: 474523 | E23: 1242 | G23: 3.32 | H23: 0 | I23: 7.805
A24: STREET LIGHTING | B24: $/kW | C24: 83370 | D24: 60349776 | E24: 177059 | G24: 1.22 | H24: 0 | I24: 6.4785
A25: microFIT

Sheet 10. STS - Rebased Rev
A12: Calculation of Rebased Revenue Requirement. No input required.
A15: Rate Class | C15: Re-based Billed Customers or Connections | D15: Re-based Billed kWh | E15: Re-based Billed kW | G15: Rate ReBal Base Service Charge | H15: Rate ReBal Base Distribution Volumetric Rate kWh | I15: Rate ReBal Base Distribution Volumetric Rate kW | K15: Service Charge Revenue | L15: Distribution Volumetric Rate Revenue kWh | M15: Distribution Volumetric Rate Revenue kW | N15: Revenue Requirement from Rates | P15: Service Charge % Revenue | Q15: Distribution Volumetric Rate % Revenue kWh | R15: Distribution Volumetric Rate % Revenue kW | S15: Total % Revenue
C16: A | D16: B | E16: C | G16: D | H16: E | I16: F | K16: G = A * D *12 | L16: H = B * E | M16: I = C * F | N16: J = G + H + I | P16: K = G / J | Q16: L = H / J | R16: M = I / J | S16: N = J / R
A17: RESIDENTIAL | C17: 308309 | D17: 2732090682 | E17: 0 | G17: 12.34 | H17: 0.0136 | I17: 0 | K17: =G17*C17*12 -> 45654396.72 | L17: =H17*D17 -> 37156433.28 | M17: 0 | N17: =SUM(K17,L17,M17) -> 82810830 | P17: =IF(ISERROR(K17/N17),0,K17/N17) -> 0.5513094932 | Q17: =IF(ISERROR(L17/N17),0,L17/N17) -> 0.4486905068 | R17: =IF(ISERROR(M17/N17),0,M17/N17) -> 0 | S17: =N17/N26 -> 0.5287187233
A18: GENERAL SERVICE LESS THAN 50 KW | C18: 31199 | D18: 1051489461 | E18: 0 | G18: 25.39 | H18: 0.0135 | I18: 0 | K18: 9505711.32 | L18: =H18*D18 -> 14195107.72 | M18: 0 | N18: 23700819.04 | P18: 0.4010710053 | Q18: 0.5989289947 | R18: 0 | S18: =N18/N26 -> 0.1513215939
A19: GENERAL SERVICE 500 TO 4,999 KW | C19: 4662 | D19: 4560475622 | E19: 12149352 | G19: 134.81 | H19: 0 | I19: 3.2397 | K19: 7541810.64 | L19: 0 | M19: =I19*E19 -> 39360255.67 | N19: 46902066.31 | P19: 0.1607991125 | Q19: 0 | R19: 0.8392008875 | S19: =N19/N26 -> 0.2994535935
A20: LARGE USE | C20: 2 | D20: 63129774 | E20: 188221 | G20: 5808.4 | H20: 0 | I20: 1.3784 | K20: 139401.6 | L20: 0 | M20: =I20*E20 -> 259443.8264 | N20: 398845.4264 | P20: 0.3495128458 | Q20: 0 | R20: 0.6504871542 | S20: =N20/N26 -> 0.002546491137
A21: STANDBY POWER | C21: 0 | D21: 0 | E21: 0 | G21: 0 | H21: 0 | I21: 2.6854 | K21: 0 | L21: 0 | M21: 0 | N21: 0 | P21: 0 | Q21: 0 | R21: 0 | S21: =N21/N26 -> 0
A22: UNMETERED SCATTERED LOAD | C22: 2814 | D22: 12938386 | E22: 0 | G22: 6.82 | H22: 0.0155 | I22: 0 | K22: 230297.76 | L22: =H22*D22 -> 200544.983 | M22: 0 | N22: 430842.743 | P22: 0.5345285809 | Q22: 0.4654714191 | R22: 0 | S22: =N22/N26 -> 0.00275078302
A23: SENTINEL LIGHTING | C23: 120 | D23: 474523 | E23: 1242 | G23: 3.32 | H23: 0 | I23: 7.805 | K23: 4780.8 | L23: 0 | M23: =I23*E23 -> 9693.81 | N23: 14474.61 | P23: 0.3302886917 | Q23: 0 | R23: 0.6697113083 | S23: =N23/N26 -> 9.24154162e-05
A24: STREET LIGHTING | C24: 83370 | D24: 60349776 | E24: 177059 | G24: 1.22 | H24: 0 | I24: 6.4785 | K24: 1220536.8 | L24: 0 | M24: =I24*E24 -> 1147076.731 | N24: 2367613.531 | P24: 0.5155135261 | Q24: 0 | R24: 0.4844864739 | S24: =N24/N26 -> 0.01511639968
A25: microFIT | K25: 0 | L25: 0 | M25: 0 | N25: 0 | P25: 0 | Q25: 0 | R25: 0 | S25: =N25/N26 -> 0
A26: Total | C26: =SUM(C17:C25) -> 430476 | D26: =SUM(D17:D25) -> 8480948224 | E26: =SUM(E17:E25) -> 12515874 | K26: =SUM(K17:K25) -> 64296935.64 | L26: =SUM(L17:L25) -> 51552085.98 | M26: =SUM(M17:M25) -> 40776470.04 | N26: =SUM(N17:N25) -> 156625491.7 | S26: =SUM(S17:S25) -> 1

Sheet 9. STS - Billing Det & Rate HID (hidden)
A11: Shared Tax Savings
A12: ="Enter your " & '1. Information Sheet'!F32 & " Board-Approved Billing Determinents into columns B, C and D." -> Enter your 2013 Board-Approved Billing Determinents into columns B, C and D.
A16: Rate Class | B16: Units | C16: Re-based Billed Customers or Connections | D16: Re-based Billed kWh | E16: Re-based Billed kW (if applicable) | G16: ='1. Information Sheet'!F32 &" Base Monthly Service Charge" -> 2013 Base Monthly Service Charge | H16: ='1. Information Sheet'!F32 &" Base Distribution Volumetric Rate kWh" -> 2013 Base Distribution Volumetric Rate kWh | I16: ='1. Information Sheet'!F32 &" Base Distribution Volumetric Rate kW" -> 2013 Base Distribution Volumetric Rate kW
A17: RESIDENTIAL | B17: $/kWh | C17: 308309 | D17: 2732090682 | E17: 0 | G17: 12.34 | H17: 0.0136 | I17: 0
A18: GENERAL SERVICE LESS THAN 50 KW | B18: $/kWh | C18: 31199 | D18: 1051489461 | E18: 0 | G18: 25.39 | H18: 0.0135 | I18: 0
A19: GENERAL SERVICE 500 TO 4,999 KW | B19: $/kW | C19: 4662 | D19: 4560475622 | E19: 12149352 | G19: 134.81 | H19: 0 | I19: 3.2397
A20: LARGE USE | B20: $/kW | C20: 2 | D20: 63129774 | E20: 188221 | G20: 5808.4 | H20: 0 | I20: 1.3784
A21: STANDBY POWER | B21: $/kW | C21: 0 | D21: 0 | E21: 0 | G21: 0 | H21: 0 | I21: 2.6854
A22: UNMETERED SCATTERED LOAD | B22: $/kWh | C22: 2814 | D22: 12938386 | E22: 0 | G22: 6.82 | H22: 0.0155 | I22: 0
A23: SENTINEL LIGHTING | B23: $/kW | C23: 120 | D23: 474523 | E23: 1242 | G23: 3.32 | H23: 0 | I23: 7.805
A24: STREET LIGHTING | B24: $/kW | C24: 83370 | D24: 60349776 | E24: 177059 | G24: 1.22 | H24: 0 | I24: 6.4785
A25: microFIT | B25: 0 | C25: 0 | D25: 0 | E25: 0 | G25: 0 | H25: 0 | I25: 0

Sheet 11. STS - Tax Change
T1: Rate Base | U1: Federal Tax Rate
T2: 500000 | U2: 0.11
T3: 10000000 | U3: 0.11
T4: =T3+100000 -> 10100000 | U4: 0.11
T5: =T4+100000 -> 10200000 | U5: 0.11
T6: 10300000 | U6: 0.11
T7: 10400000 | U7: 0.11
T8: 10500000 | U8: 0.11
T9: 10600000 | U9: 0.11
T10: 10700000 | U10: 0.11
T11: 10800000 | U11: 0.11
T12: 10900000 | U12: 0.11
A13: Summary - Sharing of Tax Change Forecast Amounts | T13: 11000000 | U13: 0.11
T14: 11100000 | U14: 0.111
A15: ="For the " & '1. Information Sheet'!F32 & " year, enter any Tax Credits from the Cost of Service Tax Calculation (Positive #)" -> For the 2013 year, enter any Tax Credits from the Cost of Service Tax Calculation (Positive #) | L15: 717100 | T15: 11200000 | U15: =U14+0.13% -> 0.1123 | V15: =U15-U14 -> 0.0013
T16: 11300000 | U16: =U15+0.13% -> 0.1136 | V16: =U16-U15 -> 0.0013
T17: 11400000 | U17: 0.1149 | V17: 0.0013
A18: 1. Tax Related Amounts Forecast from Capital Tax Rate Changes | L18: ='1. Information Sheet'!F32 -> 2013 | N18: 2015 | T18: 11500000 | U18: 0.1162 | V18: 0.0013
A19: Taxable Capital (if you are not claiming capital tax, please enter your Board-Approved Rate Base) | L19: 832077119.8 | N19: =L19 -> 832077119.8 | T19: 11600000 | U19: =U18+0.12% -> 0.1174 | V19: 0.0012
T20: 11700000 | U20: =U19+0.12% -> 0.1186 | V20: 0.0012
A21: Deduction from taxable capital up to $15,000,000 | N21: =L21 -> 0 | T21: 11800000 | U21: 0.1198 | V21: 0.0012
T22: 11900000 | U22: 0.121 | V22: 0.0012
A23: Net Taxable Capital | L23: =L19-L21 -> 832077119.8 | N23: =N19-N21 -> 832077119.8 | T23: 12000000 | U23: =U22+0.112% -> 0.12212 | V23: 0.00112
T24: 12100000 | U24: =U23+0.112% -> 0.12324 | V24: 0.00112
A25: Rate | L25: 0 | N25: 0 | T25: 12200000 | U25: 0.12436 | V25: 0.00112
T26: 12300000 | U26: 0.12548 | V26: 0.00112
A27: Ontario Capital Tax (Deductible, not grossed-up) | L27: =IF(L23>0, L23*L25, 0)*181/365 -> 0 | N27: 0 | T27: 12400000 | U27: 0.1266 | V27: 0.00112
T28: 12500000 | U28: 0.12772 | V28: 0.00112
A29: 2. Tax Related Amounts Forecast from lncome Tax Rate Changes | T29: 12600000 | U29: =U28+0.102% -> 0.12874 | V29: 0.00102
A30: Regulatory Taxable Income | L30: 6989491 | N30: =L30 -> 6989491 | T30: 12700000 | U30: =U29+0.102% -> 0.12976 | V30: 0.00102
T31: 12800000 | U31: 0.13078 | V31: 0.00102
A32: Corporate Tax Rate | L32: 0.26 | N32: =IF(N30=0,0,IF(N30<=500000,4.5%+11%,IF(N30>500000,(11.5%*N30-35000)/N30+VLOOKUP(N19,T:U,2,TRUE),""))) -> 0.2599924823 | T32: 12900000 | U32: 0.1318 | V32: 0.00102
T33: 13000000 | U33: 0.13282 | V33: 0.00102
A34: Tax Impact | L34: 1100115 | N34: =N30*N32-L15 -> 1100115.115 | T34: 13100000 | U34: =U33+0.096% -> 0.13378 | V34: 0.00096
T35: 13200000 | U35: =U34+0.096% -> 0.13474 | V35: 0.00096
A36: Grossed-up Tax Amount | L36: 1486627 | N36: =N34/(1-N32) -> 1486626.945 | T36: 13300000 | U36: 0.1357 | V36: 0.00096
T37: 13400000 | U37: 0.13666 | V37: 0.00096
A38: Tax Related Amounts Forecast from Capital Tax Rate Changes | L38: =L27 -> 0 | N38: =N27 -> 0 | T38: 13500000 | U38: 0.13762 | V38: 0.00096
T39: 13600000 | U39: =U38+0.088% -> 0.1385 | V39: 0.00088
A40: Tax Related Amounts Forecast from lncome Tax Rate Changes | L40: =L36 -> 1486627 | N40: =N36 -> 1486626.945 | T40: 13700000 | U40: =U39+0.088% -> 0.13938 | V40: 0.00088
T41: 13800000 | U41: 0.14026 | V41: 0.00088
A42: Total Tax Related Amounts | L42: =SUM(L40,L38) -> 1486627 | N42: =SUM(N40,N38) -> 1486626.945 | T42: 13900000 | U42: 0.14114 | V42: 0.00088
T43: 14000000 | U43: 0.14202 | V43: 0.00088
A44: Incremental Tax Savings | N44: =N42-L42 -> -0.05545594194 | T44: 14100000 | U44: =U43+0.082% -> 0.14284 | V44: 0.00082
T45: 14200000 | U45: =U44+0.082% -> 0.14366 | V45: 0.00082
A46: Sharing of Tax Savings (50%) | N46: =0.5*N44 -> -0.02772797097 | T46: 14300000 | U46: 0.14448 | V46: 0.00082
T47: 14400000 | U47: 0.1453 | V47: 0.00082
T48: 14500000 | U48: 0.14612 | V48: 0.00082
T49: 14600000 | U49: =U48+0.076% -> 0.14688 | V49: 0.00076
T50: 14700000 | U50: =U49+0.076% -> 0.14764 | V50: 0.00076
T51: 14800000 | U51: 0.1484 | V51: 0.00076
T52: 14900000 | U52: 0.14916 | V52: 0.00076
T53: 15000000 | U53: 0.15 | V53: 0.00084

Sheet 12. STS - Tax Change Rate Rider
A11: This worksheet calculates a tax change volumetric rate rider. No input required. The outputs in columns M and O will appear on Sheet 27 - Final Tariff Schedule.
A14: If you would like to apply to record the tax sharing amount in account 1595 for disposition at future date due to the negligible rate riders produced below, please confirm by choosing YES. | P14: NO
A15: Rate Class | C15: Total Revenue $ by Rate Class | E15: Total Revenue % by Rate Class | G15: Allocation of Tax Savings by Rate Class | I15: Billed kWh | K15: Billed kW | M15: Distribution Volumetric Rate kWh Rate Rider | O15: Distribution Volumetric Rate kW Rate Rider
A17: RESIDENTIAL | C17: 82810830 | E17: =C17/C26 -> 0.5287187233 | G17: =E17*G26 -> -0.0158615617 | I17: 2732090682 | K17: 0 | M17: =G17/I17 -> -5.805649792e-12
A18: GENERAL SERVICE LESS THAN 50 KW | C18: 23700819.04 | E18: =C18/C26 -> 0.1513215939 | G18: =E18*G26 -> -0.004539647817 | I18: 1051489461 | K18: 0 | M18: =G18/I18 -> -4.317349803e-12
A19: GENERAL SERVICE 500 TO 4,999 KW | C19: 46902066.31 | E19: =C19/C26 -> 0.2994535935 | G19: =E19*G26 -> -0.008983607805 | I19: 4560475622 | K19: 12149352 | O19: =G19/K19 -> -7.394310252e-10
A20: LARGE USE | C20: 398845.4264 | E20: =C20/C26 -> 0.002546491137 | G20: =E20*G26 -> -7.639473412e-05 | I20: 63129774 | K20: 188221 | O20: =G20/K20 -> -4.058778464e-10
A21: STANDBY POWER | C21: 0 | E21: =C21/C26 -> 0 | G21: =E21*G26 -> 0 | I21: 0 | K21: 0
A22: UNMETERED SCATTERED LOAD | C22: 430842.743 | E22: =C22/C26 -> 0.00275078302 | G22: =E22*G26 -> -8.252349061e-05 | I22: 12938386 | K22: 0 | M22: =G22/I22 -> -6.378190495e-12
A23: SENTINEL LIGHTING | C23: 14474.61 | E23: =C23/C26 -> 9.24154162e-05 | G23: =E23*G26 -> -2.772462486e-06 | I23: 474523 | K23: 1242 | O23: =G23/K23 -> -2.23225643e-09
A24: STREET LIGHTING | C24: 2367613.531 | E24: =C24/C26 -> 0.01511639968 | G24: =E24*G26 -> -0.0004534919903 | I24: 60349776 | K24: 177059 | O24: =G24/K24 -> -2.561247891e-09
A25: microFIT | C25: 0 | E25: =C25/C26 -> 0 | G25: =E25*G26 -> 0
A26: Total | C26: =SUM(C17:C25) -> 156625491.7 | E26: =SUM(E17:E25) -> 1 | G26: -0.03 | I26: =SUM(I17:I25) -> 8480948224 | K26: =SUM(K17:K25) -> 12515874

Sheet 13. RTSR Rate Sheet
A13: No input required. This sheet consolidates all Current Retail Transmission Rates entered on Sheet 4.
A15: Rate Class | B15: Rate Description | C15: Unit | D15: RTSR-Network | E15: RTSR-Connection
A17: RESIDENTIAL | B17: Retail Transmission Rate - Network Service Rate | C17: $/kWh | D17: 0.0077
A18: RESIDENTIAL | B18: Retail Transmission Rate - Line and Transformation Connection Service Rate | C18: $/kWh | E18: 0.0034
A19: GENERAL SERVICE LESS THAN 50 KW | B19: Retail Transmission Rate - Network Service Rate | C19: $/kWh | D19: 0.007
A20: GENERAL SERVICE LESS THAN 50 KW | B20: Retail Transmission Rate - Line and Transformation Connection Service Rate | C20: $/kWh | E20: 0.0029
A21: GENERAL SERVICE 500 TO 4,999 KW | B21: Retail Transmission Rate - Network Service Rate | C21: $/kW | D21: 2.8192
A22: GENERAL SERVICE 500 TO 4,999 KW | B22: Retail Transmission Rate - Line and Transformation Connection Service Rate | C22: $/kW | E22: 1.1439
A23: GENERAL SERVICE 500 TO 4,999 KW | B23: Retail Transmission Rate - Network Service Rate - Interval Metered | C23: $/kW | D23: 2.9553
A24: GENERAL SERVICE 500 TO 4,999 KW | B24: Retail Transmission Rate - Line and Transformation Connection Service Rate - Interval Metered | C24: $/kW | E24: 1.2376
A25: LARGE USE | B25: Retail Transmission Rate - Network Service Rate | C25: $/kW | D25: 3.3451
A26: LARGE USE | B26: Retail Transmission Rate - Line and Transformation Connection Service Rate | C26: $/kW | E26: 1.1732
A27: UNMETERED SCATTERED LOAD | B27: Retail Transmission Rate - Network Service Rate | C27: $/kWh | D27: 0.007
A28: UNMETERED SCATTERED LOAD | B28: Retail Transmission Rate - Line and Transformation Connection Service Rate | C28: $/kWh | E28: 0.0033
A29: SENTINEL LIGHTING | B29: Retail Transmission Rate - Network Service Rate | C29: $/kW | D29: 2.1788
A30: SENTINEL LIGHTING | B30: Retail Transmission Rate - Line and Transformation Connection Service Rate | C30: $/kW | E30: 0.8418
A31: STREET LIGHTING | B31: Retail Transmission Rate - Network Service Rate | C31: $/kW | D31: 2.1442
A32: STREET LIGHTING | B32: Retail Transmission Rate - Line and Transformation Connection Service Rate | C32: $/kW | E32: 0.927

Sheet 14. RTSR RRR Data
A12: In the green shaded cells, enter the most recent reported RRR billing determinants. Please ensure that billing determinants are non-loss adjusted.
A14: Rate Class | B14: Rate Description | C14: Unit | D14: Non-Loss Adjusted Metered kWh | E14: Non-Loss Adjusted Metered kW | F14: Applicable Loss Factor | H14: Load Factor | I14: Loss Adjusted Billed kWh | J14: Billed kW
A15: RESIDENTIAL | B15: Retail Transmission Rate - Network Service Rate | C15: $/kWh | D15: 2691200335 | E15: 0 | F15: 1.0345 | H15: =IF(C15="$/kW", D15/(E15* 30.4 * 24), "" ) ->  | I15: =IF(OR(F15=0, OR(ISBLANK(F15), TRIM(F15)="")), F15, F15 * D15) -> 2784046746 | J15: =IF(OR(F15=0, OR(ISBLANK(F15), TRIM(F15)="")), E15, E15) -> 0
A16: RESIDENTIAL | B16: Retail Transmission Rate - Line and Transformation Connection Service Rate | C16: $/kWh | D16: 2691200335 | E16: 0 | F16: 1.0345 | I16: 2784046746 | J16: 0
A17: GENERAL SERVICE LESS THAN 50 KW | B17: Retail Transmission Rate - Network Service Rate | C17: $/kWh | D17: 1023964951 | E17: 0 | F17: 1.0345 | I17: 1059291742 | J17: 0
A18: GENERAL SERVICE LESS THAN 50 KW | B18: Retail Transmission Rate - Line and Transformation Connection Service Rate | C18: $/kWh | D18: 1023964951 | E18: 0 | F18: 1.0345 | I18: 1059291742 | J18: 0
A19: GENERAL SERVICE 500 TO 4,999 KW | B19: Retail Transmission Rate - Network Service Rate | C19: $/kW | D19: 0 | E19: 6830758.045 | F19: 0 | H19: 0 | I19: 0 | J19: 6830758.045
A20: GENERAL SERVICE 500 TO 4,999 KW | B20: Retail Transmission Rate - Line and Transformation Connection Service Rate | C20: $/kW | D20: 0 | E20: 6830758.045 | F20: 0 | H20: 0 | I20: 0 | J20: 6830758.045
A21: GENERAL SERVICE 500 TO 4,999 KW | B21: Retail Transmission Rate - Network Service Rate - Interval Metered | C21: $/kW | D21: 0 | E21: 5473652.053 | F21: 0 | H21: 0 | I21: 0 | J21: 5473652.053
A22: GENERAL SERVICE 500 TO 4,999 KW | B22: Retail Transmission Rate - Line and Transformation Connection Service Rate - Interval Metered | C22: $/kW | D22: 0 | E22: 5473652.053 | F22: 0 | H22: 0 | I22: 0 | J22: 5473652.053
A23: LARGE USE | B23: Retail Transmission Rate - Network Service Rate | C23: $/kW | D23: 0 | E23: 132253.6428 | F23: 0 | H23: 0 | I23: 0 | J23: 132253.6428
A24: LARGE USE | B24: Retail Transmission Rate - Line and Transformation Connection Service Rate | C24: $/kW | D24: 0 | E24: 132253.6428 | F24: 0 | H24: 0 | I24: 0 | J24: 132253.6428
A25: UNMETERED SCATTERED LOAD | B25: Retail Transmission Rate - Network Service Rate | C25: $/kWh | D25: 13143808.36 | E25: 0 | F25: 1.0345 | I25: 13597269.75 | J25: 0
A26: UNMETERED SCATTERED LOAD | B26: Retail Transmission Rate - Line and Transformation Connection Service Rate | C26: $/kWh | D26: 13143808.36 | E26: 0 | F26: 1.0345 | I26: 13597269.75 | J26: 0
A27: SENTINEL LIGHTING | B27: Retail Transmission Rate - Network Service Rate | C27: $/kW | D27: 0 | E27: 1062.250256 | F27: 0 | H27: 0 | I27: 0 | J27: 1062.250256
A28: SENTINEL LIGHTING | B28: Retail Transmission Rate - Line and Transformation Connection Service Rate | C28: $/kW | D28: 0 | E28: 1062.250256 | F28: 0 | H28: 0 | I28: 0 | J28: 1062.250256
A29: STREET LIGHTING | B29: Retail Transmission Rate - Network Service Rate | C29: $/kW | D29: 0 | E29: 172176.2489 | F29: 0 | H29: 0 | I29: 0 | J29: 172176.2489
A30: STREET LIGHTING | B30: Retail Transmission Rate - Line and Transformation Connection Service Rate | C30: $/kW | D30: 0 | E30: 172176.2489 | F30: 0 | H30: 0 | I30: 0 | J30: 172176.2489

Sheet 14. RTSR RRR Data Copy (hidden)
A12: In the green shaded cells, enter the most recent reported RRR billing determinants. Please ensure that billing determinants are non-loss adjusted.
A14: Rate Class | B14: Rate Description | C14: Unit | D14: Non-Loss Adjusted Metered kWh | E14: Non-Loss Adjusted Metered kW | F14: Applicable Loss Factor | H14: Load Factor | I14: Loss Adjusted Billed kWh | J14: Billed kW
A15: RESIDENTIAL | B15: Retail Transmission Rate - Network Service Rate | C15: $/kWh | D15: 2691200335 | E15: 0 | F15: 1.0345
A16: RESIDENTIAL | B16: Retail Transmission Rate - Line and Transformation Connection Service Rate | C16: $/kWh | D16: 2691200335 | E16: 0 | F16: 1.0345
A17: GENERAL SERVICE LESS THAN 50 KW | B17: Retail Transmission Rate - Network Service Rate | C17: $/kWh | D17: 1023964951 | E17: 0 | F17: 1.0345
A18: GENERAL SERVICE LESS THAN 50 KW | B18: Retail Transmission Rate - Line and Transformation Connection Service Rate | C18: $/kWh | D18: 1023964951 | E18: 0 | F18: 1.0345
A19: GENERAL SERVICE 500 TO 4,999 KW | B19: Retail Transmission Rate - Network Service Rate | C19: $/kW | D19: 0 | E19: 6830758.045 | F19: 0
A20: GENERAL SERVICE 500 TO 4,999 KW | B20: Retail Transmission Rate - Line and Transformation Connection Service Rate | C20: $/kW | D20: 0 | E20: 6830758.045 | F20: 0
A21: GENERAL SERVICE 500 TO 4,999 KW | B21: Retail Transmission Rate - Network Service Rate - Interval Metered | C21: $/kW | D21: 0 | E21: 5473652.053 | F21: 0
A22: GENERAL SERVICE 500 TO 4,999 KW | B22: Retail Transmission Rate - Line and Transformation Connection Service Rate - Interval Metered | C22: $/kW | D22: 0 | E22: 5473652.053 | F22: 0
A23: LARGE USE | B23: Retail Transmission Rate - Network Service Rate | C23: $/kW | D23: 0 | E23: 132253.6428 | F23: 0
A24: LARGE USE | B24: Retail Transmission Rate - Line and Transformation Connection Service Rate | C24: $/kW | D24: 0 | E24: 132253.6428 | F24: 0
A25: UNMETERED SCATTERED LOAD | B25: Retail Transmission Rate - Network Service Rate | C25: $/kWh | D25: 13143808.36 | E25: 0 | F25: 1.0345
A26: UNMETERED SCATTERED LOAD | B26: Retail Transmission Rate - Line and Transformation Connection Service Rate | C26: $/kWh | D26: 13143808.36 | E26: 0 | F26: 1.0345
A27: SENTINEL LIGHTING | B27: Retail Transmission Rate - Network Service Rate | C27: $/kW | D27: 0 | E27: 1062.250256 | F27: 0
A28: SENTINEL LIGHTING | B28: Retail Transmission Rate - Line and Transformation Connection Service Rate | C28: $/kW | D28: 0 | E28: 1062.250256 | F28: 0
A29: STREET LIGHTING | B29: Retail Transmission Rate - Network Service Rate | C29: $/kW | D29: 0 | E29: 172176.2489 | F29: 0
A30: STREET LIGHTING | B30: Retail Transmission Rate - Line and Transformation Connection Service Rate | C30: $/kW | D30: 0 | E30: 172176.2489 | F30: 0

Sheet 15. RTSR - UTRs & Sub-Tx
B18: Uniform Transmission Rates | C18: Unit | E18: Effective January 1, 2013 | G18: Effective January 1, 2014 | I18: Effective January 1, 2015
B20: Rate Description | E20: Rate | G20: Rate | I20: Rate
B22: Network Service Rate | C22: kW | E22: 3.63 | G22: 3.82 | I22: 3.82
B24: Line Connection Service Rate | C24: kW | E24: 0.75 | G24: 0.82 | I24: 0.82
B26: Transformation Connection Service Rate | C26: kW | E26: 1.85 | G26: 1.98 | I26: 1.98
B29: Hydro One Sub-Transmission Rates | C29: Unit | E29: Effective January 1, 2013 | G29: Effective January 1, 2014 | I29: Effective January 1, 2015
B33: Rate Description | E33: Rate | G33: Rate | I33: Rate
B35: Network Service Rate | C35: kW | E35: 3.18 | G35: 3.23 | I35: 3.23
B37: Line Connection Service Rate | C37: kW | E37: 0.7 | G37: 0.65 | I37: 0.65
B39: Transformation Connection Service Rate | C39: kW | E39: 1.63 | G39: 1.62 | I39: 1.62
B41: Both Line and Transformation Connection Service Rate | C41: kW | E41: =E39+E37 -> 2.33 | G41: =G39+G37 -> 2.27 | I41: =I39+I37 -> 2.27
B44: If needed , add extra host here (I) | C44: Unit | E44: Effective January 1, 2013 | G44: Effective January 1, 2014 | I44: Effective January 1, 2015
B48: Rate Description | E48: Rate | G48: Rate | I48: Rate
B50: Network Service Rate | C50: kW
B52: Line Connection Service Rate | C52: kW
B54: Transformation Connection Service Rate | C54: kW
B56: Both Line and Transformation Connection Service Rate | C56: kW | E56: =E54+E52 -> 0 | G56: =G54+G52 -> 0 | I56: =I54+I52 -> 0
B59: If needed , add extra host here (II) | C59: Unit | E59: Effective January 1, 2013 | G59: Effective January 1, 2014 | I59: Effective January 1, 2015
B63: Rate Description | E63: Rate | G63: Rate | I63: Rate
B65: Network Service Rate | C65: kW
B67: Line Connection Service Rate | C67: kW
B69: Transformation Connection Service Rate | C69: kW
B71: Both Line and Transformation Connection Service Rate | C71: kW | E71: =E69+E67 -> 0 | G71: =G69+G67 -> 0 | I71: =I69+I67 -> 0
B75: Hydro One Sub-Transmission Rate Rider 9A | C75: Unit | E75: Effective January 1, 2013 | G75: Effective January 1, 2014 | I75: Effective January 1, 2015
B77: Rate Description | E77: Rate | G77: Rate | I77: Rate
B79: RSVA Transmission network – 4714 – which affects 1584 | C79: kW | E79: 0 | G79: 0.1465
B81: RSVA Transmission connection – 4716 – which affects 1586 | C81: kW | E81: 0 | G81: 0.0667
B83: RSVA LV – 4750 – which affects 1550 | C83: kW | E83: 0 | G83: 0.0475
B85: RARA 1 – 2252 – which affects 1590 | C85: kW | E85: 0 | G85: 0.0419
B87: RARA 1 – 2252 – which affects 1590 (2008) | C87: kW | E87: 0 | G87: -0.027
B89: RARA 1 – 2252 – which affects 1590 (2009) | C89: kW | E89: 0 | G89: -0.0006
B91: Hydro One Sub-Transmission Rate Rider 9A | C91: kW | E91: =SUM(E79:E89) -> 0 | G91: =SUM(G79:G89) -> 0.275 | I91: =SUM(I79:I89) -> 0
E94: Historical 2013 | G94: Current 2014 | I94: Forecast 2015
B95: Low Voltage Switchgear Credit (if applicable, enter as a negative value) | C95: $

Sheet 16. RTSR - Historical Wholesale
B13: In the green shaded cells, enter billing detail for wholesale transmission for the same reporting period as the billing determinants on Sheet "14. RTSR RRR Data". For Hydro One Sub-transmission Rates, if you are charged a combined Line and Transformer connection rate, please ensure that both the line connection and transformer connection columns are completed.
B16: IESO | D16: Network | H16: Line Connection | L16: Transformation Connection | P16: Total Line
B17: Month | D17: Units Billed | E17: Rate | F17: Amount | H17: Units Billed | I17: Rate | J17: Amount | L17: Units Billed | M17: Rate | N17: Amount | P17: Amount
B19: January | D19: 1211725 | E19: =IF(D19<>0,F19/D19,0) -> 3.63 | F19: 4398561.75 | H19: 1278658 | I19: =IF(H19<>0,J19/H19,0) -> 0.75 | J19: 958993.5 | L19: 415037 | M19: =IF(L19<>0,N19/L19,0) -> 1.85 | N19: 767818.45 | P19: =J19+N19 -> 1726811.95
B20: February | D20: 1125368 | E20: 3.63 | F20: 4085085.84 | H20: 1206003 | I20: 0.75 | J20: 904502.25 | L20: 354056 | M20: 1.85 | N20: 655003.6 | P20: 1559505.85
B21: March | D21: 1088049 | E21: 3.63 | F21: 3949617.87 | H21: 1182237 | I21: 0.75 | J21: 886677.75 | L21: 336429 | M21: 1.85 | N21: 622393.65 | P21: 1509071.4
B22: April | D22: 1069924 | E22: 3.63 | F22: 3883824.12 | H22: 1199438.92 | I22: 0.75 | J22: 899579.19 | L22: 320932 | M22: 1.85 | N22: 593724.2 | P22: 1493303.39
B23: May | D23: 1366297 | E23: 3.63 | F23: 4959658.11 | H23: 1405199 | I23: 0.75 | J23: 1053899.25 | L23: 361054 | M23: 1.85 | N23: 667949.9 | P23: 1721849.15
B24: June | D24: 1539016 | E24: 3.63 | F24: 5586628.08 | H24: 1615530 | I24: 0.75 | J24: 1211647.5 | L24: 413517 | M24: 1.85 | N24: 765006.45 | P24: 1976653.95
B25: July | D25: 1713364 | E25: 3.63 | F25: 6219511.32 | H25: 1802227 | I25: 0.75 | J25: 1351670.25 | L25: 422317 | M25: 1.85 | N25: 781286.45 | P25: 2132956.7
B26: August | D26: 1490181 | E26: 3.63 | F26: 5409357.03 | H26: 1551212 | I26: 0.75 | J26: 1163409 | L26: 393617 | M26: 1.85 | N26: 728191.45 | P26: 1891600.45
B27: September | D27: 1529344 | E27: 3.63 | F27: 5551518.72 | H27: 1580143 | I27: 0.75 | J27: 1185107.25 | L27: 382274 | M27: 1.85 | N27: 707206.9 | P27: 1892314.15
B28: October | D28: 1054273 | E28: 3.63 | F28: 3827010.99 | H28: 1195055 | I28: 0.75 | J28: 896291.25 | L28: 324730 | M28: 1.85 | N28: 600750.5 | P28: 1497041.75
B29: November | D29: 1160538 | E29: 3.63 | F29: 4212752.94 | H29: 1268068 | I29: 0.75 | J29: 951051 | L29: 387958 | M29: 1.85 | N29: 717722.3 | P29: 1668773.3
B30: December | D30: 1184325 | E30: 3.63 | F30: 4299099.75 | H30: 1281971 | I30: 0.75 | J30: 961478.25 | L30: 346343 | M30: 1.85 | N30: 640734.55 | P30: 1602212.8
B32: Total | D32: =SUM(D19:D30) -> 15532404 | E32: =IF(D32<>0,F32/D32,0) -> 3.63 | F32: =SUM(F19:F30) -> 56382626.52 | H32: =SUM(H19:H30) -> 16565741.92 | I32: =IF(H32<>0,J32/H32,0) -> 0.75 | J32: =SUM(J19:J30) -> 12424306.44 | L32: =SUM(L19:L30) -> 4458264 | M32: =IF(L32<>0,N32/L32,0) -> 1.85 | N32: =SUM(N19:N30) -> 8247788.4 | P32: =SUM(P19:P30) -> 20672094.84
B34: Hydro One | D34: Network | H34: Line Connection | L34: Transformation Connection | P34: Total Line
B36: Month | D36: Units Billed | E36: Rate | F36: Amount | H36: Units Billed | I36: Rate | J36: Amount | L36: Units Billed | M36: Rate | N36: Amount | P36: Amount
B38: January | D38: 207785 | E38: =IF(D38<>0,F38/D38,0) -> 3.18 | F38: 660756.3 | H38: 207882 | I38: =IF(H38<>0,J38/H38,0) -> 0.7 | J38: 145517.4 | L38: 207882 | M38: =IF(L38<>0,N38/L38,0) -> 1.63 | N38: 338847.66 | P38: =J38+N38 -> 484365.06
B39: February | D39: 201313 | E39: 3.18 | F39: 640175.34 | H39: 201471 | I39: 0.7 | J39: 141029.7 | L39: 201471 | M39: 1.63 | N39: 328397.73 | P39: 469427.43
B40: March | D40: 172031.8711 | E40: 3.18 | F40: 547061.35 | H40: 176733.073 | I40: 0.7 | J40: 123713.1511 | L40: 176733.073 | M40: 1.63 | N40: 288074.9089 | P40: 411788.06
B41: April | D41: 156780.3962 | E41: 3.18 | F41: 498561.66 | H41: 159943.6953 | I41: 0.7 | J41: 111960.5867 | L41: 159943.6953 | M41: 1.63 | N41: 260708.2233 | P41: 372668.81
B42: May | D42: 194350.827 | E42: 3.18 | F42: 618035.63 | H42: 194428.5665 | I42: 0.7 | J42: 136099.9966 | L42: 194428.5665 | M42: 1.63 | N42: 316918.5634 | P42: 453018.56
B43: June | D43: 252990.0786 | E43: 3.18 | F43: 804508.45 | H43: 253003.8927 | I43: 0.7 | J43: 177102.7249 | L43: 253003.8927 | M43: 1.63 | N43: 412396.3451 | P43: 589499.07
B44: July | D44: 244810.9434 | E44: 3.18 | F44: 778498.8 | H44: 244822.5966 | I44: 0.7 | J44: 171375.8176 | L44: 244822.5966 | M44: 1.63 | N44: 399060.8324 | P44: 570436.65
B45: August | D45: 237230.0692 | E45: 3.18 | F45: 754391.62 | H45: 237230.0558 | I45: 0.7 | J45: 166061.0391 | L45: 237230.0558 | M45: 1.63 | N45: 386684.9909 | P45: 552746.03
B46: September | D46: 250030.2368 | E46: 3.18 | F46: 795096.153 | H46: 250692.9742 | I46: 0.7 | J46: 175485.082 | L46: 250692.9742 | M46: 1.63 | N46: 408629.548 | P46: 584114.63
B47: October | D47: 185529.9686 | E47: 3.18 | F47: 589985.3 | H47: 187384.2403 | I47: 0.7 | J47: 131168.9682 | L47: 187384.2403 | M47: 1.63 | N47: 305436.3118 | P47: 436605.28
B48: November | D48: 214908.9937 | E48: 3.18 | F48: 683410.6 | H48: 215024.5923 | I48: 0.7 | J48: 150517.2146 | L48: 215024.5923 | M48: 1.63 | N48: 350490.0854 | P48: 501007.3
B49: December | D49: 212886.6101 | E49: 3.18 | F49: 676979.42 | H49: 211094.8755 | I49: 0.7 | J49: 147766.4129 | L49: 211094.8755 | M49: 1.63 | N49: 344084.6471 | P49: 491851.06
B51: Total | D51: =SUM(D38:D49) -> 2530647.995 | E51: =IF(D51<>0,F51/D51,0) -> 3.18 | F51: =SUM(F38:F49) -> 8047460.623 | H51: =SUM(H38:H49) -> 2539711.562 | I51: =IF(H51<>0,J51/H51,0) -> 0.7 | J51: =SUM(J38:J49) -> 1777798.094 | L51: =SUM(L38:L49) -> 2539711.562 | M51: =IF(L51<>0,N51/L51,0) -> 1.63 | N51: =SUM(N38:N49) -> 4139729.846 | P51: =SUM(P38:P49) -> 5917527.94
B53: Add Extra Host Here (I) | D53: Network | H53: Line Connection | L53: Transformation Connection | P53: Total Line
B54: (if needed)
B55: Month | D55: Units Billed | E55: Rate | F55: Amount | H55: Units Billed | I55: Rate | J55: Amount | L55: Units Billed | M55: Rate | N55: Amount | P55: Amount
B57: January | E57: =IF(D57<>0,F57/D57,0) -> 0 | I57: =IF(H57<>0,J57/H57,0) -> 0 | M57: =IF(L57<>0,N57/L57,0) -> 0 | P57: =J57+N57 -> 0
B58: February | E58: 0 | I58: 0 | M58: 0 | P58: 0
B59: March | E59: 0 | I59: 0 | M59: 0 | P59: 0
B60: April | E60: 0 | I60: 0 | M60: 0 | P60: 0
B61: May | E61: 0 | I61: 0 | M61: 0 | P61: 0
B62: June | E62: 0 | I62: 0 | M62: 0 | P62: 0
B63: July | E63: 0 | I63: 0 | M63: 0 | P63: 0
B64: August | E64: 0 | I64: 0 | M64: 0 | P64: 0
B65: September | E65: 0 | I65: 0 | M65: 0 | P65: 0
B66: October | E66: 0 | I66: 0 | M66: 0 | P66: 0
B67: November | E67: 0 | I67: 0 | M67: 0 | P67: 0
B68: December | E68: 0 | I68: 0 | M68: 0 | P68: 0
B70: Total | D70: =SUM(D57:D68) -> 0 | E70: =IF(D70<>0,F70/D70,0) -> 0 | F70: =SUM(F57:F68) -> 0 | H70: =SUM(H57:H68) -> 0 | I70: =IF(H70<>0,J70/H70,0) -> 0 | J70: =SUM(J57:J68) -> 0 | L70: =SUM(L57:L68) -> 0 | M70: =IF(L70<>0,N70/L70,0) -> 0 | N70: =SUM(N57:N68) -> 0 | P70: =SUM(P57:P68) -> 0
B72: Add Extra Host Here (II) | D72: Network | H72: Line Connection | L72: Transformation Connection | P72: Total Line
B73: (if needed)
B74: Month | D74: Units Billed | E74: Rate | F74: Amount | H74: Units Billed | I74: Rate | J74: Amount | L74: Units Billed | M74: Rate | N74: Amount | P74: Amount
B76: January | E76: =IF(D76<>0,F76/D76,0) -> 0 | I76: =IF(H76<>0,J76/H76,0) -> 0 | M76: =IF(L76<>0,N76/L76,0) -> 0 | P76: =J76+N76 -> 0
B77: February | E77: 0 | I77: 0 | M77: 0 | P77: 0
B78: March | E78: 0 | I78: 0 | M78: 0 | P78: 0
B79: April | E79: 0 | I79: 0 | M79: 0 | P79: 0
B80: May | E80: 0 | I80: 0 | M80: 0 | P80: 0
B81: June | E81: 0 | I81: 0 | M81: 0 | P81: 0
B82: July | E82: 0 | I82: 0 | M82: 0 | P82: 0
B83: August | E83: 0 | I83: 0 | M83: 0 | P83: 0
B84: September | E84: 0 | I84: 0 | M84: 0 | P84: 0
B85: October | E85: 0 | I85: 0 | M85: 0 | P85: 0
B86: November | E86: 0 | I86: 0 | M86: 0 | P86: 0
B87: December | E87: 0 | I87: 0 | M87: 0 | P87: 0
B89: Total | D89: =SUM(D76:D87) -> 0 | E89: =IF(D89<>0,F89/D89,0) -> 0 | F89: =SUM(F76:F87) -> 0 | H89: =SUM(H76:H87) -> 0 | I89: =IF(H89<>0,J89/H89,0) -> 0 | J89: =SUM(J76:J87) -> 0 | L89: =SUM(L76:L87) -> 0 | M89: =IF(L89<>0,N89/L89,0) -> 0 | N89: =SUM(N76:N87) -> 0 | P89: =SUM(P76:P87) -> 0
B91: Total | D91: Network | H91: Line Connection | L91: Transformation Connection | P91: Total Line
B93: Month | D93: Units Billed | E93: Rate | F93: Amount | H93: Units Billed | I93: Rate | J93: Amount | L93: Units Billed | M93: Rate | N93: Amount | P93: Amount
B95: January | D95: =D19+D38+D57+D76 -> 1419510 | E95: =IF(D95<>0,F95/D95,0) -> 3.564129911 | F95: =F19+F38+F57+F76 -> 5059318.05 | H95: =H19+H38+H57+H76 -> 1486540 | I95: =IF(H95<>0,J95/H95,0) -> 0.7430078572 | J95: =J19+J38+J57+J76 -> 1104510.9 | L95: =L19+L38+L57+L76 -> 622919 | M95: =IF(L95<>0,N95/L95,0) -> 1.77658108 | N95: =N19+N38+N57+N76 -> 1106666.11 | P95: =J95+N95 -> 2211177.01
B96: February | D96: =D20+D39+D58+D77 -> 1326681 | E96: 3.561716177 | F96: =F20+F39+F58+F77 -> 4725261.18 | H96: =H20+H39+H58+H77 -> 1407474 | I96: 0.7428428163 | J96: =J20+J39+J58+J77 -> 1045531.95 | L96: =L20+L39+L58+L77 -> 555527 | M96: 1.770213383 | N96: =N20+N39+N58+N77 -> 983401.33 | P96: 2028933.28
B97: March | D97: 1260080.871 | E97: 3.568563989 | F97: 4496679.22 | H97: 1358970.073 | I97: 0.7434975362 | J97: 1010390.901 | L97: 513162.073 | M97: 1.774231976 | N97: 910468.5589 | P97: 1920859.46
B98: April | D98: 1226704.396 | E98: 3.572487221 | F98: 4382385.78 | H98: 1359382.615 | I98: 0.7441170465 | J98: 1011539.777 | L98: 480875.6953 | M98: 1.776825969 | N98: 854432.4233 | P98: 1865972.2
B99: May | D99: 1560647.827 | E99: 3.573960533 | F99: 5577693.74 | H99: 1599627.567 | I99: 0.7439226927 | J99: 1189999.247 | L99: 555482.5665 | M99: 1.772996171 | N99: 984868.4634 | P99: 2174867.71
B100: June | D100: 1792006.079 | E100: 3.566470341 | F100: 6391136.53 | H100: 1868533.893 | I100: 0.7432298822 | J100: 1388750.225 | L100: 666520.8927 | M100: 1.766490455 | N100: 1177402.795 | P100: 2566153.02
B101: July | D101: 1958174.943 | E101: 3.57374102 | F101: 6998010.12 | H101: 2047049.597 | I101: 0.7440201108 | J101: 1523046.068 | L101: 667139.5966 | M101: 1.769265816 | N101: 1180347.282 | P101: 2703393.35
B102: August | D102: 1727411.069 | E102: 3.568200274 | F102: 6163748.65 | H102: 1788442.056 | I102: 0.7433676896 | J102: 1329470.039 | L102: 630847.0558 | M102: 1.767268993 | N102: 1114876.441 | P102: 2444346.48
B103: September | D103: 1779374.237 | E103: 3.566767879 | F103: 6346614.873 | H103: 1830835.974 | I103: 0.7431535927 | J103: 1360592.332 | L103: 632966.9742 | M103: 1.762866774 | N103: 1115836.448 | P103: 2476428.78
B104: October | D104: 1239802.969 | E104: 3.562659876 | F104: 4416996.29 | H104: 1382439.24 | I104: 0.7432226953 | J104: 1027460.218 | L104: 512114.2403 | M104: 1.769501296 | N104: 906186.8118 | P104: 1933647.03
B105: November | D105: 1375446.994 | E105: 3.559689005 | F105: 4896163.54 | H105: 1483092.592 | I105: 0.7427508035 | J105: 1101568.215 | L105: 602982.5923 | M105: 1.771547635 | N105: 1068212.385 | P105: 2169780.6
B106: December | D106: 1397211.61 | E106: 3.561435601 | F106: 4976079.17 | H106: 1493065.876 | I106: 0.7429308251 | J106: 1109244.663 | L106: 557437.8755 | M106: 1.766688703 | N106: 984819.1971 | P106: 2094063.86
B108: Total | D108: =SUM(D95:D106) -> 18063051.99 | E108: =IF(D108<>0,F108/D108,0) -> 3.566954641 | F108: =SUM(F95:F106) -> 64430087.14 | H108: =SUM(H95:H106) -> 19105453.48 | I108: =IF(H108<>0,J108/H108,0) -> 0.7433534382 | J108: =SUM(J95:J106) -> 14202104.53 | L108: =SUM(L95:L106) -> 6997975.562 | M108: =IF(L108<>0,N108/L108,0) -> 1.770157403 | N108: =SUM(N95:N106) -> 12387518.25 | P108: =SUM(P95:P106) -> 26589622.78
N110: Transformer Allowance Credit (if applicable) | P110: ='15. RTSR - UTRs & Sub-Tx'!E95 -> 0
N112: Total including deduction for Transformer Allowance Credit | P112: =P108+P110 -> 26589622.78

Sheet 17. RTSR - Current Wholesale
B13: The purpose of this sheet is to calculate the expected billing when current 2014 Uniform Transmission Rates are applied against historical 2013 transmission units.
B16: IESO | D16: Network | H16: Line Connection | L16: Transformation Connection | P16: Total Line
B18: Month | D18: Units Billed | E18: Rate | F18: Amount | H18: Units Billed | I18: Rate | J18: Amount | L18: Units Billed | M18: Rate | N18: Amount | P18: Amount
B20: January | D20: ='16. RTSR - Historical Wholesale'!D19 -> 1211725 | E20: ='15. RTSR - UTRs & Sub-Tx'!G22 -> 3.82 | F20: =D20*E20 -> 4628789.5 | H20: ='16. RTSR - Historical Wholesale'!H19 -> 1278658 | I20: ='15. RTSR - UTRs & Sub-Tx'!G24 -> 0.82 | J20: =H20*I20 -> 1048499.56 | L20: ='16. RTSR - Historical Wholesale'!L19 -> 415037 | M20: ='15. RTSR - UTRs & Sub-Tx'!G26 -> 1.98 | N20: =L20*M20 -> 821773.26 | P20: =J20+N20 -> 1870272.82
B21: February | D21: ='16. RTSR - Historical Wholesale'!D20 -> 1125368 | E21: =E20 -> 3.82 | F21: =D21*E21 -> 4298905.76 | H21: ='16. RTSR - Historical Wholesale'!H20 -> 1206003 | I21: =I20 -> 0.82 | J21: =H21*I21 -> 988922.46 | L21: ='16. RTSR - Historical Wholesale'!L20 -> 354056 | M21: =M20 -> 1.98 | N21: =L21*M21 -> 701030.88 | P21: 1689953.34
B22: March | D22: ='16. RTSR - Historical Wholesale'!D21 -> 1088049 | E22: =E21 -> 3.82 | F22: 4156347.18 | H22: ='16. RTSR - Historical Wholesale'!H21 -> 1182237 | I22: =I21 -> 0.82 | J22: 969434.34 | L22: ='16. RTSR - Historical Wholesale'!L21 -> 336429 | M22: =M21 -> 1.98 | N22: 666129.42 | P22: 1635563.76
B23: April | D23: ='16. RTSR - Historical Wholesale'!D22 -> 1069924 | E23: 3.82 | F23: 4087109.68 | H23: ='16. RTSR - Historical Wholesale'!H22 -> 1199438.92 | I23: 0.82 | J23: 983539.9144 | L23: ='16. RTSR - Historical Wholesale'!L22 -> 320932 | M23: 1.98 | N23: 635445.36 | P23: 1618985.274
B24: May | D24: ='16. RTSR - Historical Wholesale'!D23 -> 1366297 | E24: 3.82 | F24: 5219254.54 | H24: ='16. RTSR - Historical Wholesale'!H23 -> 1405199 | I24: 0.82 | J24: 1152263.18 | L24: ='16. RTSR - Historical Wholesale'!L23 -> 361054 | M24: 1.98 | N24: 714886.92 | P24: 1867150.1
B25: June | D25: ='16. RTSR - Historical Wholesale'!D24 -> 1539016 | E25: 3.82 | F25: 5879041.12 | H25: ='16. RTSR - Historical Wholesale'!H24 -> 1615530 | I25: 0.82 | J25: 1324734.6 | L25: ='16. RTSR - Historical Wholesale'!L24 -> 413517 | M25: 1.98 | N25: 818763.66 | P25: 2143498.26
B26: July | D26: ='16. RTSR - Historical Wholesale'!D25 -> 1713364 | E26: 3.82 | F26: 6545050.48 | H26: ='16. RTSR - Historical Wholesale'!H25 -> 1802227 | I26: 0.82 | J26: 1477826.14 | L26: ='16. RTSR - Historical Wholesale'!L25 -> 422317 | M26: 1.98 | N26: 836187.66 | P26: 2314013.8
B27: August | D27: ='16. RTSR - Historical Wholesale'!D26 -> 1490181 | E27: 3.82 | F27: 5692491.42 | H27: ='16. RTSR - Historical Wholesale'!H26 -> 1551212 | I27: 0.82 | J27: 1271993.84 | L27: ='16. RTSR - Historical Wholesale'!L26 -> 393617 | M27: 1.98 | N27: 779361.66 | P27: 2051355.5
B28: September | D28: ='16. RTSR - Historical Wholesale'!D27 -> 1529344 | E28: 3.82 | F28: 5842094.08 | H28: ='16. RTSR - Historical Wholesale'!H27 -> 1580143 | I28: 0.82 | J28: 1295717.26 | L28: ='16. RTSR - Historical Wholesale'!L27 -> 382274 | M28: 1.98 | N28: 756902.52 | P28: 2052619.78
B29: October | D29: ='16. RTSR - Historical Wholesale'!D28 -> 1054273 | E29: 3.82 | F29: 4027322.86 | H29: ='16. RTSR - Historical Wholesale'!H28 -> 1195055 | I29: 0.82 | J29: 979945.1 | L29: ='16. RTSR - Historical Wholesale'!L28 -> 324730 | M29: 1.98 | N29: 642965.4 | P29: 1622910.5
B30: November | D30: ='16. RTSR - Historical Wholesale'!D29 -> 1160538 | E30: 3.82 | F30: 4433255.16 | H30: ='16. RTSR - Historical Wholesale'!H29 -> 1268068 | I30: 0.82 | J30: 1039815.76 | L30: ='16. RTSR - Historical Wholesale'!L29 -> 387958 | M30: 1.98 | N30: 768156.84 | P30: 1807972.6
B31: December | D31: ='16. RTSR - Historical Wholesale'!D30 -> 1184325 | E31: 3.82 | F31: 4524121.5 | H31: ='16. RTSR - Historical Wholesale'!H30 -> 1281971 | I31: 0.82 | J31: 1051216.22 | L31: ='16. RTSR - Historical Wholesale'!L30 -> 346343 | M31: 1.98 | N31: 685759.14 | P31: 1736975.36
B33: Total | D33: =SUM(D20:D31) -> 15532404 | E33: =IF(D33<>0,F33/D33,0) -> 3.82 | F33: =SUM(F20:F31) -> 59333783.28 | H33: =SUM(H20:H31) -> 16565741.92 | I33: =IF(H33<>0,J33/H33,0) -> 0.82 | J33: =SUM(J20:J31) -> 13583908.37 | L33: =SUM(L20:L31) -> 4458264 | M33: =IF(L33<>0,N33/L33,0) -> 1.98 | N33: =SUM(N20:N31) -> 8827362.72 | P33: =SUM(P20:P31) -> 22411271.09
B35: Hydro One | D35: Network | H35: Line Connection | L35: Transformation Connection | P35: Total Line
B37: Month | D37: Units Billed | E37: Rate | F37: Amount | H37: Units Billed | I37: Rate | J37: Amount | L37: Units Billed | M37: Rate | N37: Amount | P37: Amount
B39: January | D39: ='16. RTSR - Historical Wholesale'!D38 -> 207785 | E39: ='15. RTSR - UTRs & Sub-Tx'!G35+'15. RTSR - UTRs & Sub-Tx'!G79 -> 3.3765 | F39: =D39*E39 -> 701586.0525 | H39: ='16. RTSR - Historical Wholesale'!H38 -> 207882 | I39: ='15. RTSR - UTRs & Sub-Tx'!G37+'15. RTSR - UTRs & Sub-Tx'!G81 -> 0.7167 | J39: =H39*I39 -> 148989.0294 | L39: ='16. RTSR - Historical Wholesale'!L38 -> 207882 | M39: ='15. RTSR - UTRs & Sub-Tx'!G39 -> 1.62 | N39: =L39*M39 -> 336768.84 | P39: =J39+N39 -> 485757.8694
B40: February | D40: ='16. RTSR - Historical Wholesale'!D39 -> 201313 | E40: =E39 -> 3.3765 | F40: =D40*E40 -> 679733.3445 | H40: ='16. RTSR - Historical Wholesale'!H39 -> 201471 | I40: =I39 -> 0.7167 | J40: =H40*I40 -> 144394.2657 | L40: ='16. RTSR - Historical Wholesale'!L39 -> 201471 | M40: =M39 -> 1.62 | N40: =L40*M40 -> 326383.02 | P40: 470777.2857
B41: March | D41: ='16. RTSR - Historical Wholesale'!D40 -> 172031.8711 | E41: =E40 -> 3.3765 | F41: 580865.6127 | H41: ='16. RTSR - Historical Wholesale'!H40 -> 176733.073 | I41: =I40 -> 0.7167 | J41: 126664.5934 | L41: ='16. RTSR - Historical Wholesale'!L40 -> 176733.073 | M41: =M40 -> 1.62 | N41: 286307.5782 | P41: 412972.1716
B42: April | D42: ='16. RTSR - Historical Wholesale'!D41 -> 156780.3962 | E42: 3.3765 | F42: 529369.0079 | H42: ='16. RTSR - Historical Wholesale'!H41 -> 159943.6953 | I42: 0.7167 | J42: 114631.6464 | L42: ='16. RTSR - Historical Wholesale'!L41 -> 159943.6953 | M42: =M41 -> 1.62 | N42: 259108.7864 | P42: 373740.4328
B43: May | D43: ='16. RTSR - Historical Wholesale'!D42 -> 194350.827 | E43: 3.3765 | F43: 656225.5675 | H43: ='16. RTSR - Historical Wholesale'!H42 -> 194428.5665 | I43: 0.7167 | J43: 139346.9536 | L43: ='16. RTSR - Historical Wholesale'!L42 -> 194428.5665 | M43: 1.62 | N43: 314974.2778 | P43: 454321.2314
B44: June | D44: ='16. RTSR - Historical Wholesale'!D43 -> 252990.0786 | E44: 3.3765 | F44: 854221.0004 | H44: ='16. RTSR - Historical Wholesale'!H43 -> 253003.8927 | I44: 0.7167 | J44: 181327.8899 | L44: ='16. RTSR - Historical Wholesale'!L43 -> 253003.8927 | M44: 1.62 | N44: 409866.3062 | P44: 591194.1961
B45: July | D45: ='16. RTSR - Historical Wholesale'!D44 -> 244810.9434 | E45: 3.3765 | F45: 826604.1504 | H45: ='16. RTSR - Historical Wholesale'!H44 -> 244822.5966 | I45: 0.7167 | J45: 175464.355 | L45: ='16. RTSR - Historical Wholesale'!L44 -> 244822.5966 | M45: 1.62 | N45: 396612.6064 | P45: 572076.9614
B46: August | D46: ='16. RTSR - Historical Wholesale'!D45 -> 237230.0692 | E46: 3.3765 | F46: 801007.3286 | H46: ='16. RTSR - Historical Wholesale'!H45 -> 237230.0558 | I46: 0.7167 | J46: 170022.781 | L46: ='16. RTSR - Historical Wholesale'!L45 -> 237230.0558 | M46: 1.62 | N46: 384312.6904 | P46: 554335.4714
B47: September | D47: ='16. RTSR - Historical Wholesale'!D46 -> 250030.2368 | E47: 3.3765 | F47: 844227.0945 | H47: ='16. RTSR - Historical Wholesale'!H46 -> 250692.9742 | I47: 0.7167 | J47: 179671.6546 | L47: ='16. RTSR - Historical Wholesale'!L46 -> 250692.9742 | M47: 1.62 | N47: 406122.6183 | P47: 585794.2729
B48: October | D48: ='16. RTSR - Historical Wholesale'!D47 -> 185529.9686 | E48: 3.3765 | F48: 626441.9388 | H48: ='16. RTSR - Historical Wholesale'!H47 -> 187384.2403 | I48: 0.7167 | J48: 134298.2851 | L48: ='16. RTSR - Historical Wholesale'!L47 -> 187384.2403 | M48: 1.62 | N48: 303562.4694 | P48: 437860.7544
B49: November | D49: ='16. RTSR - Historical Wholesale'!D48 -> 214908.9937 | E49: 3.3765 | F49: 725640.2173 | H49: ='16. RTSR - Historical Wholesale'!H48 -> 215024.5923 | I49: 0.7167 | J49: 154108.1253 | L49: ='16. RTSR - Historical Wholesale'!L48 -> 215024.5923 | M49: 1.62 | N49: 348339.8395 | P49: 502447.9648
B50: December | D50: ='16. RTSR - Historical Wholesale'!D49 -> 212886.6101 | E50: 3.3765 | F50: 718811.6389 | H50: ='16. RTSR - Historical Wholesale'!H49 -> 211094.8755 | I50: 0.7167 | J50: 151291.6973 | L50: ='16. RTSR - Historical Wholesale'!L49 -> 211094.8755 | M50: 1.62 | N50: 341973.6984 | P50: 493265.3957
B52: Total | D52: =SUM(D39:D50) -> 2530647.995 | E52: =IF(D52<>0,F52/D52,0) -> 3.3765 | F52: =SUM(F39:F50) -> 8544732.954 | H52: =SUM(H39:H50) -> 2539711.562 | I52: =IF(H52<>0,J52/H52,0) -> 0.7167 | J52: =SUM(J39:J50) -> 1820211.277 | L52: =SUM(L39:L50) -> 2539711.562 | M52: =IF(L52<>0,N52/L52,0) -> 1.62 | N52: =SUM(N39:N50) -> 4114332.731 | P52: =SUM(P39:P50) -> 5934544.007
B54: ='16. RTSR - Historical Wholesale'!B53 -> Add Extra Host Here (I) | D54: Network | H54: Line Connection | L54: Transformation Connection | P54: Total Line
B56: Month | D56: Units Billed | E56: Rate | F56: Amount | H56: Units Billed | I56: Rate | J56: Amount | L56: Units Billed | M56: Rate | N56: Amount | P56: Amount
B58: January | D58: ='16. RTSR - Historical Wholesale'!D57 -> 0 | E58: ='15. RTSR - UTRs & Sub-Tx'!G50 -> 0 | F58: =D58*E58 -> 0 | H58: ='16. RTSR - Historical Wholesale'!H57 -> 0 | I58: ='15. RTSR - UTRs & Sub-Tx'!G52 -> 0 | J58: =H58*I58 -> 0 | L58: ='16. RTSR - Historical Wholesale'!L57 -> 0 | M58: ='15. RTSR - UTRs & Sub-Tx'!G54 -> 0 | N58: =L58*M58 -> 0 | P58: =J58+N58 -> 0
B59: February | D59: ='16. RTSR - Historical Wholesale'!D58 -> 0 | E59: =E58 -> 0 | F59: =D59*E59 -> 0 | H59: ='16. RTSR - Historical Wholesale'!H58 -> 0 | I59: =I58 -> 0 | J59: =H59*I59 -> 0 | L59: ='16. RTSR - Historical Wholesale'!L58 -> 0 | M59: =M58 -> 0 | N59: =L59*M59 -> 0 | P59: 0
B60: March | D60: ='16. RTSR - Historical Wholesale'!D59 -> 0 | E60: =E59 -> 0 | F60: 0 | H60: ='16. RTSR - Historical Wholesale'!H59 -> 0 | I60: =I59 -> 0 | J60: 0 | L60: ='16. RTSR - Historical Wholesale'!L59 -> 0 | M60: =M59 -> 0 | N60: 0 | P60: 0
B61: April | D61: ='16. RTSR - Historical Wholesale'!D60 -> 0 | E61: 0 | F61: 0 | H61: ='16. RTSR - Historical Wholesale'!H60 -> 0 | I61: 0 | J61: 0 | L61: ='16. RTSR - Historical Wholesale'!L60 -> 0 | M61: =M60 -> 0 | N61: 0 | P61: 0
B62: May | D62: ='16. RTSR - Historical Wholesale'!D61 -> 0 | E62: 0 | F62: 0 | H62: ='16. RTSR - Historical Wholesale'!H61 -> 0 | I62: 0 | J62: 0 | L62: ='16. RTSR - Historical Wholesale'!L61 -> 0 | M62: 0 | N62: 0 | P62: 0
B63: June | D63: ='16. RTSR - Historical Wholesale'!D62 -> 0 | E63: 0 | F63: 0 | H63: ='16. RTSR - Historical Wholesale'!H62 -> 0 | I63: 0 | J63: 0 | L63: ='16. RTSR - Historical Wholesale'!L62 -> 0 | M63: 0 | N63: 0 | P63: 0
B64: July | D64: ='16. RTSR - Historical Wholesale'!D63 -> 0 | E64: 0 | F64: 0 | H64: ='16. RTSR - Historical Wholesale'!H63 -> 0 | I64: 0 | J64: 0 | L64: ='16. RTSR - Historical Wholesale'!L63 -> 0 | M64: 0 | N64: 0 | P64: 0
B65: August | D65: ='16. RTSR - Historical Wholesale'!D64 -> 0 | E65: 0 | F65: 0 | H65: ='16. RTSR - Historical Wholesale'!H64 -> 0 | I65: 0 | J65: 0 | L65: ='16. RTSR - Historical Wholesale'!L64 -> 0 | M65: 0 | N65: 0 | P65: 0
B66: September | D66: ='16. RTSR - Historical Wholesale'!D65 -> 0 | E66: 0 | F66: 0 | H66: ='16. RTSR - Historical Wholesale'!H65 -> 0 | I66: 0 | J66: 0 | L66: ='16. RTSR - Historical Wholesale'!L65 -> 0 | M66: 0 | N66: 0 | P66: 0
B67: October | D67: ='16. RTSR - Historical Wholesale'!D66 -> 0 | E67: 0 | F67: 0 | H67: ='16. RTSR - Historical Wholesale'!H66 -> 0 | I67: 0 | J67: 0 | L67: ='16. RTSR - Historical Wholesale'!L66 -> 0 | M67: 0 | N67: 0 | P67: 0
B68: November | D68: ='16. RTSR - Historical Wholesale'!D67 -> 0 | E68: 0 | F68: 0 | H68: ='16. RTSR - Historical Wholesale'!H67 -> 0 | I68: 0 | J68: 0 | L68: ='16. RTSR - Historical Wholesale'!L67 -> 0 | M68: 0 | N68: 0 | P68: 0
B69: December | D69: ='16. RTSR - Historical Wholesale'!D68 -> 0 | E69: 0 | F69: 0 | H69: ='16. RTSR - Historical Wholesale'!H68 -> 0 | I69: 0 | J69: 0 | L69: ='16. RTSR - Historical Wholesale'!L68 -> 0 | M69: 0 | N69: 0 | P69: 0
B71: Total | D71: =SUM(D58:D69) -> 0 | E71: =IF(D71<>0,F71/D71,0) -> 0 | F71: =SUM(F58:F69) -> 0 | H71: =SUM(H58:H69) -> 0 | I71: =IF(H71<>0,J71/H71,0) -> 0 | J71: =SUM(J58:J69) -> 0 | L71: =SUM(L58:L69) -> 0 | M71: =IF(L71<>0,N71/L71,0) -> 0 | N71: =SUM(N58:N69) -> 0 | P71: =SUM(P58:P69) -> 0
B73: ='16. RTSR - Historical Wholesale'!B72 -> Add Extra Host Here (II) | D73: Network | H73: Line Connection | L73: Transformation Connection | P73: Total Line
B75: Month | D75: Units Billed | E75: Rate | F75: Amount | H75: Units Billed | I75: Rate | J75: Amount | L75: Units Billed | M75: Rate | N75: Amount | P75: Amount
B77: January | D77: ='16. RTSR - Historical Wholesale'!D76 -> 0 | E77: ='15. RTSR - UTRs & Sub-Tx'!G65 -> 0 | F77: =D77*E77 -> 0 | H77: ='16. RTSR - Historical Wholesale'!H76 -> 0 | I77: ='15. RTSR - UTRs & Sub-Tx'!G67 -> 0 | J77: =H77*I77 -> 0 | L77: ='16. RTSR - Historical Wholesale'!L76 -> 0 | M77: ='15. RTSR - UTRs & Sub-Tx'!G69 -> 0 | N77: =L77*M77 -> 0 | P77: =J77+N77 -> 0
B78: February | D78: ='16. RTSR - Historical Wholesale'!D77 -> 0 | E78: =E77 -> 0 | F78: =D78*E78 -> 0 | H78: ='16. RTSR - Historical Wholesale'!H77 -> 0 | I78: =I77 -> 0 | J78: =H78*I78 -> 0 | L78: ='16. RTSR - Historical Wholesale'!L77 -> 0 | M78: =M77 -> 0 | N78: =L78*M78 -> 0 | P78: 0
B79: March | D79: ='16. RTSR - Historical Wholesale'!D78 -> 0 | E79: =E78 -> 0 | F79: 0 | H79: ='16. RTSR - Historical Wholesale'!H78 -> 0 | I79: =I78 -> 0 | J79: 0 | L79: ='16. RTSR - Historical Wholesale'!L78 -> 0 | M79: =M78 -> 0 | N79: 0 | P79: 0
B80: April | D80: ='16. RTSR - Historical Wholesale'!D79 -> 0 | E80: 0 | F80: 0 | H80: ='16. RTSR - Historical Wholesale'!H79 -> 0 | I80: 0 | J80: 0 | L80: ='16. RTSR - Historical Wholesale'!L79 -> 0 | M80: =M79 -> 0 | N80: 0 | P80: 0
B81: May | D81: ='16. RTSR - Historical Wholesale'!D80 -> 0 | E81: 0 | F81: 0 | H81: ='16. RTSR - Historical Wholesale'!H80 -> 0 | I81: 0 | J81: 0 | L81: ='16. RTSR - Historical Wholesale'!L80 -> 0 | M81: 0 | N81: 0 | P81: 0
B82: June | D82: ='16. RTSR - Historical Wholesale'!D81 -> 0 | E82: 0 | F82: 0 | H82: ='16. RTSR - Historical Wholesale'!H81 -> 0 | I82: 0 | J82: 0 | L82: ='16. RTSR - Historical Wholesale'!L81 -> 0 | M82: 0 | N82: 0 | P82: 0
B83: July | D83: ='16. RTSR - Historical Wholesale'!D82 -> 0 | E83: 0 | F83: 0 | H83: ='16. RTSR - Historical Wholesale'!H82 -> 0 | I83: 0 | J83: 0 | L83: ='16. RTSR - Historical Wholesale'!L82 -> 0 | M83: 0 | N83: 0 | P83: 0
B84: August | D84: ='16. RTSR - Historical Wholesale'!D83 -> 0 | E84: 0 | F84: 0 | H84: ='16. RTSR - Historical Wholesale'!H83 -> 0 | I84: 0 | J84: 0 | L84: ='16. RTSR - Historical Wholesale'!L83 -> 0 | M84: 0 | N84: 0 | P84: 0
B85: September | D85: ='16. RTSR - Historical Wholesale'!D84 -> 0 | E85: 0 | F85: 0 | H85: ='16. RTSR - Historical Wholesale'!H84 -> 0 | I85: 0 | J85: 0 | L85: ='16. RTSR - Historical Wholesale'!L84 -> 0 | M85: 0 | N85: 0 | P85: 0
B86: October | D86: ='16. RTSR - Historical Wholesale'!D85 -> 0 | E86: 0 | F86: 0 | H86: ='16. RTSR - Historical Wholesale'!H85 -> 0 | I86: 0 | J86: 0 | L86: ='16. RTSR - Historical Wholesale'!L85 -> 0 | M86: 0 | N86: 0 | P86: 0
B87: November | D87: ='16. RTSR - Historical Wholesale'!D86 -> 0 | E87: 0 | F87: 0 | H87: ='16. RTSR - Historical Wholesale'!H86 -> 0 | I87: 0 | J87: 0 | L87: ='16. RTSR - Historical Wholesale'!L86 -> 0 | M87: 0 | N87: 0 | P87: 0
B88: December | D88: ='16. RTSR - Historical Wholesale'!D87 -> 0 | E88: 0 | F88: 0 | H88: ='16. RTSR - Historical Wholesale'!H87 -> 0 | I88: 0 | J88: 0 | L88: ='16. RTSR - Historical Wholesale'!L87 -> 0 | M88: 0 | N88: 0 | P88: 0
B90: Total | D90: =SUM(D77:D88) -> 0 | E90: =IF(D90<>0,F90/D90,0) -> 0 | F90: =SUM(F77:F88) -> 0 | H90: =SUM(H77:H88) -> 0 | I90: =IF(H90<>0,J90/H90,0) -> 0 | J90: =SUM(J77:J88) -> 0 | L90: =SUM(L77:L88) -> 0 | M90: =IF(L90<>0,N90/L90,0) -> 0 | N90: =SUM(N77:N88) -> 0 | P90: =SUM(P77:P88) -> 0
B92: Total | D92: Network | H92: Line Connection | L92: Transformation Connection | P92: Total Line
B94: Month | D94: Units Billed | E94: Rate | F94: Amount | H94: Units Billed | I94: Rate | J94: Amount | L94: Units Billed | M94: Rate | N94: Amount | P94: Amount
B96: January | D96: =D20+D39+D58+D77 -> 1419510 | E96: =IF(D96<>0,F96/D96,0) -> 3.755081368 | F96: =F20+F39+F58+F77 -> 5330375.553 | H96: =H20+H39+H58+H77 -> 1486540 | I96: =IF(H96<>0,J96/H96,0) -> 0.8055542329 | J96: =J20+J39+J58+J77 -> 1197488.589 | L96: =L20+L39+L58+L77 -> 622919 | M96: =IF(L96<>0,N96/L96,0) -> 1.85985995 | N96: =N20+N39+N58+N77 -> 1158542.1 | P96: =J96+N96 -> 2356030.689
B97: February | D97: =D21+D40+D59+D78 -> 1326681 | E97: 3.752702499 | F97: =F21+F40+F59+F78 -> 4978639.104 | H97: =H21+H40+H59+H78 -> 1407474 | I97: 0.8052132584 | J97: =J21+J40+J59+J78 -> 1133316.726 | L97: =L21+L40+L59+L78 -> 555527 | M97: 1.849440081 | N97: =N21+N40+N59+N78 -> 1027413.9 | P97: 2160730.626
B98: March | D98: 1260080.871 | E98: 3.759451398 | F98: 4737212.793 | H98: 1358970.073 | I98: 0.8065659099 | J98: 1096098.933 | L98: 513162.073 | M98: 1.856015961 | N98: 952436.9982 | P98: 2048535.932
B99: April | D99: 1226704.396 | E99: 3.763317962 | F99: 4616478.688 | H99: 1359382.615 | I99: 0.807845818 | J99: 1098171.561 | L99: 480875.6953 | M99: 1.860260677 | N99: 894554.1464 | P99: 1992725.707
B100: May | D100: 1560647.827 | E100: 3.764769992 | F100: 5875480.108 | H100: 1599627.567 | I100: 0.8074442831 | J100: 1291610.134 | L100: 555482.5665 | M100: 1.853993734 | N100: 1029861.198 | P100: 2321471.331
B101: June | D101: 1792006.079 | E101: 3.757387991 | F101: 6733262.12 | H101: 1868533.893 | I101: 0.8060129365 | J101: 1506062.49 | L101: 666520.8927 | M101: 1.843348017 | N101: 1228629.966 | P101: 2734692.456
B102: July | D102: 1958174.943 | E102: 3.76455365 | F102: 7371654.63 | H102: 2047049.597 | I102: 0.8076455489 | J102: 1653290.495 | L102: 667139.5966 | M102: 1.847889516 | N102: 1232800.266 | P102: 2886090.761
B103: August | D103: 1727411.069 | E103: 3.759092936 | F103: 6493498.749 | H103: 1788442.056 | I103: 0.8062976468 | J103: 1442016.621 | L103: 630847.0558 | M103: 1.844621988 | N103: 1163674.35 | P103: 2605690.971
B104: September | D104: 1779374.237 | E104: 3.757681232 | F104: 6686321.175 | H104: 1830835.974 | I104: 0.8058553226 | J104: 1475388.915 | L104: 632966.9742 | M104: 1.837418358 | N104: 1163025.138 | P104: 2638414.053
B105: October | D105: 1239802.969 | E105: 3.753632567 | F105: 4653764.799 | H105: 1382439.24 | I105: 0.8059980884 | J105: 1114243.385 | L105: 512114.2403 | M105: 1.848274847 | N105: 946527.8694 | P105: 2060771.254
B106: November | D106: 1375446.994 | E106: 3.750704608 | F106: 5158895.377 | H106: 1483092.592 | I106: 0.8050231601 | J106: 1193923.885 | L106: 602982.5923 | M106: 1.851623403 | N106: 1116496.679 | P106: 2310420.565
B107: December | D107: 1397211.61 | E107: 3.752425976 | F107: 5242933.139 | H107: 1493065.876 | I107: 0.8053950847 | J107: 1202507.917 | L107: 557437.8755 | M107: 1.843672422 | N107: 1027732.838 | P107: 2230240.756
B109: Total | D109: =SUM(D96:D107) -> 18063051.99 | E109: =IF(D109<>0,F109/D109,0) -> 3.757865296 | F109: =SUM(F96:F107) -> 67878516.23 | H109: =SUM(H96:H107) -> 19105453.48 | I109: =IF(H109<>0,J109/H109,0) -> 0.8062682032 | J109: =SUM(J96:J107) -> 15404119.65 | L109: =SUM(L96:L107) -> 6997975.562 | M109: =IF(L109<>0,N109/L109,0) -> 1.849348477 | N109: =SUM(N96:N107) -> 12941695.45 | P109: =SUM(P96:P107) -> 28345815.1
N111: Transformer Allowance Credit (if applicable) | P111: ='15. RTSR - UTRs & Sub-Tx'!G95 -> 0
N113: Total including deduction for Transformer Allowance Credit | P113: =P109+P111 -> 28345815.1

Sheet 18. RTSR - Forecast Wholesale
B13: The purpose of this sheet is to calculate the expected billing when forecasted 2015 Uniform Transmission Rates are applied against historical 2013 transmission units.
B16: IESO | D16: Network | H16: Line Connection | L16: Transformation Connection | P16: Total Line
B18: Month | D18: Units Billed | E18: Rate | F18: Amount | H18: Units Billed | I18: Rate | J18: Amount | L18: Units Billed | M18: Rate | N18: Amount | P18: Amount
B20: January | D20: ='16. RTSR - Historical Wholesale'!D19 -> 1211725 | E20: ='15. RTSR - UTRs & Sub-Tx'!I22 -> 3.82 | F20: =D20*E20 -> 4628789.5 | H20: ='16. RTSR - Historical Wholesale'!H19 -> 1278658 | I20: ='15. RTSR - UTRs & Sub-Tx'!I24 -> 0.82 | J20: =H20*I20 -> 1048499.56 | L20: ='16. RTSR - Historical Wholesale'!L19 -> 415037 | M20: ='15. RTSR - UTRs & Sub-Tx'!I26 -> 1.98 | N20: =L20*M20 -> 821773.26 | P20: =J20+N20 -> 1870272.82
B21: February | D21: ='16. RTSR - Historical Wholesale'!D20 -> 1125368 | E21: =E20 -> 3.82 | F21: 4298905.76 | H21: ='16. RTSR - Historical Wholesale'!H20 -> 1206003 | I21: =I20 -> 0.82 | J21: 988922.46 | L21: ='16. RTSR - Historical Wholesale'!L20 -> 354056 | M21: =M20 -> 1.98 | N21: 701030.88 | P21: 1689953.34
B22: March | D22: ='16. RTSR - Historical Wholesale'!D21 -> 1088049 | E22: 3.82 | F22: 4156347.18 | H22: ='16. RTSR - Historical Wholesale'!H21 -> 1182237 | I22: 0.82 | J22: 969434.34 | L22: ='16. RTSR - Historical Wholesale'!L21 -> 336429 | M22: 1.98 | N22: 666129.42 | P22: 1635563.76
B23: April | D23: ='16. RTSR - Historical Wholesale'!D22 -> 1069924 | E23: 3.82 | F23: 4087109.68 | H23: ='16. RTSR - Historical Wholesale'!H22 -> 1199438.92 | I23: 0.82 | J23: 983539.9144 | L23: ='16. RTSR - Historical Wholesale'!L22 -> 320932 | M23: 1.98 | N23: 635445.36 | P23: 1618985.274
B24: May | D24: ='16. RTSR - Historical Wholesale'!D23 -> 1366297 | E24: 3.82 | F24: 5219254.54 | H24: ='16. RTSR - Historical Wholesale'!H23 -> 1405199 | I24: 0.82 | J24: 1152263.18 | L24: ='16. RTSR - Historical Wholesale'!L23 -> 361054 | M24: 1.98 | N24: 714886.92 | P24: 1867150.1
B25: June | D25: ='16. RTSR - Historical Wholesale'!D24 -> 1539016 | E25: 3.82 | F25: 5879041.12 | H25: ='16. RTSR - Historical Wholesale'!H24 -> 1615530 | I25: 0.82 | J25: 1324734.6 | L25: ='16. RTSR - Historical Wholesale'!L24 -> 413517 | M25: 1.98 | N25: 818763.66 | P25: 2143498.26
B26: July | D26: ='16. RTSR - Historical Wholesale'!D25 -> 1713364 | E26: 3.82 | F26: 6545050.48 | H26: ='16. RTSR - Historical Wholesale'!H25 -> 1802227 | I26: 0.82 | J26: 1477826.14 | L26: ='16. RTSR - Historical Wholesale'!L25 -> 422317 | M26: 1.98 | N26: 836187.66 | P26: 2314013.8
B27: August | D27: ='16. RTSR - Historical Wholesale'!D26 -> 1490181 | E27: 3.82 | F27: 5692491.42 | H27: ='16. RTSR - Historical Wholesale'!H26 -> 1551212 | I27: 0.82 | J27: 1271993.84 | L27: ='16. RTSR - Historical Wholesale'!L26 -> 393617 | M27: 1.98 | N27: 779361.66 | P27: 2051355.5
B28: September | D28: ='16. RTSR - Historical Wholesale'!D27 -> 1529344 | E28: 3.82 | F28: 5842094.08 | H28: ='16. RTSR - Historical Wholesale'!H27 -> 1580143 | I28: 0.82 | J28: 1295717.26 | L28: ='16. RTSR - Historical Wholesale'!L27 -> 382274 | M28: 1.98 | N28: 756902.52 | P28: 2052619.78
B29: October | D29: ='16. RTSR - Historical Wholesale'!D28 -> 1054273 | E29: 3.82 | F29: 4027322.86 | H29: ='16. RTSR - Historical Wholesale'!H28 -> 1195055 | I29: 0.82 | J29: 979945.1 | L29: ='16. RTSR - Historical Wholesale'!L28 -> 324730 | M29: 1.98 | N29: 642965.4 | P29: 1622910.5
B30: November | D30: ='16. RTSR - Historical Wholesale'!D29 -> 1160538 | E30: 3.82 | F30: 4433255.16 | H30: ='16. RTSR - Historical Wholesale'!H29 -> 1268068 | I30: 0.82 | J30: 1039815.76 | L30: ='16. RTSR - Historical Wholesale'!L29 -> 387958 | M30: 1.98 | N30: 768156.84 | P30: 1807972.6
B31: December | D31: ='16. RTSR - Historical Wholesale'!D30 -> 1184325 | E31: 3.82 | F31: 4524121.5 | H31: ='16. RTSR - Historical Wholesale'!H30 -> 1281971 | I31: 0.82 | J31: 1051216.22 | L31: ='16. RTSR - Historical Wholesale'!L30 -> 346343 | M31: 1.98 | N31: 685759.14 | P31: 1736975.36
B33: Total | D33: =SUM(D20:D31) -> 15532404 | E33: =IF(D33<>0,F33/D33,0) -> 3.82 | F33: =SUM(F20:F31) -> 59333783.28 | H33: =SUM(H20:H31) -> 16565741.92 | I33: =IF(H33<>0,J33/H33,0) -> 0.82 | J33: =SUM(J20:J31) -> 13583908.37 | L33: =SUM(L20:L31) -> 4458264 | M33: =IF(L33<>0,N33/L33,0) -> 1.98 | N33: =SUM(N20:N31) -> 8827362.72 | P33: =SUM(P20:P31) -> 22411271.09
B35: Hydro One | D35: Network | H35: Line Connection | L35: Transformation Connection | P35: Total Line
B37: Month | D37: Units Billed | E37: Rate | F37: Amount | H37: Units Billed | I37: Rate | J37: Amount | L37: Units Billed | M37: Rate | N37: Amount | P37: Amount
B39: January | D39: ='16. RTSR - Historical Wholesale'!D38 -> 207785 | E39: ='15. RTSR - UTRs & Sub-Tx'!I35+'15. RTSR - UTRs & Sub-Tx'!I79 -> 3.23 | F39: =D39*E39 -> 671145.55 | H39: ='16. RTSR - Historical Wholesale'!H38 -> 207882 | I39: ='15. RTSR - UTRs & Sub-Tx'!I37+'15. RTSR - UTRs & Sub-Tx'!I81 -> 0.65 | J39: =H39*I39 -> 135123.3 | L39: ='16. RTSR - Historical Wholesale'!L38 -> 207882 | M39: ='15. RTSR - UTRs & Sub-Tx'!I39 -> 1.62 | N39: =L39*M39 -> 336768.84 | P39: =J39+N39 -> 471892.14
B40: February | D40: ='16. RTSR - Historical Wholesale'!D39 -> 201313 | E40: =E39 -> 3.23 | F40: 650240.99 | H40: ='16. RTSR - Historical Wholesale'!H39 -> 201471 | I40: =I39 -> 0.65 | J40: 130956.15 | L40: ='16. RTSR - Historical Wholesale'!L39 -> 201471 | M40: =M39 -> 1.62 | N40: 326383.02 | P40: 457339.17
B41: March | D41: ='16. RTSR - Historical Wholesale'!D40 -> 172031.8711 | E41: 3.23 | F41: 555662.9436 | H41: ='16. RTSR - Historical Wholesale'!H40 -> 176733.073 | I41: 0.65 | J41: 114876.4974 | L41: ='16. RTSR - Historical Wholesale'!L40 -> 176733.073 | M41: 1.62 | N41: 286307.5782 | P41: 401184.0756
B42: April | D42: ='16. RTSR - Historical Wholesale'!D41 -> 156780.3962 | E42: 3.23 | F42: 506400.6798 | H42: ='16. RTSR - Historical Wholesale'!H41 -> 159943.6953 | I42: 0.65 | J42: 103963.4019 | L42: ='16. RTSR - Historical Wholesale'!L41 -> 159943.6953 | M42: 1.62 | N42: 259108.7864 | P42: 363072.1883
B43: May | D43: ='16. RTSR - Historical Wholesale'!D42 -> 194350.827 | E43: 3.23 | F43: 627753.1714 | H43: ='16. RTSR - Historical Wholesale'!H42 -> 194428.5665 | I43: 0.65 | J43: 126378.5682 | L43: ='16. RTSR - Historical Wholesale'!L42 -> 194428.5665 | M43: 1.62 | N43: 314974.2778 | P43: 441352.846
B44: June | D44: ='16. RTSR - Historical Wholesale'!D43 -> 252990.0786 | E44: 3.23 | F44: 817157.9539 | H44: ='16. RTSR - Historical Wholesale'!H43 -> 253003.8927 | I44: 0.65 | J44: 164452.5303 | L44: ='16. RTSR - Historical Wholesale'!L43 -> 253003.8927 | M44: 1.62 | N44: 409866.3062 | P44: 574318.8364
B45: July | D45: ='16. RTSR - Historical Wholesale'!D44 -> 244810.9434 | E45: 3.23 | F45: 790739.3472 | H45: ='16. RTSR - Historical Wholesale'!H44 -> 244822.5966 | I45: 0.65 | J45: 159134.6878 | L45: ='16. RTSR - Historical Wholesale'!L44 -> 244822.5966 | M45: 1.62 | N45: 396612.6064 | P45: 555747.2942
B46: August | D46: ='16. RTSR - Historical Wholesale'!D45 -> 237230.0692 | E46: 3.23 | F46: 766253.1235 | H46: ='16. RTSR - Historical Wholesale'!H45 -> 237230.0558 | I46: 0.65 | J46: 154199.5363 | L46: ='16. RTSR - Historical Wholesale'!L45 -> 237230.0558 | M46: 1.62 | N46: 384312.6904 | P46: 538512.2267
B47: September | D47: ='16. RTSR - Historical Wholesale'!D46 -> 250030.2368 | E47: 3.23 | F47: 807597.6648 | H47: ='16. RTSR - Historical Wholesale'!H46 -> 250692.9742 | I47: 0.65 | J47: 162950.4333 | L47: ='16. RTSR - Historical Wholesale'!L46 -> 250692.9742 | M47: 1.62 | N47: 406122.6183 | P47: 569073.0515
B48: October | D48: ='16. RTSR - Historical Wholesale'!D47 -> 185529.9686 | E48: 3.23 | F48: 599261.7984 | H48: ='16. RTSR - Historical Wholesale'!H47 -> 187384.2403 | I48: 0.65 | J48: 121799.7562 | L48: ='16. RTSR - Historical Wholesale'!L47 -> 187384.2403 | M48: 1.62 | N48: 303562.4694 | P48: 425362.2256
B49: November | D49: ='16. RTSR - Historical Wholesale'!D48 -> 214908.9937 | E49: 3.23 | F49: 694156.0497 | H49: ='16. RTSR - Historical Wholesale'!H48 -> 215024.5923 | I49: 0.65 | J49: 139765.985 | L49: ='16. RTSR - Historical Wholesale'!L48 -> 215024.5923 | M49: 1.62 | N49: 348339.8395 | P49: 488105.8245
B50: December | D50: ='16. RTSR - Historical Wholesale'!D49 -> 212886.6101 | E50: 3.23 | F50: 687623.7505 | H50: ='16. RTSR - Historical Wholesale'!H49 -> 211094.8755 | I50: 0.65 | J50: 137211.6691 | L50: ='16. RTSR - Historical Wholesale'!L49 -> 211094.8755 | M50: 1.62 | N50: 341973.6984 | P50: 479185.3675
B52: Total | D52: =SUM(D39:D50) -> 2530647.995 | E52: =IF(D52<>0,F52/D52,0) -> 3.23 | F52: =SUM(F39:F50) -> 8173993.023 | H52: =SUM(H39:H50) -> 2539711.562 | I52: =IF(H52<>0,J52/H52,0) -> 0.65 | J52: =SUM(J39:J50) -> 1650812.515 | L52: =SUM(L39:L50) -> 2539711.562 | M52: =IF(L52<>0,N52/L52,0) -> 1.62 | N52: =SUM(N39:N50) -> 4114332.731 | P52: =SUM(P39:P50) -> 5765145.246
B54: ='16. RTSR - Historical Wholesale'!B53 -> Add Extra Host Here (I) | D54: Network | H54: Line Connection | L54: Transformation Connection | P54: Total Line
B56: Month | D56: Units Billed | E56: Rate | F56: Amount | H56: Units Billed | I56: Rate | J56: Amount | L56: Units Billed | M56: Rate | N56: Amount | P56: Amount
B58: January | D58: ='16. RTSR - Historical Wholesale'!D57 -> 0 | E58: ='15. RTSR - UTRs & Sub-Tx'!I50 -> 0 | F58: =D58*E58 -> 0 | H58: ='16. RTSR - Historical Wholesale'!H57 -> 0 | I58: ='15. RTSR - UTRs & Sub-Tx'!I52 -> 0 | J58: =H58*I58 -> 0 | L58: ='16. RTSR - Historical Wholesale'!L57 -> 0 | M58: ='15. RTSR - UTRs & Sub-Tx'!I54 -> 0 | N58: =L58*M58 -> 0 | P58: =J58+N58 -> 0
B59: February | D59: ='16. RTSR - Historical Wholesale'!D58 -> 0 | E59: =E58 -> 0 | F59: 0 | H59: ='16. RTSR - Historical Wholesale'!H58 -> 0 | I59: =I58 -> 0 | J59: 0 | L59: ='16. RTSR - Historical Wholesale'!L58 -> 0 | M59: =M58 -> 0 | N59: 0 | P59: 0
B60: March | D60: ='16. RTSR - Historical Wholesale'!D59 -> 0 | E60: 0 | F60: 0 | H60: ='16. RTSR - Historical Wholesale'!H59 -> 0 | I60: 0 | J60: 0 | L60: ='16. RTSR - Historical Wholesale'!L59 -> 0 | M60: 0 | N60: 0 | P60: 0
B61: April | D61: ='16. RTSR - Historical Wholesale'!D60 -> 0 | E61: 0 | F61: 0 | H61: ='16. RTSR - Historical Wholesale'!H60 -> 0 | I61: 0 | J61: 0 | L61: ='16. RTSR - Historical Wholesale'!L60 -> 0 | M61: 0 | N61: 0 | P61: 0
B62: May | D62: ='16. RTSR - Historical Wholesale'!D61 -> 0 | E62: 0 | F62: 0 | H62: ='16. RTSR - Historical Wholesale'!H61 -> 0 | I62: 0 | J62: 0 | L62: ='16. RTSR - Historical Wholesale'!L61 -> 0 | M62: 0 | N62: 0 | P62: 0
B63: June | D63: ='16. RTSR - Historical Wholesale'!D62 -> 0 | E63: 0 | F63: 0 | H63: ='16. RTSR - Historical Wholesale'!H62 -> 0 | I63: 0 | J63: 0 | L63: ='16. RTSR - Historical Wholesale'!L62 -> 0 | M63: 0 | N63: 0 | P63: 0
B64: July | D64: ='16. RTSR - Historical Wholesale'!D63 -> 0 | E64: 0 | F64: 0 | H64: ='16. RTSR - Historical Wholesale'!H63 -> 0 | I64: 0 | J64: 0 | L64: ='16. RTSR - Historical Wholesale'!L63 -> 0 | M64: 0 | N64: 0 | P64: 0
B65: August | D65: ='16. RTSR - Historical Wholesale'!D64 -> 0 | E65: 0 | F65: 0 | H65: ='16. RTSR - Historical Wholesale'!H64 -> 0 | I65: 0 | J65: 0 | L65: ='16. RTSR - Historical Wholesale'!L64 -> 0 | M65: 0 | N65: 0 | P65: 0
B66: September | D66: ='16. RTSR - Historical Wholesale'!D65 -> 0 | E66: 0 | F66: 0 | H66: ='16. RTSR - Historical Wholesale'!H65 -> 0 | I66: 0 | J66: 0 | L66: ='16. RTSR - Historical Wholesale'!L65 -> 0 | M66: 0 | N66: 0 | P66: 0
B67: October | D67: ='16. RTSR - Historical Wholesale'!D66 -> 0 | E67: 0 | F67: 0 | H67: ='16. RTSR - Historical Wholesale'!H66 -> 0 | I67: 0 | J67: 0 | L67: ='16. RTSR - Historical Wholesale'!L66 -> 0 | M67: 0 | N67: 0 | P67: 0
B68: November | D68: ='16. RTSR - Historical Wholesale'!D67 -> 0 | E68: 0 | F68: 0 | H68: ='16. RTSR - Historical Wholesale'!H67 -> 0 | I68: 0 | J68: 0 | L68: ='16. RTSR - Historical Wholesale'!L67 -> 0 | M68: 0 | N68: 0 | P68: 0
B69: December | D69: ='16. RTSR - Historical Wholesale'!D68 -> 0 | E69: 0 | F69: 0 | H69: ='16. RTSR - Historical Wholesale'!H68 -> 0 | I69: 0 | J69: 0 | L69: ='16. RTSR - Historical Wholesale'!L68 -> 0 | M69: 0 | N69: 0 | P69: 0
B71: Total | D71: =SUM(D58:D69) -> 0 | E71: =IF(D71<>0,F71/D71,0) -> 0 | F71: =SUM(F58:F69) -> 0 | H71: =SUM(H58:H69) -> 0 | I71: =IF(H71<>0,J71/H71,0) -> 0 | J71: =SUM(J58:J69) -> 0 | L71: =SUM(L58:L69) -> 0 | M71: =IF(L71<>0,N71/L71,0) -> 0 | N71: =SUM(N58:N69) -> 0 | P71: =SUM(P58:P69) -> 0
B73: ='16. RTSR - Historical Wholesale'!B72 -> Add Extra Host Here (II) | D73: Network | H73: Line Connection | L73: Transformation Connection | P73: Total Line
B75: Month | D75: Units Billed | E75: Rate | F75: Amount | H75: Units Billed | I75: Rate | J75: Amount | L75: Units Billed | M75: Rate | N75: Amount | P75: Amount
B77: January | D77: ='16. RTSR - Historical Wholesale'!D76 -> 0 | E77: ='15. RTSR - UTRs & Sub-Tx'!I65 -> 0 | F77: =D77*E77 -> 0 | H77: ='16. RTSR - Historical Wholesale'!H76 -> 0 | I77: ='15. RTSR - UTRs & Sub-Tx'!I67 -> 0 | J77: =H77*I77 -> 0 | L77: ='16. RTSR - Historical Wholesale'!L76 -> 0 | M77: ='15. RTSR - UTRs & Sub-Tx'!I69 -> 0 | N77: =L77*M77 -> 0 | P77: =J77+N77 -> 0
B78: February | D78: ='16. RTSR - Historical Wholesale'!D77 -> 0 | E78: =E77 -> 0 | F78: 0 | H78: ='16. RTSR - Historical Wholesale'!H77 -> 0 | I78: =I77 -> 0 | J78: 0 | L78: ='16. RTSR - Historical Wholesale'!L77 -> 0 | M78: =M77 -> 0 | N78: 0 | P78: 0
B79: March | D79: ='16. RTSR - Historical Wholesale'!D78 -> 0 | E79: 0 | F79: 0 | H79: ='16. RTSR - Historical Wholesale'!H78 -> 0 | I79: 0 | J79: 0 | L79: ='16. RTSR - Historical Wholesale'!L78 -> 0 | M79: 0 | N79: 0 | P79: 0
B80: April | D80: ='16. RTSR - Historical Wholesale'!D79 -> 0 | E80: 0 | F80: 0 | H80: ='16. RTSR - Historical Wholesale'!H79 -> 0 | I80: 0 | J80: 0 | L80: ='16. RTSR - Historical Wholesale'!L79 -> 0 | M80: 0 | N80: 0 | P80: 0
B81: May | D81: ='16. RTSR - Historical Wholesale'!D80 -> 0 | E81: 0 | F81: 0 | H81: ='16. RTSR - Historical Wholesale'!H80 -> 0 | I81: 0 | J81: 0 | L81: ='16. RTSR - Historical Wholesale'!L80 -> 0 | M81: 0 | N81: 0 | P81: 0
B82: June | D82: ='16. RTSR - Historical Wholesale'!D81 -> 0 | E82: 0 | F82: 0 | H82: ='16. RTSR - Historical Wholesale'!H81 -> 0 | I82: 0 | J82: 0 | L82: ='16. RTSR - Historical Wholesale'!L81 -> 0 | M82: 0 | N82: 0 | P82: 0
B83: July | D83: ='16. RTSR - Historical Wholesale'!D82 -> 0 | E83: 0 | F83: 0 | H83: ='16. RTSR - Historical Wholesale'!H82 -> 0 | I83: 0 | J83: 0 | L83: ='16. RTSR - Historical Wholesale'!L82 -> 0 | M83: 0 | N83: 0 | P83: 0
B84: August | D84: ='16. RTSR - Historical Wholesale'!D83 -> 0 | E84: 0 | F84: 0 | H84: ='16. RTSR - Historical Wholesale'!H83 -> 0 | I84: 0 | J84: 0 | L84: ='16. RTSR - Historical Wholesale'!L83 -> 0 | M84: 0 | N84: 0 | P84: 0
B85: September | D85: ='16. RTSR - Historical Wholesale'!D84 -> 0 | E85: 0 | F85: 0 | H85: ='16. RTSR - Historical Wholesale'!H84 -> 0 | I85: 0 | J85: 0 | L85: ='16. RTSR - Historical Wholesale'!L84 -> 0 | M85: 0 | N85: 0 | P85: 0
B86: October | D86: ='16. RTSR - Historical Wholesale'!D85 -> 0 | E86: 0 | F86: 0 | H86: ='16. RTSR - Historical Wholesale'!H85 -> 0 | I86: 0 | J86: 0 | L86: ='16. RTSR - Historical Wholesale'!L85 -> 0 | M86: 0 | N86: 0 | P86: 0
B87: November | D87: ='16. RTSR - Historical Wholesale'!D86 -> 0 | E87: 0 | F87: 0 | H87: ='16. RTSR - Historical Wholesale'!H86 -> 0 | I87: 0 | J87: 0 | L87: ='16. RTSR - Historical Wholesale'!L86 -> 0 | M87: 0 | N87: 0 | P87: 0
B88: December | D88: ='16. RTSR - Historical Wholesale'!D87 -> 0 | E88: 0 | F88: 0 | H88: ='16. RTSR - Historical Wholesale'!H87 -> 0 | I88: 0 | J88: 0 | L88: ='16. RTSR - Historical Wholesale'!L87 -> 0 | M88: 0 | N88: 0 | P88: 0
B90: Total | D90: =SUM(D77:D88) -> 0 | E90: =IF(D90<>0,F90/D90,0) -> 0 | F90: =SUM(F77:F88) -> 0 | H90: =SUM(H77:H88) -> 0 | I90: =IF(H90<>0,J90/H90,0) -> 0 | J90: =SUM(J77:J88) -> 0 | L90: =SUM(L77:L88) -> 0 | M90: =IF(L90<>0,N90/L90,0) -> 0 | N90: =SUM(N77:N88) -> 0 | P90: =SUM(P77:P88) -> 0
B92: Total | D92: Network | H92: Line Connection | L92: Transformation Connection | P92: Total Line
B94: Month | D94: Units Billed | E94: Rate | F94: Amount | H94: Units Billed | I94: Rate | J94: Amount | L94: Units Billed | M94: Rate | N94: Amount | P94: Amount
B96: January | D96: =D20+D39 -> 1419510 | E96: =IF(D96<>0,F96/D96,0) -> 3.733636994 | F96: =F20+F39 -> 5299935.05 | H96: =H20+H39 -> 1486540 | I96: =IF(H96<>0,J96/H96,0) -> 0.7962267144 | J96: =J20+J39 -> 1183622.86 | L96: =L20+L39 -> 622919 | M96: =IF(L96<>0,N96/L96,0) -> 1.85985995 | N96: =N20+N39 -> 1158542.1 | P96: =J96+N96 -> 2342164.96
B97: February | D97: 1326681 | E97: 3.730472322 | F97: 4949146.75 | H97: 1407474 | I97: 0.7956655753 | J97: 1119878.61 | L97: 555527 | M97: 1.849440081 | N97: 1027413.9 | P97: 2147292.51
B98: March | D98: 1260080.871 | E98: 3.739450564 | F98: 4712010.124 | H98: 1358970.073 | I98: 0.7978916232 | J98: 1084310.837 | L98: 513162.073 | M98: 1.856015961 | N98: 952436.9982 | P98: 2036747.836
B99: April | D99: 1226704.396 | E99: 3.744594357 | F99: 4593510.36 | H99: 1359382.615 | I99: 0.799997958 | J99: 1087503.316 | L99: 480875.6953 | M99: 1.860260677 | N99: 894554.1464 | P99: 1982057.463
B100: May | D100: 1560647.827 | E100: 3.746526032 | F100: 5847007.711 | H100: 1599627.567 | I100: 0.7993371551 | J100: 1278641.748 | L100: 555482.5665 | M100: 1.853993734 | N100: 1029861.198 | P100: 2308502.946
B101: June | D101: 1792006.079 | E101: 3.736705558 | F101: 6696199.074 | H101: 1868533.893 | I101: 0.7969815994 | J101: 1489187.13 | L101: 666520.8927 | M101: 1.843348017 | N101: 1228629.966 | P101: 2717817.096
B102: July | D102: 1958174.943 | E102: 3.746238227 | F102: 7335789.827 | H102: 2047049.597 | I102: 0.7996683766 | J102: 1636960.828 | L102: 667139.5966 | M102: 1.847889516 | N102: 1232800.266 | P102: 2869761.094
B103: August | D103: 1727411.069 | E103: 3.738973692 | F103: 6458744.543 | H103: 1788442.056 | I103: 0.7974501447 | J103: 1426193.376 | L103: 630847.0558 | M103: 1.844621988 | N103: 1163674.35 | P103: 2589867.727
B104: September | D104: 1779374.237 | E104: 3.737095664 | F104: 6649691.745 | H104: 1830835.974 | I104: 0.7967222153 | J104: 1458667.693 | L104: 632966.9742 | M104: 1.837418358 | N104: 1163025.138 | P104: 2621692.832
B105: October | D105: 1239802.969 | E105: 3.731709615 | F105: 4626584.658 | H105: 1382439.24 | I105: 0.7969571639 | J105: 1101744.856 | L105: 512114.2403 | M105: 1.848274847 | N105: 946527.8694 | P105: 2048272.726
B106: November | D106: 1375446.994 | E106: 3.727814473 | F106: 5127411.21 | H106: 1483092.592 | I106: 0.7953527319 | J106: 1179581.745 | L106: 602982.5923 | M106: 1.851623403 | N106: 1116496.679 | P106: 2296078.424
B107: December | D107: 1397211.61 | E107: 3.730104454 | F107: 5211745.251 | H107: 1493065.876 | I107: 0.7959648054 | J107: 1188427.889 | L107: 557437.8755 | M107: 1.843672422 | N107: 1027732.838 | P107: 2216160.727
B109: Total | D109: =SUM(D96:D107) -> 18063051.99 | E109: =IF(D109<>0,F109/D109,0) -> 3.737340529 | F109: =SUM(F96:F107) -> 67507776.3 | H109: =SUM(H96:H107) -> 19105453.48 | I109: =IF(H109<>0,J109/H109,0) -> 0.7974016897 | J109: =SUM(J96:J107) -> 15234720.89 | L109: =SUM(L96:L107) -> 6997975.562 | M109: =IF(L109<>0,N109/L109,0) -> 1.849348477 | N109: =SUM(N96:N107) -> 12941695.45 | P109: =SUM(P96:P107) -> 28176416.34
N111: Transformer Allowance Credit (if applicable) | P111: ='15. RTSR - UTRs & Sub-Tx'!I95 -> 0
N113: Total including deduction for Transformer Allowance Credit | P113: =P109+P111 -> 28176416.34

Sheet 19. RTSR Ntwrk to Curren WS
A13: The purpose of this sheet is to re-align the current RTS Network Rates to recover current wholesale network costs.
A16: Rate Class | B16: Rate Description | C16: Unit | E16: Current RTSR-Network | G16: Loss Adjusted Billed kWh | I16: Loss Adjusted Billed kW | K16: Billed Amount | M16: Billed Amount % | O16: Current Wholesale Billing | Q16: Proposed RTSR Network
A19: RESIDENTIAL | B19: Retail Transmission Rate - Network Service Rate | C19: $/kWh | E19: 0.0077 | G19: 2784046746 | I19: 0 | K19: =IF(E19="", "", IF(C19="$/kWh", E19*G19, E19*I19)) -> 21437159.95 | M19: =IF(ISERROR(K19/SUM(K19:K100)),"",K19/SUM(K19:K100)) -> 0.3288168377 | O19: =IF(ISERROR('17. RTSR - Current Wholesale'!$F$109*M19), "", '17. RTSR - Current Wholesale'!$F$109*M19) -> 22319599.05 | Q19: =IF(C19="","",IF(C19="$/kWh",IF(G19<>0,O19/G19,),IF(I19<>0,O19/I19,0))) -> 0.008016962748
A20: GENERAL SERVICE LESS THAN 50 KW | B20: Retail Transmission Rate - Network Service Rate | C20: $/kWh | E20: 0.007 | G20: 1059291742 | I20: 0 | K20: 7415042.195 | M20: =IF(ISERROR(K20/SUM(K19:K100)),"",K20/SUM(K19:K100)) -> 0.1137366485 | O20: =IF(ISERROR('17. RTSR - Current Wholesale'!$F$109*M20), "", '17. RTSR - Current Wholesale'!$F$109*M20) -> 7720274.942 | Q20: 0.007288147953
A21: GENERAL SERVICE 500 TO 4,999 KW | B21: Retail Transmission Rate - Network Service Rate | C21: $/kW | E21: 2.8192 | G21: 0 | I21: 6830758.045 | K21: 19257273.08 | M21: =IF(ISERROR(K21/SUM(K19:K100)),"",K21/SUM(K19:K100)) -> 0.295380342 | O21: =IF(ISERROR('17. RTSR - Current Wholesale'!$F$109*M21), "", '17. RTSR - Current Wholesale'!$F$109*M21) -> 20049979.34 | Q21: 2.93524953
A22: GENERAL SERVICE 500 TO 4,999 KW | B22: Retail Transmission Rate - Network Service Rate - Interval Metered | C22: $/kW | E22: 2.9553 | G22: 0 | I22: 5473652.053 | K22: 16176283.91 | M22: =IF(ISERROR(K22/SUM(K19:K100)),"",K22/SUM(K19:K100)) -> 0.2481221643 | O22: =IF(ISERROR('17. RTSR - Current Wholesale'!$F$109*M22), "", '17. RTSR - Current Wholesale'!$F$109*M22) -> 16842164.36 | Q22: 3.076951949
A23: LARGE USE | B23: Retail Transmission Rate - Network Service Rate | C23: $/kW | E23: 3.3451 | G23: 0 | I23: 132253.6428 | K23: 442401.6606 | M23: =IF(ISERROR(K23/SUM(K19:K100)),"",K23/SUM(K19:K100)) -> 0.006785838953 | O23: =IF(ISERROR('17. RTSR - Current Wholesale'!$F$109*M23), "", '17. RTSR - Current Wholesale'!$F$109*M23) -> 460612.6795 | Q23: 3.482797674
A24: UNMETERED SCATTERED LOAD | B24: Retail Transmission Rate - Network Service Rate | C24: $/kWh | E24: 0.007 | G24: 13597269.75 | I24: 0 | K24: 95180.88827 | M24: =IF(ISERROR(K24/SUM(K19:K100)),"",K24/SUM(K19:K100)) -> 0.001459945196 | O24: =IF(ISERROR('17. RTSR - Current Wholesale'!$F$109*M24), "", '17. RTSR - Current Wholesale'!$F$109*M24) -> 99098.91371 | Q24: 0.007288147953
A25: SENTINEL LIGHTING | B25: Retail Transmission Rate - Network Service Rate | C25: $/kW | E25: 2.1788 | G25: 0 | I25: 1062.250256 | K25: 2314.430858 | M25: =IF(ISERROR(K25/SUM(K19:K100)),"",K25/SUM(K19:K100)) -> 3.550021727e-05 | O25: =IF(ISERROR('17. RTSR - Current Wholesale'!$F$109*M25), "", '17. RTSR - Current Wholesale'!$F$109*M25) -> 2409.702075 | Q25: 2.268488109
A26: STREET LIGHTING | B26: Retail Transmission Rate - Network Service Rate | C26: $/kW | E26: 2.1442 | G26: 0 | I26: 172176.2489 | K26: 369180.313 | M26: =IF(ISERROR(K26/SUM(K19:K100)),"",K26/SUM(K19:K100)) -> 0.005662723204 | O26: =IF(ISERROR('17. RTSR - Current Wholesale'!$F$109*M26), "", '17. RTSR - Current Wholesale'!$F$109*M26) -> 384377.2489 | Q26: 2.232463834

Sheet 20. RTSR Adj Conn to Current WS
A13: The purpose of this sheet is to re-align the current RTS Connection Rates to recover current wholesale connection costs.
A16: Rate Class | B16: Rate Description | C16: Unit | E16: Current RTSR-Connection | G16: Loss Adjusted Billed kWh | I16: Loss Adjusted Billed kW | K16: Billed Amount | M16: Billed Amount % | O16: Current Wholesale Billing | Q16: Proposed RTSR Connection
A19: RESIDENTIAL | B19: Retail Transmission Rate - Line and Transformation Connection Service Rate | C19: $/kWh | E19: 0.0034 | G19: 2784046746 | I19: 0 | K19: =IF(E19="", "", IF(C19="$/kWh", E19*G19, E19*I19)) -> 9465758.937 | M19: =IF(ISERROR(K19/SUM(K19:K100)),"",K19/SUM(K19:K100)) -> 0.344383067 | O19: =IF(ISERROR('17. RTSR - Current Wholesale'!$P$113*M19), "", '17. RTSR - Current Wholesale'!$P$113*M19) -> 9761818.742 | Q19: =IF(C19="","",IF(C19="$/kWh",IF(G19<>0,O19/G19,),IF(I19<>0,O19/I19,0))) -> 0.003506341535
A20: GENERAL SERVICE LESS THAN 50 KW | B20: Retail Transmission Rate - Line and Transformation Connection Service Rate | C20: $/kWh | E20: 0.0029 | G20: 1059291742 | I20: 0 | K20: 3071946.052 | M20: =IF(ISERROR(K20/SUM(K19:K100)),"",K20/SUM(K19:K100)) -> 0.1117634846 | O20: =IF(ISERROR('17. RTSR - Current Wholesale'!$P$113*M20), "", '17. RTSR - Current Wholesale'!$P$113*M20) -> 3168027.069 | Q20: 0.002990703074
A21: GENERAL SERVICE 500 TO 4,999 KW | B21: Retail Transmission Rate - Line and Transformation Connection Service Rate | C21: $/kW | E21: 1.1439 | G21: 0 | I21: 6830758.045 | K21: 7813704.127 | M21: =IF(ISERROR(K21/SUM(K19:K100)),"",K21/SUM(K19:K100)) -> 0.2842780394 | O21: =IF(ISERROR('17. RTSR - Current Wholesale'!$P$113*M21), "", '17. RTSR - Current Wholesale'!$P$113*M21) -> 8058092.743 | Q21: 1.179677671
A22: GENERAL SERVICE 500 TO 4,999 KW | B22: Retail Transmission Rate - Line and Transformation Connection Service Rate - Interval Metered | C22: $/kW | E22: 1.2376 | G22: 0 | I22: 5473652.053 | K22: 6774191.781 | M22: =IF(ISERROR(K22/SUM(K19:K100)),"",K22/SUM(K19:K100)) -> 0.2464585204 | O22: =IF(ISERROR('17. RTSR - Current Wholesale'!$P$113*M22), "", '17. RTSR - Current Wholesale'!$P$113*M22) -> 6986067.65 | Q22: 1.276308319
A23: LARGE USE | B23: Retail Transmission Rate - Line and Transformation Connection Service Rate | C23: $/kW | E23: 1.1732 | G23: 0 | I23: 132253.6428 | K23: 155159.9737 | M23: =IF(ISERROR(K23/SUM(K19:K100)),"",K23/SUM(K19:K100)) -> 0.005645027302 | O23: =IF(ISERROR('17. RTSR - Current Wholesale'!$P$113*M23), "", '17. RTSR - Current Wholesale'!$P$113*M23) -> 160012.9002 | Q23: 1.209894085
A24: UNMETERED SCATTERED LOAD | B24: Retail Transmission Rate - Line and Transformation Connection Service Rate | C24: $/kWh | E24: 0.0033 | G24: 13597269.75 | I24: 0 | K24: 44870.99018 | M24: =IF(ISERROR(K24/SUM(K19:K100)),"",K24/SUM(K19:K100)) -> 0.001632495537 | O24: =IF(ISERROR('17. RTSR - Current Wholesale'!$P$113*M24), "", '17. RTSR - Current Wholesale'!$P$113*M24) -> 46274.41665 | Q24: 0.003403213843
A25: SENTINEL LIGHTING | B25: Retail Transmission Rate - Line and Transformation Connection Service Rate | C25: $/kW | E25: 0.8418 | G25: 0 | I25: 1062.250256 | K25: 894.2022657 | M25: =IF(ISERROR(K25/SUM(K19:K100)),"",K25/SUM(K19:K100)) -> 3.253285033e-05 | O25: =IF(ISERROR('17. RTSR - Current Wholesale'!$P$113*M25), "", '17. RTSR - Current Wholesale'!$P$113*M25) -> 922.1701603 | Q25: 0.868128913
A26: STREET LIGHTING | B26: Retail Transmission Rate - Line and Transformation Connection Service Rate | C26: $/kW | E26: 0.927 | G26: 0 | I26: 172176.2489 | K26: 159607.3828 | M26: =IF(ISERROR(K26/SUM(K19:K100)),"",K26/SUM(K19:K100)) -> 0.005806832856 | O26: =IF(ISERROR('17. RTSR - Current Wholesale'!$P$113*M26), "", '17. RTSR - Current Wholesale'!$P$113*M26) -> 164599.4105 | Q26: 0.9559937068

Sheet 21. RTSR Adj Ntwk to Forcast WS
A13: The purpose of this sheet is to update the re-align RTS Network Rates to recover forecast wholesale network costs.
A16: Rate Class | B16: Rate Description | C16: Unit | E16: Adjusted RTSR-Network | G16: Loss Adjusted Billed kWh | I16: Loss Adjusted Billed kW | K16: Billed Amount | M16: Billed Amount % | O16: Forecast Wholesale Billing | Q16: Proposed RTSR Network
A19: RESIDENTIAL | B19: Retail Transmission Rate - Network Service Rate | C19: $/kWh | E19: 0.008016962748 | G19: 2784046746 | I19: 0 | K19: =IF(E19="", "", IF(C19="$/kWh", E19*G19, E19*I19)) -> 22319599.05 | M19: =IF(ISERROR(K19/SUM(K19:K100)),"",K19/SUM(K19:K100)) -> 0.3288168377 | O19: =IF(ISERROR('18. RTSR - Forecast Wholesale'!$F$109*M19), "", '18. RTSR - Forecast Wholesale'!$F$109*M19) -> 22197693.52 | Q19: =IF(C19="","",IF(C19="$/kWh",IF(G19<>0,O19/G19,),IF(I19<>0,O19/I19,0))) -> 0.007973175577
A20: GENERAL SERVICE LESS THAN 50 KW | B20: Retail Transmission Rate - Network Service Rate | C20: $/kWh | E20: 0.007288147953 | G20: 1059291742 | I20: 0 | K20: 7720274.942 | M20: =IF(ISERROR(K20/SUM(K19:K100)),"",K20/SUM(K19:K100)) -> 0.1137366485 | O20: =IF(ISERROR('18. RTSR - Forecast Wholesale'!$F$109*M20), "", '18. RTSR - Forecast Wholesale'!$F$109*M20) -> 7678108.224 | Q20: 0.007248341434
A21: GENERAL SERVICE 500 TO 4,999 KW | B21: Retail Transmission Rate - Network Service Rate | C21: $/kW | E21: 2.93524953 | G21: 0 | I21: 6830758.045 | K21: 20049979.34 | M21: =IF(ISERROR(K21/SUM(K19:K100)),"",K21/SUM(K19:K100)) -> 0.295380342 | O21: =IF(ISERROR('18. RTSR - Forecast Wholesale'!$F$109*M21), "", '18. RTSR - Forecast Wholesale'!$F$109*M21) -> 19940470.05 | Q21: 2.919217738
A22: GENERAL SERVICE 500 TO 4,999 KW | B22: Retail Transmission Rate - Network Service Rate - Interval Metered | C22: $/kW | E22: 3.076951949 | G22: 0 | I22: 5473652.053 | K22: 16842164.36 | M22: =IF(ISERROR(K22/SUM(K19:K100)),"",K22/SUM(K19:K100)) -> 0.2481221643 | O22: =IF(ISERROR('18. RTSR - Forecast Wholesale'!$F$109*M22), "", '18. RTSR - Forecast Wholesale'!$F$109*M22) -> 16750175.56 | Q22: 3.060146206
A23: LARGE USE | B23: Retail Transmission Rate - Network Service Rate | C23: $/kW | E23: 3.482797674 | G23: 0 | I23: 132253.6428 | K23: 460612.6795 | M23: =IF(ISERROR(K23/SUM(K19:K100)),"",K23/SUM(K19:K100)) -> 0.006785838953 | O23: =IF(ISERROR('18. RTSR - Forecast Wholesale'!$F$109*M23), "", '18. RTSR - Forecast Wholesale'!$F$109*M23) -> 458096.8981 | Q23: 3.463775276
A24: UNMETERED SCATTERED LOAD | B24: Retail Transmission Rate - Network Service Rate | C24: $/kWh | E24: 0.007288147953 | G24: 13597269.75 | I24: 0 | K24: 99098.91371 | M24: =IF(ISERROR(K24/SUM(K19:K100)),"",K24/SUM(K19:K100)) -> 0.001459945196 | O24: =IF(ISERROR('18. RTSR - Forecast Wholesale'!$F$109*M24), "", '18. RTSR - Forecast Wholesale'!$F$109*M24) -> 98557.65373 | Q24: 0.007248341434
A25: SENTINEL LIGHTING | B25: Retail Transmission Rate - Network Service Rate | C25: $/kW | E25: 2.268488109 | G25: 0 | I25: 1062.250256 | K25: 2409.702075 | M25: =IF(ISERROR(K25/SUM(K19:K100)),"",K25/SUM(K19:K100)) -> 3.550021727e-05 | O25: =IF(ISERROR('18. RTSR - Forecast Wholesale'!$F$109*M25), "", '18. RTSR - Forecast Wholesale'!$F$109*M25) -> 2396.540726 | Q25: 2.256098045
A26: STREET LIGHTING | B26: Retail Transmission Rate - Network Service Rate | C26: $/kW | E26: 2.232463834 | G26: 0 | I26: 172176.2489 | K26: 384377.2489 | M26: =IF(ISERROR(K26/SUM(K19:K100)),"",K26/SUM(K19:K100)) -> 0.005662723204 | O26: =IF(ISERROR('18. RTSR - Forecast Wholesale'!$F$109*M26), "", '18. RTSR - Forecast Wholesale'!$F$109*M26) -> 382277.8513 | Q26: 2.220270529

Sheet 22. RTSR Adj Conn. to Forcst WS
A13: The purpose of this sheet is to update the re-aligned RTS Connection Rates to recover forecast wholesale connection costs.
A16: Rate Class | B16: Rate Description | C16: Unit | E16: Adjusted RTSR-Connection | G16: Loss Adjusted Billed kWh | I16: Loss Adjusted Billed kW | K16: Billed Amount | M16: Billed Amount % | O16: Forecast Wholesale Billing | Q16: Proposed RTSR Connection
A19: RESIDENTIAL | B19: Retail Transmission Rate - Line and Transformation Connection Service Rate | C19: $/kWh | E19: 0.003506341535 | G19: 2784046746 | I19: 0 | K19: =IF(E19="", "", IF(C19="$/kWh", E19*G19, E19*I19)) -> 9761818.742 | M19: =IF(ISERROR(K19/SUM(K19:K100)),"",K19/SUM(K19:K100)) -> 0.344383067 | O19: =IF(ISERROR('18. RTSR - Forecast Wholesale'!$P$113*M19), "", '18. RTSR - Forecast Wholesale'!$P$113*M19) -> 9703480.677 | Q19: =IF(C19="","",IF(C19="$/kWh",IF(G19<>0,O19/G19,),IF(I19<>0,O19/I19,0))) -> 0.003485387122
A20: GENERAL SERVICE LESS THAN 50 KW | B20: Retail Transmission Rate - Line and Transformation Connection Service Rate | C20: $/kWh | E20: 0.002990703074 | G20: 1059291742 | I20: 0 | K20: 3168027.069 | M20: =IF(ISERROR(K20/SUM(K19:K100)),"",K20/SUM(K19:K100)) -> 0.1117634846 | O20: =IF(ISERROR('18. RTSR - Forecast Wholesale'!$P$113*M20), "", '18. RTSR - Forecast Wholesale'!$P$113*M20) -> 3149094.474 | Q20: 0.002972830193
A21: GENERAL SERVICE 500 TO 4,999 KW | B21: Retail Transmission Rate - Line and Transformation Connection Service Rate | C21: $/kW | E21: 1.179677671 | G21: 0 | I21: 6830758.045 | K21: 8058092.743 | M21: =IF(ISERROR(K21/SUM(K19:K100)),"",K21/SUM(K19:K100)) -> 0.2842780394 | O21: =IF(ISERROR('18. RTSR - Forecast Wholesale'!$P$113*M21), "", '18. RTSR - Forecast Wholesale'!$P$113*M21) -> 8009936.395 | Q21: 1.172627744
A22: GENERAL SERVICE 500 TO 4,999 KW | B22: Retail Transmission Rate - Line and Transformation Connection Service Rate - Interval Metered | C22: $/kW | E22: 1.276308319 | G22: 0 | I22: 5473652.053 | K22: 6986067.65 | M22: =IF(ISERROR(K22/SUM(K19:K100)),"",K22/SUM(K19:K100)) -> 0.2464585204 | O22: =IF(ISERROR('18. RTSR - Forecast Wholesale'!$P$113*M22), "", '18. RTSR - Forecast Wholesale'!$P$113*M22) -> 6944317.882 | Q22: 1.268680913
A23: LARGE USE | B23: Retail Transmission Rate - Line and Transformation Connection Service Rate | C23: $/kW | E23: 1.209894085 | G23: 0 | I23: 132253.6428 | K23: 160012.9002 | M23: =IF(ISERROR(K23/SUM(K19:K100)),"",K23/SUM(K19:K100)) -> 0.005645027302 | O23: =IF(ISERROR('18. RTSR - Forecast Wholesale'!$P$113*M23), "", '18. RTSR - Forecast Wholesale'!$P$113*M23) -> 159056.6395 | Q23: 1.20266358
A24: UNMETERED SCATTERED LOAD | B24: Retail Transmission Rate - Line and Transformation Connection Service Rate | C24: $/kWh | E24: 0.003403213843 | G24: 13597269.75 | I24: 0 | K24: 46274.41665 | M24: =IF(ISERROR(K24/SUM(K19:K100)),"",K24/SUM(K19:K100)) -> 0.001632495537 | O24: =IF(ISERROR('18. RTSR - Forecast Wholesale'!$P$113*M24), "", '18. RTSR - Forecast Wholesale'!$P$113*M24) -> 45997.87393 | Q24: 0.003382875736
A25: SENTINEL LIGHTING | B25: Retail Transmission Rate - Line and Transformation Connection Service Rate | C25: $/kW | E25: 0.868128913 | G25: 0 | I25: 1062.250256 | K25: 922.1701603 | M25: =IF(ISERROR(K25/SUM(K19:K100)),"",K25/SUM(K19:K100)) -> 3.253285033e-05 | O25: =IF(ISERROR('18. RTSR - Forecast Wholesale'!$P$113*M25), "", '18. RTSR - Forecast Wholesale'!$P$113*M25) -> 916.6591358 | Q25: 0.8629408469
A26: STREET LIGHTING | B26: Retail Transmission Rate - Line and Transformation Connection Service Rate | C26: $/kW | E26: 0.9559937068 | G26: 0 | I26: 172176.2489 | K26: 164599.4105 | M26: =IF(ISERROR(K26/SUM(K19:K100)),"",K26/SUM(K19:K100)) -> 0.005806832856 | O26: =IF(ISERROR('18. RTSR - Forecast Wholesale'!$P$113*M26), "", '18. RTSR - Forecast Wholesale'!$P$113*M26) -> 163615.7402 | Q26: 0.9502805478

Sheet 23. RTSR Final 2015 RTS Rates
A13: This sheet lists proposed RTSRs for all classes. No input required.
A16: Rate Class | B16: Rate Description | C16: Unit | E16: Proposed Retail Transmission Rate
A19: RESIDENTIAL | B19: Retail Transmission Rate - Network Service Rate | C19: $/kWh | E19: 0.007973175577
A20: RESIDENTIAL | B20: Retail Transmission Rate - Line and Transformation Connection Service Rate | C20: $/kWh | E20: 0.003485387122
A21: GENERAL SERVICE LESS THAN 50 KW | B21: Retail Transmission Rate - Network Service Rate | C21: $/kWh | E21: 0.007248341434
A22: GENERAL SERVICE LESS THAN 50 KW | B22: Retail Transmission Rate - Line and Transformation Connection Service Rate | C22: $/kWh | E22: 0.002972830193
A23: GENERAL SERVICE 500 TO 4,999 KW | B23: Retail Transmission Rate - Network Service Rate | C23: $/kW | E23: 2.919217738
A24: GENERAL SERVICE 500 TO 4,999 KW | B24: Retail Transmission Rate - Line and Transformation Connection Service Rate | C24: $/kW | E24: 1.172627744
A25: GENERAL SERVICE 500 TO 4,999 KW | B25: Retail Transmission Rate - Network Service Rate - Interval Metered | C25: $/kW | E25: 3.060146206
A26: GENERAL SERVICE 500 TO 4,999 KW | B26: Retail Transmission Rate - Line and Transformation Connection Service Rate - Interval Metered | C26: $/kW | E26: 1.268680913
A27: LARGE USE | B27: Retail Transmission Rate - Network Service Rate | C27: $/kW | E27: 3.463775276
A28: LARGE USE | B28: Retail Transmission Rate - Line and Transformation Connection Service Rate | C28: $/kW | E28: 1.20266358
A29: UNMETERED SCATTERED LOAD | B29: Retail Transmission Rate - Network Service Rate | C29: $/kWh | E29: 0.007248341434
A30: UNMETERED SCATTERED LOAD | B30: Retail Transmission Rate - Line and Transformation Connection Service Rate | C30: $/kWh | E30: 0.003382875736
A31: SENTINEL LIGHTING | B31: Retail Transmission Rate - Network Service Rate | C31: $/kW | E31: 2.256098045
A32: SENTINEL LIGHTING | B32: Retail Transmission Rate - Line and Transformation Connection Service Rate | C32: $/kW | E32: 0.8629408469
A33: STREET LIGHTING | B33: Retail Transmission Rate - Network Service Rate | C33: $/kW | E33: 2.220270529
A34: STREET LIGHTING | B34: Retail Transmission Rate - Line and Transformation Connection Service Rate | C34: $/kW | E34: 0.9502805478

Sheet 24. Rev2Cost_GDPIPI
Y1: FALSE | Z1: 0
Y2: TRUE
A12: If applicable, please enter any adjustments related to the revenue to cost ratio model into columns C and E. The Price Escalator and Productivity Factor have been set at the 2014 values and will be updated by Board staff at a later date. The Stretch Factor Value may be updated by Board staff.
F14: Choose "YES" from the drop-down menu to overide the
A15: Price Escalator | B15: 0.017 | C15: Choose Stretch Factor Group | E15: III | F15: price escalator, productivity factor or associated stretch
A16: Productivity Factor | B16: 0 | C16: Associated Stretch Factor Value | E16: =IF(E15="I", 0%, IF(E15="II", 0.15%, IF(E15="III", 0.3%, IF(E15="IV", 0.45%, 0.6%)))) -> 0.003 | F16: factor value | G16: YES
A17: Price Cap Index | B17: =B15-B16-E16 -> 0.014
B19: Current MFC | C19: MFC Adjustment from R/C Model | D19: Current Volumetric Charge | E19: DVR Adjustment from R/C Model | F19: Price Cap Index to be Applied to MFC and DVR | G19: Proposed MFC | H19: Proposed Volumetric Charge
A20: Rate Class
A22: RESIDENTIAL | B22: 12.51 | D22: 0.0138 | F22: =$B$17 -> 0.014 | G22: =ROUND(SUM(B22,C22)*(1+F22),2) -> 12.69 | H22: =ROUND(SUM(D22,E22)*(1+F22),4) -> 0.014
A23: GENERAL SERVICE LESS THAN 50 KW | B23: 25.75 | D23: 0.0137 | F23: 0.014 | G23: 26.11 | H23: 0.0139
A24: GENERAL SERVICE 500 TO 4,999 KW | B24: 136.7 | D24: 3.2851 | F24: 0.014 | G24: 138.61 | H24: 3.3311
A25: LARGE USE | B25: 5889.72 | D25: 1.3977 | F25: 0.014 | G25: 5972.18 | H25: 1.4173
A26: STANDBY POWER | B26: 2.723 | F26: 0.014 | G26: 2.76 | H26: 0
A27: UNMETERED SCATTERED LOAD | B27: 6.92 | D27: 0.0157 | F27: 0.014 | G27: 7.02 | H27: 0.0159
A28: SENTINEL LIGHTING | B28: 3.37 | D28: 7.9143 | F28: 0.014 | G28: 3.42 | H28: 8.0251
A29: STREET LIGHTING | B29: 1.24 | D29: 6.5692 | F29: 0.014 | G29: 1.26 | H29: 6.6612
A30: microFIT | B30: 5.4 | G30: 5.4

Sheet 24. hidden (hidden)
A1: Rate Class | B1: MFC Adjustment from R/C Model | C1: DVR Adjustment from R/C Model
A2: RESIDENTIAL | B2: 12.51 | D2: 0.0138
A3: GENERAL SERVICE LESS THAN 50 KW | B3: 25.75 | D3: 0.0137
A4: GENERAL SERVICE 500 TO 4,999 KW | B4: 136.7 | D4: 3.2851
A5: LARGE USE | B5: 5889.72 | D5: 1.3977
A6: STANDBY POWER | B6: 2.723
A7: UNMETERED SCATTERED LOAD | B7: 6.92 | D7: 0.0157
A8: SENTINEL LIGHTING | B8: 3.37 | D8: 7.9143
A9: STREET LIGHTING | B9: 1.24 | D9: 6.5692
A10: microFIT | B10: 5.4

Sheet 25. Other Charges & LF
A11: Please enter the following charges as found on your most recent Board-Approved Tariff Schedule. The standard Allowance rates have been included as default entries. If you have different rates, please make the appropriate corrections in the applicable cells below. As well, please enter the current Specific Service Charges below. The standard Retail Service Charges have been entered below. If you have different rates, please make the appropriate corrections in columns A, C or D as applicable (cells are unlocked).
C13: UNIT | D13: RATE
A15: ALLOWANCES
A17: Transformer Allowance for Ownership - per kW of billing demand/month | C17: $/kW | D17: -0.6
A20: Primary Metering Allowance for transformer losses – applied to measured demand and energy | C20: % | D20: -1
A22: SPECIFIC SERVICE CHARGES
A24: APPLICATION
A26: The application of these rates and charges shall be in accordance with the Licence of the Distributor and any Code or Order of the Board, and amendments thereto as approved by the Board, which may be applicable to the administration of this schedule.
A27: No charges to meet the costs of any work or service done or furnished for the purpose of the distribution of electricity shall be made except as permitted by this schedule, unless required by the Distributor’s Licence or a Code or Order of the Board, and amendments thereto as approved by the Board, or as specified herein.
A28: It should be noted that this schedule does not list any charges, assessments or credits that are required by law to be invoiced by a distributor and that are not subject to Board approval, such as the Debt Retirement Charge, the Global Adjustment, the Ontario Clean Energy Benefit and the HST.
A30: Customer Administration
A31: Arrears certificate | C31: $ | D31: 15
A32: Statement of Account | C32: $ | D32: 15
A33: Duplicate Invoices for previous billing | C33: $ | D33: 15
A34: Request for other billing information | C34: $ | D34: 15
A35: Easement Letter | C35: $ | D35: 15
A36: Income Tax Letter | C36: $ | D36: 15
A37: Account History | C37: $ | D37: 15
A38: Returned cheque (plus bank charges) | C38: $ | D38: 15
A39: Legal letter charge | C39: $ | D39: 15
A40: Account set up charge/change of occupancy charge (plus credit agency costs if applicable) | C40: $ | D40: 30
A41: Special meter reads | C41: $ | D41: 30
A42: Meter dispute charge plus Measurement Canada fees (if meter found correct) | C42: $ | D42: 30
A67: Non-Payment of Account
A68: Late Payment – per month | C68: % | D68: 1.5
A69: Late Payment – per annum | C69: % | D69: 19.56
A70: Collection of account charge – no disconnection | C70: $ | D70: 30
A88: Disconnect/Reconnect at meter - during regular hours (for non-payment) | C88: $ | D88: 65
A89: Disconnect/Reconnect at meter - after regular hours (for non-payment) | C89: $ | D89: 185
A94: Install/Remove load control device – during regular hours | C94: $ | D94: 65
A95: Install/Remove load control device – after regular hours | C95: $ | D95: 185
A96: Disconnect/Reconnect at meter – during regular hours | C96: $ | D96: 65
A97: Disconnect/Reconnect at meter – after regular hours | C97: $ | D97: 185
A98: Disconnect/Reconnect at pole – during regular hours | C98: $ | D98: 185
A99: Disconnect/Reconnect at pole – after regular hours | C99: $ | D99: 415
A100: Specific Charge for Access to the Power Poles - $/pole/year | C100: $ | D100: 22.35
A101: Temporary Service – Install & remove – overhead – no transformer | C101: $ | D101: 500
A116: RETAIL SERVICE CHARGES (if applicable)
A118: The application of these rates and charges shall be in accordance with the Licence of the Distributor and any Code or Order of the Board, and amendments thereto as approved by the Board, which may be applicable to the administration of this schedule.
A120: No rates and charges for the distribution of electricity and charges to meet the costs of any work or service done or furnished for the purpose of the distribution of electricity shall be made except as permitted by this schedule, unless required by the Distributor’s Licence or a Code or Order of the Board, and amendments thereto as approved by the Board, or as specified herein.
A122: Unless specifically noted, this schedule does not contain any charges for the electricity commodity, be it under the Regulated Price Plan, a contract with a retailer or the wholesale market price, as applicable.
A124: It should be noted that this schedule does not list any charges, assessments, or credits that are required by law to be invoiced by a distributor and that are not subject to Board approval, such as the Debt Retirement Charge, the Global Adjustment, the Ontario Clean Energy Benefit and the HST.
A126: Retail Service Charges refer to services provided by a distributor to retailers or customers related to the supply of competitive electricity.
A128: One-time charge, per retailer, to establish the service agreement between the distributor and the retailer | C128: $ | D128: 100
A129: Monthly Fixed Charge, per retailer | C129: $ | D129: 20
A130: Monthly Variable Charge, per customer, per retailer | C130: $/cust. | D130: 0.5
A131: Distributor-consolidated billing monthly charge, per customer, per retailer | C131: $/cust. | D131: 0.3
A132: Retailer-consolidated billing monthly credit, per customer, per retailer | C132: $/cust. | D132: -0.3
A133: Service Transaction Requests (STR)
A134: Request fee, per request, applied to the requesting party | C134: $ | D134: 0.25
A135: Processing fee, per request, applied to the requesting party | C135: $ | D135: 0.5
A136: Request for customer information as outlined in Section 10.6.3 and Chapter 11 of the Retail
A137: Settlement Code directly to retailers and customers, if not delivered electronically through the
A138: Electronic Business Transaction (EBT) system, applied to the requesting party
A139: Up to twice a year | C139: $ | D139: no charge
A140: More than twice a year, per request (plus incremental delivery costs) | C140: $ | D140: 2
A143: LOSS FACTORS
A145: If the distributor is not capable of prorating changed loss factors jointly with distribution rates, the revised loss factors will be implemented upon the first subsequent billing for each billing cycle.
A148: Total Loss Factor – Secondary Metered Customer < 5,000 kW | D148: 1.0345 | H148: TLF_Secondary_LT_5000kW
A149: Total Loss Factor – Primary Metered Customer < 5,000 kW | D149: 1.0243 | H149: TLF_Primary_LT_5000kW
A150: Total Loss Factor – Primary Metered Customer > 5,000 kW | D150: 1.0045
A151: Total Loss Factor – Secondary Metered Customer > 5,000 kW | D151: 1.0145

Sheet 26. Proposed Rates
Z1: 3
L5: =ROUND(LEN(B5), -2) / 100 -> 0
L9: =ROUND(LEN(B9), -2) / 100 -> 0
B12: In the Green Cells below, enter any proposed rate riders that are not already included in this model (e.g: ICM rate riders). In column B, the rate rider descriptions must begin with "Rate Rider for". In column C, choose the associated unit from the drop-down menu. In column D, enter the rate. All rate riders with a "$" unit will be rounded to 2 decimal places and all others will be rounded to 4 decimal places.
A20: RESIDENTIAL | B20: RESIDENTIAL SERVICE CLASSIFICATION | C20: Unit | D20: Rate
A21: RESIDENTIAL
A22: RESIDENTIAL
A23: RESIDENTIAL
A24: RESIDENTIAL
A25: RESIDENTIAL
A26: RESIDENTIAL
A27: RESIDENTIAL
A28: RESIDENTIAL
A29: RESIDENTIAL
A30: RESIDENTIAL
A32: GENERAL SERVICE LESS THAN 50 KW | B32: GENERAL SERVICE LESS THAN 50 KW SERVICE CLASSIFICATION | C32: Unit | D32: Rate
A33: GENERAL SERVICE LESS THAN 50 KW
A34: GENERAL SERVICE LESS THAN 50 KW
A35: GENERAL SERVICE LESS THAN 50 KW
A36: GENERAL SERVICE LESS THAN 50 KW
A37: GENERAL SERVICE LESS THAN 50 KW
A38: GENERAL SERVICE LESS THAN 50 KW
A39: GENERAL SERVICE LESS THAN 50 KW
A40: GENERAL SERVICE LESS THAN 50 KW
A41: GENERAL SERVICE LESS THAN 50 KW
A42: GENERAL SERVICE LESS THAN 50 KW
A44: GENERAL SERVICE 500 TO 4,999 KW | B44: GENERAL SERVICE 500 TO 4,999 KW SERVICE CLASSIFICATION | C44: Unit | D44: Rate
A45: GENERAL SERVICE 500 TO 4,999 KW
A46: GENERAL SERVICE 500 TO 4,999 KW
A47: GENERAL SERVICE 500 TO 4,999 KW
A48: GENERAL SERVICE 500 TO 4,999 KW
A49: GENERAL SERVICE 500 TO 4,999 KW
A50: GENERAL SERVICE 500 TO 4,999 KW
A51: GENERAL SERVICE 500 TO 4,999 KW
A52: GENERAL SERVICE 500 TO 4,999 KW
A53: GENERAL SERVICE 500 TO 4,999 KW
A54: GENERAL SERVICE 500 TO 4,999 KW
A56: LARGE USE | B56: LARGE USE SERVICE CLASSIFICATION | C56: Unit | D56: Rate
A57: LARGE USE
A58: LARGE USE
A59: LARGE USE
A60: LARGE USE
A61: LARGE USE
A62: LARGE USE
A63: LARGE USE
A64: LARGE USE
A65: LARGE USE
A66: LARGE USE
A68: STANDBY POWER | B68: STANDBY POWER SERVICE CLASSIFICATION | C68: Unit | D68: Rate
A69: STANDBY POWER
A70: STANDBY POWER
A71: STANDBY POWER
A72: STANDBY POWER
A73: STANDBY POWER
A74: STANDBY POWER
A75: STANDBY POWER
A76: STANDBY POWER
A77: STANDBY POWER
A78: STANDBY POWER
A80: UNMETERED SCATTERED LOAD | B80: UNMETERED SCATTERED LOAD SERVICE CLASSIFICATION | C80: Unit | D80: Rate
A81: UNMETERED SCATTERED LOAD
A82: UNMETERED SCATTERED LOAD
A83: UNMETERED SCATTERED LOAD
A84: UNMETERED SCATTERED LOAD
A85: UNMETERED SCATTERED LOAD
A86: UNMETERED SCATTERED LOAD
A87: UNMETERED SCATTERED LOAD
A88: UNMETERED SCATTERED LOAD
A89: UNMETERED SCATTERED LOAD
A90: UNMETERED SCATTERED LOAD
A92: SENTINEL LIGHTING | B92: SENTINEL LIGHTING SERVICE CLASSIFICATION | C92: Unit | D92: Rate
A93: SENTINEL LIGHTING
A94: SENTINEL LIGHTING
A95: SENTINEL LIGHTING
A96: SENTINEL LIGHTING
A97: SENTINEL LIGHTING
A98: SENTINEL LIGHTING
A99: SENTINEL LIGHTING
A100: SENTINEL LIGHTING
A101: SENTINEL LIGHTING
A102: SENTINEL LIGHTING
A104: STREET LIGHTING | B104: STREET LIGHTING SERVICE CLASSIFICATION | C104: Unit | D104: Rate
A105: STREET LIGHTING
A106: STREET LIGHTING
A107: STREET LIGHTING
A108: STREET LIGHTING
A109: STREET LIGHTING
A110: STREET LIGHTING
A111: STREET LIGHTING
A112: STREET LIGHTING
A113: STREET LIGHTING
A114: STREET LIGHTING
A116: microFIT | B116: microFIT SERVICE CLASSIFICATION | C116: Unit | D116: Rate
A117: microFIT
A118: microFIT
A119: microFIT
A120: microFIT
A121: microFIT
A122: microFIT
A123: microFIT
A124: microFIT
A125: microFIT
A126: microFIT
B130: PROPOSED MONTHLY RATES AND CHARGES - Regulatory Component
A132: Wholesale Market Service Rate | B132: Wholesale Market Service Rate | C132: $/kWh | D132: 0.0044
A133: Rural or Remote Electricity Rate Protection Charge (RRRP) | B133: Rural or Remote Electricity Rate Protection Charge (RRRP) | C133: $/kWh | D133: 0.0013
A134: Standard Supply Service - Administrative Charge (if applicable) | B134: Standard Supply Service - Administrative Charge (if applicable) | C134: $ | D134: 0.25

Sheet 26. Hidden (hidden)
A1: RESIDENTIAL | B1: RESIDENTIAL SERVICE CLASSIFICATION | C1: Unit | D1: Rate
A2: RESIDENTIAL
A3: RESIDENTIAL
A4: RESIDENTIAL
A5: RESIDENTIAL
A6: RESIDENTIAL
A7: RESIDENTIAL
A8: RESIDENTIAL
A9: RESIDENTIAL
A10: RESIDENTIAL
A11: RESIDENTIAL
A13: GENERAL SERVICE LESS THAN 50 KW | B13: GENERAL SERVICE LESS THAN 50 KW SERVICE CLASSIFICATION | C13: Unit | D13: Rate
A14: GENERAL SERVICE LESS THAN 50 KW
A15: GENERAL SERVICE LESS THAN 50 KW
A16: GENERAL SERVICE LESS THAN 50 KW
A17: GENERAL SERVICE LESS THAN 50 KW
A18: GENERAL SERVICE LESS THAN 50 KW
A19: GENERAL SERVICE LESS THAN 50 KW
A20: GENERAL SERVICE LESS THAN 50 KW
A21: GENERAL SERVICE LESS THAN 50 KW
A22: GENERAL SERVICE LESS THAN 50 KW
A23: GENERAL SERVICE LESS THAN 50 KW
A25: GENERAL SERVICE 500 TO 4,999 KW | B25: GENERAL SERVICE 500 TO 4,999 KW SERVICE CLASSIFICATION | C25: Unit | D25: Rate
A26: GENERAL SERVICE 500 TO 4,999 KW
A27: GENERAL SERVICE 500 TO 4,999 KW
A28: GENERAL SERVICE 500 TO 4,999 KW
A29: GENERAL SERVICE 500 TO 4,999 KW
A30: GENERAL SERVICE 500 TO 4,999 KW
A31: GENERAL SERVICE 500 TO 4,999 KW
A32: GENERAL SERVICE 500 TO 4,999 KW
A33: GENERAL SERVICE 500 TO 4,999 KW
A34: GENERAL SERVICE 500 TO 4,999 KW
A35: GENERAL SERVICE 500 TO 4,999 KW
A37: LARGE USE | B37: LARGE USE SERVICE CLASSIFICATION | C37: Unit | D37: Rate
A38: LARGE USE
A39: LARGE USE
A40: LARGE USE
A41: LARGE USE
A42: LARGE USE
A43: LARGE USE
A44: LARGE USE
A45: LARGE USE
A46: LARGE USE
A47: LARGE USE
A49: STANDBY POWER | B49: STANDBY POWER SERVICE CLASSIFICATION | C49: Unit | D49: Rate
A50: STANDBY POWER
A51: STANDBY POWER
A52: STANDBY POWER
A53: STANDBY POWER
A54: STANDBY POWER
A55: STANDBY POWER
A56: STANDBY POWER
A57: STANDBY POWER
A58: STANDBY POWER
A59: STANDBY POWER
A61: UNMETERED SCATTERED LOAD | B61: UNMETERED SCATTERED LOAD SERVICE CLASSIFICATION | C61: Unit | D61: Rate
A62: UNMETERED SCATTERED LOAD
A63: UNMETERED SCATTERED LOAD
A64: UNMETERED SCATTERED LOAD
A65: UNMETERED SCATTERED LOAD
A66: UNMETERED SCATTERED LOAD
A67: UNMETERED SCATTERED LOAD
A68: UNMETERED SCATTERED LOAD
A69: UNMETERED SCATTERED LOAD
A70: UNMETERED SCATTERED LOAD
A71: UNMETERED SCATTERED LOAD
A73: SENTINEL LIGHTING | B73: SENTINEL LIGHTING SERVICE CLASSIFICATION | C73: Unit | D73: Rate
A74: SENTINEL LIGHTING
A75: SENTINEL LIGHTING
A76: SENTINEL LIGHTING
A77: SENTINEL LIGHTING
A78: SENTINEL LIGHTING
A79: SENTINEL LIGHTING
A80: SENTINEL LIGHTING
A81: SENTINEL LIGHTING
A82: SENTINEL LIGHTING
A83: SENTINEL LIGHTING
A85: STREET LIGHTING | B85: STREET LIGHTING SERVICE CLASSIFICATION | C85: Unit | D85: Rate
A86: STREET LIGHTING
A87: STREET LIGHTING
A88: STREET LIGHTING
A89: STREET LIGHTING
A90: STREET LIGHTING
A91: STREET LIGHTING
A92: STREET LIGHTING
A93: STREET LIGHTING
A94: STREET LIGHTING
A95: STREET LIGHTING
A97: microFIT | B97: microFIT SERVICE CLASSIFICATION | C97: Unit | D97: Rate
A98: microFIT
A99: microFIT
A100: microFIT
A101: microFIT
A102: microFIT
A103: microFIT
A104: microFIT
A105: microFIT
A106: microFIT
A107: microFIT
B111: PROPOSED MONTHLY RATES AND CHARGES - Regulatory Component
A113: Wholesale Market Service Rate | B113: Wholesale Market Service Rate | C113: $/kWh | D113: 0.0044
A114: Rural or Remote Electricity Rate Protection Charge (RRRP) | B114: Rural or Remote Electricity Rate Protection Charge (RRRP) | C114: $/kWh | D114: 0.0013
A115: Standard Supply Service - Administrative Charge (if applicable) | B115: Standard Supply Service - Administrative Charge (if applicable) | C115: $ | D115: 0.25

Sheet 27. Final Tariff Schedule
A1: hidden column | B1: ='1. Information Sheet'!F14 -> PowerStream Inc. | F1: hidden column | Z1: 3
A2: for rate classes | B2: TARIFF OF RATES AND CHARGES | F2: for proposed
B3: ="Effective and Implementation Date " & TEXT('1. Information Sheet'!F26, "mmmm dd, yyyy") -> Effective and Implementation Date January 01, 2015 | F3: labeliing
B5: This schedule supersedes and replaces all previously
B6: approved schedules of Rates, Charges and Loss Factors | L6: =ROUND(LEN(B6), -2) / 100 -> 1
B7: =IF(LEN('1. Information Sheet'!F18)=0, "Please enter your assigned EB# on Sheet 1", '1. Information Sheet'!F18) -> EB-2004-0420
B9: RESIDENTIAL SERVICE CLASSIFICATION
B11: This classification refers to an account taking electricity at 750 volts or less where the electricity is used exclusively in a separately metered living accommodation. Customers shall be residing in single-dwelling units that consist of a detached house or one unit of a semi-detached, duplex, triplex or quadruplex house, with a residential zoning. Separately metered dwellings within a town house complex or apartment building also qualify as residential customers. Multi-unit residential establishments such as apartment buildings supplied through one service (bulk metered) shall be classified as general service. Further servicing details are available in the distributor’s Conditions of Service. | L11: =ROUND(LEN(B11), -2) / 100 -> 7
B13: APPLICATION
B15: The application of these rates and charges shall be in accordance with the Licence of the Distributor and any Code or Order of the Board, and amendments thereto as approved by the Board, which may be applicable to the administration of this schedule. | L15: =ROUND(LEN(B15), -2) / 100 -> 3
B17: No rates and charges for the distribution of electricity and charges to meet the costs of any work or service done or furnished for the purpose of the distribution of electricity shall be made except as permitted by this schedule, unless required by the Distributor’s Licence or a Code or Order of the Board, and amendments thereto as approved by the Board, or as specified herein. | L17: =ROUND(LEN(B17), -2) / 100 -> 4
B19: Unless specifically noted, this schedule does not contain any charges for the electricity commodity, be it under the Regulated Price Plan, a contract with a retailer or the wholesale market price, as applicable. In addition, the charges in the MONTHLY RATES AND CHARGES – Regulatory Component of this schedule do not apply to a customer that is an embedded wholesale market participant. | L19: =ROUND(LEN(B19), -2) / 100 -> 4
B21: t should be noted that this schedule does not list any charges, assessments or credits that are required by law to be invoiced by a distributor and that are not subject to Board approval, such as the Debt Retirement Charge, the Global Adjustment, the Ontario Clean Energy Benefit and the HST. | L21: =ROUND(LEN(B21), -2) / 100 -> 3
B23: MONTHLY RATES AND CHARGES - Delivery Component
A25: RESIDENTIAL | B25: Service Charge | D25: $ | E25: 12.69 | K25: 1_P_MSC
A26: RESIDENTIAL | B26: Rate Rider for Recovery of CGAAP/CWIP Differential - in effect until December 31, 2016 | D26: $ | E26: 0.2 | K26: 1_P_MSC_Rate_Rider_1
A27: RESIDENTIAL | B27: Rate Rider for Recovery of Incremental Capital Module Costs (2014) - in effect until the effective date of the next cost of service-based rate order | D27: $ | E27: 0.07 | K27: 1_P_MSC_Rate_Rider_2
A28: RESIDENTIAL | B28: Rate Rider for Smart Metering Entity Charge - effective until October 31, 2018 | D28: $ | E28: 0.79 | K28: 1_P_SMEC
A29: RESIDENTIAL | B29: Distribution Volumetric Rate | D29: $/kWh | E29: 0.014 | K29: 1_P_VC_1
A30: RESIDENTIAL | B30: Low Voltage Service Rate | D30: $/kWh | E30: 0.0003 | K30: 1_P_LVrate
A31: RESIDENTIAL | B31: Rate Rider for Disposition of Deferral/Variance Accounts (2014) - effective until December 31, 2015 | D31: $/kWh | E31: -0.0006 | K31: 1_P_VC_DEFVAR_kWh_1
A32: RESIDENTIAL | B32: Rate Rider for Disposition of Global Adjustment Sub-Account (2014) - effective until December 31, 2015. Applicable only for Non-RPP Customers. | D32: $/kWh | E32: -0.0002 | K32: 1_P_VC_GA_Rate_Rider_kWh_1
A33: RESIDENTIAL | B33: Rate Rider for Recovery of Incremental Capital Module Costs (2014) - in effect until the effective date of the next cost of service-based rate order | D33: $/kWh | E33: 0.0001 | K33: 1_P_VC_Rate_Rider_kWh_2
A34: RESIDENTIAL | B34: Rate Rider for Recovery of Lost Revenue Adjustment Mechanism Variance Account (LRAMVA) (2015) - effective until December 31, 2015 | D34: $/kWh | E34: 8.160552255e-05 | K34: 1_P_VC_Rate_Rider_kWh_3
A35: RESIDENTIAL | B35: Retail Transmission Rate - Network Service Rate | D35: $/kWh | E35: 0.007973175577 | K35: 1_P_RTSR_Network
A36: RESIDENTIAL | B36: Retail Transmission Rate - Line and Transformation Connection Service Rate | D36: $/kWh | E36: 0.003485387122 | K36: 1_P_RTSR_Connection
A37: RESIDENTIAL
A38: RESIDENTIAL | B38: MONTHLY RATES AND CHARGES - Regulatory Component
A39: RESIDENTIAL
A40: RESIDENTIAL | B40: Wholesale Market Service Rate | D40: $/kWh | E40: 0.0044 | K40: 1_P_WMSR
A41: RESIDENTIAL | B41: Rural or Remote Electricity Rate Protection Charge (RRRP) | D41: $/kWh | E41: 0.0013 | K41: 1_P_RRPC
A42: RESIDENTIAL | B42: Standard Supply Service - Administrative Charge (if applicable) | D42: $ | E42: 0.25 | K42: 1_P_SSS
B44: GENERAL SERVICE LESS THAN 50 KW SERVICE CLASSIFICATION
B46: This classification refers to a non residential account taking electricity at 750 volts or less whose monthly average peak demand is less than, or is forecast to be less than, 50 kW. Further servicing details are available in the distributor’s Conditions of Service. | L46: =ROUND(LEN(B46), -2) / 100 -> 3
B48: APPLICATION
B50: The application of these rates and charges shall be in accordance with the Licence of the Distributor and any Code or Order of the Board, and amendments thereto as approved by the Board, which may be applicable to the administration of this schedule. | L50: =ROUND(LEN(B50), -2) / 100 -> 3
B52: No rates and charges for the distribution of electricity and charges to meet the costs of any work or service done or furnished for the purpose of the distribution of electricity shall be made except as permitted by this schedule, unless required by the Distributor’s Licence or a Code or Order of the Board, and amendments thereto as approved by the Board, or as specified herein. | L52: =ROUND(LEN(B52), -2) / 100 -> 4
B54: Unless specifically noted, this schedule does not contain any charges for the electricity commodity, be it under the Regulated Price Plan, a contract with a retailer or the wholesale market price, as applicable. In addition, the charges in the MONTHLY RATES AND CHARGES – Regulatory Component of this schedule do not apply to a customer that is an embedded wholesale market participant. | L54: =ROUND(LEN(B54), -2) / 100 -> 4
B56: It should be noted that this schedule does not list any charges, assessments or credits that are required by law to be invoiced by a distributor and that are not subject to Board approval, such as the Debt Retirement Charge, the Global Adjustment, the Ontario Clean Energy Benefit and the HST. | L56: =ROUND(LEN(B56), -2) / 100 -> 3
B58: MONTHLY RATES AND CHARGES - Delivery Component
A60: GENERAL SERVICE LESS THAN 50 KW | B60: Service Charge | D60: $ | E60: 26.11 | K60: 2_P_MSC
A61: GENERAL SERVICE LESS THAN 50 KW | B61: Rate Rider for Recovery of CGAAP/CWIP Differential - in effect until December 31, 2016 | D61: $ | E61: 0.55 | K61: 2_P_MSC_Rate_Rider_1
A62: GENERAL SERVICE LESS THAN 50 KW | B62: Rate Rider for Recovery of Incremental Capital Module Costs (2014) - in effect until the effective date of the next cost of service-based rate order | D62: $ | E62: 0.14 | K62: 2_P_MSC_Rate_Rider_2
A63: GENERAL SERVICE LESS THAN 50 KW | B63: Rate Rider for Smart Metering Entity Charge - effective until October 31, 2018 | D63: $ | E63: 0.79 | K63: 2_P_SMEC
A64: GENERAL SERVICE LESS THAN 50 KW | B64: Distribution Volumetric Rate | D64: $/kWh | E64: 0.0139 | K64: 2_P_VC_1
A65: GENERAL SERVICE LESS THAN 50 KW | B65: Low Voltage Service Rate | D65: $/kWh | E65: 0.0003 | K65: 2_P_LVrate
A66: GENERAL SERVICE LESS THAN 50 KW | B66: Rate Rider for Disposition of Deferral/Variance Accounts (2014) - effective until December 31, 2015 | D66: $/kWh | E66: -0.0006 | K66: 2_P_VC_DEFVAR_kWh_1
A67: GENERAL SERVICE LESS THAN 50 KW | B67: Rate Rider for Disposition of Global Adjustment Sub-Account (2014) - effective until December 31, 2015. Applicable only for Non-RPP Customers. | D67: $/kWh | E67: -0.0002 | K67: 2_P_VC_GA_Rate_Rider_kWh_1
A68: GENERAL SERVICE LESS THAN 50 KW | B68: Rate Rider for Recovery of Incremental Capital Module Costs (2014) - in effect until the effective date of the next cost of service-based rate order | D68: $/kWh | E68: 0.0001 | K68: 2_P_VC_Rate_Rider_kWh_2
A69: GENERAL SERVICE LESS THAN 50 KW | B69: Rate Rider for Recovery of Lost Revenue Adjustment Mechanism Variance Account (LRAMVA) (2015) - effective until December 31, 2015 | D69: $/kWh | E69: 0.0004075248209 | K69: 2_P_VC_Rate_Rider_kWh_3
A70: GENERAL SERVICE LESS THAN 50 KW | B70: Retail Transmission Rate - Network Service Rate | D70: $/kWh | E70: 0.007248341434 | K70: 2_P_RTSR_Network
A71: GENERAL SERVICE LESS THAN 50 KW | B71: Retail Transmission Rate - Line and Transformation Connection Service Rate | D71: $/kWh | E71: 0.002972830193 | K71: 2_P_RTSR_Connection
A72: GENERAL SERVICE LESS THAN 50 KW
A73: GENERAL SERVICE LESS THAN 50 KW | B73: MONTHLY RATES AND CHARGES - Regulatory Component
A74: GENERAL SERVICE LESS THAN 50 KW
A75: GENERAL SERVICE LESS THAN 50 KW | B75: Wholesale Market Service Rate | D75: $/kWh | E75: 0.0044 | K75: 2_P_WMSR
A76: GENERAL SERVICE LESS THAN 50 KW | B76: Rural or Remote Electricity Rate Protection Charge (RRRP) | D76: $/kWh | E76: 0.0013 | K76: 2_P_RRPC
A77: GENERAL SERVICE LESS THAN 50 KW | B77: Standard Supply Service - Administrative Charge (if applicable) | D77: $ | E77: 0.25 | K77: 2_P_SSS
B79: GENERAL SERVICE 500 TO 4,999 KW SERVICE CLASSIFICATION
B81: his classification refers to a non residential account whose monthly average peak demand is equal to or greater than, or is forecast to be equal to or greater than, 50 kW but less than 5,000 kW, both regular and interval metered. Further servicing details are available in the distributor’s Conditions of Service. | L81: =ROUND(LEN(B81), -2) / 100 -> 3
B83: APPLICATION
B85: The application of these rates and charges shall be in accordance with the Licence of the Distributor and any Code or Order of the Board, and amendments thereto as approved by the Board, which may be applicable to the administration of this schedule. | L85: =ROUND(LEN(B85), -2) / 100 -> 3
B87: No rates and charges for the distribution of electricity and charges to meet the costs of any work or service done or furnished for the purpose of the distribution of electricity shall be made except as permitted by this schedule, unless required by the Distributor’s Licence or a Code or Order of the Board, and amendments thereto as approved by the Board, or as specified herein. | L87: =ROUND(LEN(B87), -2) / 100 -> 4
B89: Unless specifically noted, this schedule does not contain any charges for the electricity commodity, be it under the Regulated Price Plan, a contract with a retailer or the wholesale market price, as applicable. In addition, the charges in the MONTHLY RATES AND CHARGES – Regulatory Component of this schedule do not apply to a customer that is an embedded wholesale market participant. | L89: =ROUND(LEN(B89), -2) / 100 -> 4
B91: It should be noted that this schedule does not list any charges, assessments or credits that are required by law to be invoiced by a distributor and that are not subject to Board approval, such as the Debt Retirement Charge, the Global Adjustment, the Ontario Clean Energy Benefit and the HST. | L91: =ROUND(LEN(B91), -2) / 100 -> 3
B93: MONTHLY RATES AND CHARGES - Delivery Component
A95: GENERAL SERVICE 500 TO 4,999 KW | B95: Service Charge | D95: $ | E95: 138.61 | K95: 3_P_MSC
A96: GENERAL SERVICE 500 TO 4,999 KW | B96: Rate Rider for Recovery of CGAAP/CWIP Differential - in effect until December 31, 2016 | D96: $ | E96: 6.99 | K96: 3_P_MSC_Rate_Rider_1
A97: GENERAL SERVICE 500 TO 4,999 KW | B97: Rate Rider for Recovery of Incremental Capital Module Costs (2014) - in effect until the effective date of the next cost of service-based rate order | D97: $ | E97: 0.72 | K97: 3_P_MSC_Rate_Rider_2
A98: GENERAL SERVICE 500 TO 4,999 KW | B98: Distribution Volumetric Rate | D98: $/kW | E98: 3.3311 | K98: 3_P_VC_1
A99: GENERAL SERVICE 500 TO 4,999 KW | B99: Low Voltage Service Rate | D99: $/kW | E99: 0.1189 | K99: 3_P_LVrate
A100: GENERAL SERVICE 500 TO 4,999 KW | B100: Rate Rider for Disposition of Deferral/Variance Accounts (2014) - effective until December 31, 2015 | D100: $/kW | E100: -0.2207 | K100: 3_P_VC_DEFVAR_kW_1
A101: GENERAL SERVICE 500 TO 4,999 KW | B101: Rate Rider for Disposition of Global Adjustment Sub-Account (2014) - effective until December 31, 2015. Applicable only for Non-RPP Customers. | D101: $/kW | E101: -0.072 | K101: 3_P_VC_GA_Rate_Rider_kW_1
A102: GENERAL SERVICE 500 TO 4,999 KW | B102: Rate Rider for Recovery of Incremental Capital Module Costs (2014) - in effect until the effective date of the next cost of service-based rate order | D102: $/kW | E102: 0.0173 | K102: 3_P_VC_Rate_Rider_kW_2
A103: GENERAL SERVICE 500 TO 4,999 KW | B103: Rate Rider for Recovery of Lost Revenue Adjustment Mechanism Variance Account (LRAMVA) (2015) - effective until December 31, 2015 | D103: $/kW | E103: 0.01339132462 | K103: 3_P_VC_Rate_Rider_kW_3
A104: GENERAL SERVICE 500 TO 4,999 KW | B104: Retail Transmission Rate - Network Service Rate | D104: $/kW | E104: 2.919217738 | K104: 3_P_RTSR_Network
A105: GENERAL SERVICE 500 TO 4,999 KW | B105: Retail Transmission Rate - Line and Transformation Connection Service Rate | D105: $/kW | E105: 1.172627744 | K105: 3_P_RTSR_Connection
A106: GENERAL SERVICE 500 TO 4,999 KW | B106: Retail Transmission Rate - Network Service Rate - Interval Metered | D106: $/kW | E106: 3.060146206 | K106: 3_P_RTSR_Network_Interval
A107: GENERAL SERVICE 500 TO 4,999 KW | B107: Retail Transmission Rate - Line and Transformation Connection Service Rate - Interval Metered | D107: $/kW | E107: 1.268680913 | K107: 3_P_RTSR_Connection_Interval
A108: GENERAL SERVICE 500 TO 4,999 KW
A109: GENERAL SERVICE 500 TO 4,999 KW | B109: MONTHLY RATES AND CHARGES - Regulatory Component
A110: GENERAL SERVICE 500 TO 4,999 KW
A111: GENERAL SERVICE 500 TO 4,999 KW | B111: Wholesale Market Service Rate | D111: $/kWh | E111: 0.0044 | K111: 3_P_WMSR
A112: GENERAL SERVICE 500 TO 4,999 KW | B112: Rural or Remote Electricity Rate Protection Charge (RRRP) | D112: $/kWh | E112: 0.0013 | K112: 3_P_RRPC
A113: GENERAL SERVICE 500 TO 4,999 KW | B113: Standard Supply Service - Administrative Charge (if applicable) | D113: $ | E113: 0.25 | K113: 3_P_SSS
B115: LARGE USE SERVICE CLASSIFICATION
B117: This classification refers to an account whose monthly average peak demand is equal to or greater than, or is forecast to be equal to or greater than, 5,000 kW. Further servicing details are available in the distributor’s Conditions of Service. | L117: =ROUND(LEN(B117), -2) / 100 -> 2
B119: APPLICATION
B121: The application of these rates and charges shall be in accordance with the Licence of the Distributor and any Code or Order of the Board, and amendments thereto as approved by the Board, which may be applicable to the administration of this schedule. | L121: =ROUND(LEN(B121), -2) / 100 -> 3
B123: No rates and charges for the distribution of electricity and charges to meet the costs of any work or service done or furnished for the purpose of the distribution of electricity shall be made except as permitted by this schedule, unless required by the Distributor’s Licence or a Code or Order of the Board, and amendments thereto as approved by the Board, or as specified herein. | L123: =ROUND(LEN(B123), -2) / 100 -> 4
B125: Unless specifically noted, this schedule does not contain any charges for the electricity commodity, be it under the Regulated Price Plan, a contract with a retailer or the wholesale market price, as applicable. In addition, the charges in the MONTHLY RATES AND CHARGES – Regulatory Component of this schedule do not apply to a customer that is an embedded wholesale market participant. | L125: =ROUND(LEN(B125), -2) / 100 -> 4
B127: It should be noted that this schedule does not list any charges, assessments or credits that are required by law to be invoiced by a distributor and that are not subject to Board approval, such as the Debt Retirement Charge, the Global Adjustment, the Ontario Clean Energy Benefit and the HST. | L127: =ROUND(LEN(B127), -2) / 100 -> 3
B129: MONTHLY RATES AND CHARGES - Delivery Component
A131: LARGE USE | B131: Service Charge | D131: $ | E131: 5972.18 | K131: 4_P_MSC
A132: LARGE USE | B132: Rate Rider for Recovery of CGAAP/CWIP Differential - in effect until December 31, 2016 | D132: $ | E132: 104.59 | K132: 4_P_MSC_Rate_Rider_1
A133: LARGE USE | B133: Rate Rider for Recovery of Incremental Capital Module Costs (2014) - in effect until the effective date of the next cost of service-based rate order | D133: $ | E133: 30.93 | K133: 4_P_MSC_Rate_Rider_2
A134: LARGE USE | B134: Distribution Volumetric Rate | D134: $/kW | E134: 1.4173 | K134: 4_P_VC_1
A135: LARGE USE | B135: Low Voltage Service Rate | D135: $/kW | E135: 0.1437 | K135: 4_P_LVrate
A136: LARGE USE | B136: Rate Rider for Disposition of Deferral/Variance Accounts (2014) - effective until December 31, 2015 | D136: $/kW | E136: -0.1973 | K136: 4_P_VC_DEFVAR_kW_1
A137: LARGE USE | B137: Rate Rider for Recovery of Incremental Capital Module Costs (2014) - in effect until the effective date of the next cost of service-based rate order | D137: $/kW | E137: 0.0073 | K137: 4_P_VC_Rate_Rider_kW_2
A138: LARGE USE | B138: Retail Transmission Rate - Network Service Rate | D138: $/kW | E138: 3.463775276 | K138: 4_P_RTSR_Network
A139: LARGE USE | B139: Retail Transmission Rate - Line and Transformation Connection Service Rate | D139: $/kW | E139: 1.20266358 | K139: 4_P_RTSR_Connection
A140: LARGE USE
A141: LARGE USE | B141: MONTHLY RATES AND CHARGES - Regulatory Component
A142: LARGE USE
A143: LARGE USE | B143: Wholesale Market Service Rate | D143: $/kWh | E143: 0.0044 | K143: 4_P_WMSR
A144: LARGE USE | B144: Rural or Remote Electricity Rate Protection Charge (RRRP) | D144: $/kWh | E144: 0.0013 | K144: 4_P_RRPC
A145: LARGE USE | B145: Standard Supply Service - Administrative Charge (if applicable) | D145: $ | E145: 0.25 | K145: 4_P_SSS
B147: STANDBY POWER SERVICE CLASSIFICATION
B149: This classification refers to an account that has Load Displacement Generation and requires the distributor to provide back-up service. Further servicing details are available in the utility’s Conditions of Service. | L149: =ROUND(LEN(B149), -2) / 100 -> 2
B151: APPLICATION
B153: The application of these rates and charges shall be in accordance with the Licence of the Distributor and any Code or Order of the Board, and amendments thereto as approved by the Board, which may be applicable to the administration of this schedule. | L153: =ROUND(LEN(B153), -2) / 100 -> 3
B155: No rates and charges for the distribution of electricity and charges to meet the costs of any work or service done or furnished for the purpose of the distribution of electricity shall be made except as permitted by this schedule, unless required by the Distributor’s Licence or a Code or Order of the Board, and amendments thereto as approved by the Board, or as specified herein. | L155: =ROUND(LEN(B155), -2) / 100 -> 4
B157: Unless specifically noted, this schedule does not contain any charges for the electricity commodity, be it under the Regulated Price Plan, a contract with a retailer or the wholesale market price, as applicable. In addition, the charges in the MONTHLY RATES AND CHARGES – Regulatory Component of this schedule do not apply to a customer that is an embedded wholesale market participant. | L157: =ROUND(LEN(B157), -2) / 100 -> 4
B159: It should be noted that this schedule does not list any charges, assessments or credits that are required by law to be invoiced by a distributor and that are not subject to Board approval, such as the Debt Retirement Charge, the Global Adjustment, the Ontario Clean Energy Benefit and the HST. | L159: =ROUND(LEN(B159), -2) / 100 -> 3
B161: MONTHLY RATES AND CHARGES - Delivery Component
A163: STANDBY POWER | B163: Standby Charge - for a month where standby power is not provided. The charge is applied to the contracted amount (e.g. nameplate rating of the generation facility). | D163: $/kW | E163: 2.76 | K163: 5_P_MSC
A164: STANDBY POWER
A165: STANDBY POWER | B165: MONTHLY RATES AND CHARGES - Regulatory Component
A166: STANDBY POWER
A167: STANDBY POWER | B167: Wholesale Market Service Rate | D167: $/kWh | E167: 0.0044 | K167: 5_P_WMSR
A168: STANDBY POWER | B168: Rural or Remote Electricity Rate Protection Charge (RRRP) | D168: $/kWh | E168: 0.0013 | K168: 5_P_RRPC
A169: STANDBY POWER | B169: Standard Supply Service - Administrative Charge (if applicable) | D169: $ | E169: 0.25 | K169: 5_P_SSS
B171: UNMETERED SCATTERED LOAD SERVICE CLASSIFICATION
B173: This classification refers to an account taking electricity at 750 volts or less whose average monthly peak demand is less than, or is forecast to be less than, 50 kW and the consumption is unmetered. Such connections include cable TV power packs, bus shelters, telephone booths, traffic lights, railway crossings, etc. The customer will provide detailed manufacturer information/documentation with regard to electrical demand/consumption of the proposed unmetered load. Further servicing details are available in the distributor’s Conditions of Service. | L173: =ROUND(LEN(B173), -2) / 100 -> 6
B175: APPLICATION
B177: The application of these rates and charges shall be in accordance with the Licence of the Distributor and any Code or Order of the Board, and amendments thereto as approved by the Board, which may be applicable to the administration of this schedule. | L177: =ROUND(LEN(B177), -2) / 100 -> 3
B179: No rates and charges for the distribution of electricity and charges to meet the costs of any work or service done or furnished for the purpose of the distribution of electricity shall be made except as permitted by this schedule, unless required by the Distributor’s Licence or a Code or Order of the Board, and amendments thereto as approved by the Board, or as specified herein. | L179: =ROUND(LEN(B179), -2) / 100 -> 4
B181: Unless specifically noted, this schedule does not contain any charges for the electricity commodity, be it under the Regulated Price Plan, a contract with a retailer or the wholesale market price, as applicable. In addition, the charges in the MONTHLY RATES AND CHARGES – Regulatory Component of this schedule do not apply to a customer that is an embedded wholesale market participant. | L181: =ROUND(LEN(B181), -2) / 100 -> 4
B183: It should be noted that this schedule does not list any charges, assessments or credits that are required by law to be invoiced by a distributor and that are not subject to Board approval, such as the Debt Retirement Charge, the Global Adjustment, the Ontario Clean Energy Benefit and the HST. | L183: =ROUND(LEN(B183), -2) / 100 -> 3
B185: MONTHLY RATES AND CHARGES - Delivery Component
A187: UNMETERED SCATTERED LOAD | B187: Service Charge (per connection) | D187: $ | E187: 7.02 | K187: 6_P_MSC
A188: UNMETERED SCATTERED LOAD | B188: Rate Rider for Recovery of CGAAP/CWIP Differential - in effect until December 31, 2016 | D188: $ | E188: 0.11 | K188: 6_P_MSC_Rate_Rider_1
A189: UNMETERED SCATTERED LOAD | B189: Rate Rider for Recovery of Incremental Capital Module Costs (2014) - in effect until the effective date of the next cost of service-based rate order | D189: $ | E189: 0.04 | K189: 6_P_MSC_Rate_Rider_2
A190: UNMETERED SCATTERED LOAD | B190: Distribution Volumetric Rate | D190: $/kWh | E190: 0.0159 | K190: 6_P_VC_1
A191: UNMETERED SCATTERED LOAD | B191: Low Voltage Service Rate | D191: $/kWh | E191: 0.0003 | K191: 6_P_LVrate
A192: UNMETERED SCATTERED LOAD | B192: Rate Rider for Disposition of Deferral/Variance Accounts (2014) - effective until December 31, 2015 | D192: $/kWh | E192: -0.0006 | K192: 6_P_VC_DEFVAR_kWh_1
A193: UNMETERED SCATTERED LOAD | B193: Rate Rider for Disposition of Global Adjustment Sub-Account (2014) - effective until December 31, 2015. Applicable only for Non-RPP Customers. | D193: $/kWh | E193: -0.0002 | K193: 6_P_VC_GA_Rate_Rider_kWh_1
A194: UNMETERED SCATTERED LOAD | B194: Rate Rider for Recovery of Incremental Capital Module Costs (2014) - in effect until the effective date of the next cost of service-based rate order | D194: $/kWh | E194: 0.0001 | K194: 6_P_VC_Rate_Rider_kWh_2
A195: UNMETERED SCATTERED LOAD | B195: Retail Transmission Rate - Network Service Rate | D195: $/kWh | E195: 0.007248341434 | K195: 6_P_RTSR_Network
A196: UNMETERED SCATTERED LOAD | B196: Retail Transmission Rate - Line and Transformation Connection Service Rate | D196: $/kWh | E196: 0.003382875736 | K196: 6_P_RTSR_Connection
A197: UNMETERED SCATTERED LOAD
A198: UNMETERED SCATTERED LOAD | B198: MONTHLY RATES AND CHARGES - Regulatory Component
A199: UNMETERED SCATTERED LOAD
A200: UNMETERED SCATTERED LOAD | B200: Wholesale Market Service Rate | D200: $/kWh | E200: 0.0044 | K200: 6_P_WMSR
A201: UNMETERED SCATTERED LOAD | B201: Rural or Remote Electricity Rate Protection Charge (RRRP) | D201: $/kWh | E201: 0.0013 | K201: 6_P_RRPC
A202: UNMETERED SCATTERED LOAD | B202: Standard Supply Service - Administrative Charge (if applicable) | D202: $ | E202: 0.25 | K202: 6_P_SSS
B204: SENTINEL LIGHTING SERVICE CLASSIFICATION
B206: This classification refers to an unmetered lighting load supplied to a sentinel light. Further servicing details are available in the distributor’s Conditions of Service. | L206: =ROUND(LEN(B206), -2) / 100 -> 2
B208: APPLICATION
B210: The application of these rates and charges shall be in accordance with the Licence of the Distributor and any Code or Order of the Board, and amendments thereto as approved by the Board, which may be applicable to the administration of this schedule. | L210: =ROUND(LEN(B210), -2) / 100 -> 3
B212: No rates and charges for the distribution of electricity and charges to meet the costs of any work or service done or furnished for the purpose of the distribution of electricity shall be made except as permitted by this schedule, unless required by the Distributor’s Licence or a Code or Order of the Board, and amendments thereto as approved by the Board, or as specified herein. | L212: =ROUND(LEN(B212), -2) / 100 -> 4
B214: Unless specifically noted, this schedule does not contain any charges for the electricity commodity, be it under the Regulated Price Plan, a contract with a retailer or the wholesale market price, as applicable. In addition, the charges in the MONTHLY RATES AND CHARGES – Regulatory Component of this schedule do not apply to a customer that is an embedded wholesale market participant. | L214: =ROUND(LEN(B214), -2) / 100 -> 4
B216: It should be noted that this schedule does not list any charges, assessments or credits that are required by law to be invoiced by a distributor and that are not subject to Board approval, such as the Debt Retirement Charge, the Global Adjustment, the Ontario Clean Energy Benefit and the HST. | L216: =ROUND(LEN(B216), -2) / 100 -> 3
B218: MONTHLY RATES AND CHARGES - Delivery Component
A220: SENTINEL LIGHTING | B220: Service Charge (per connection) | D220: $ | E220: 3.42 | K220: 7_P_MSC
A221: SENTINEL LIGHTING | B221: Rate Rider for Recovery of CGAAP/CWIP Differential - in effect until December 31, 2016 | D221: $ | E221: 0.09 | K221: 7_P_MSC_Rate_Rider_1
A222: SENTINEL LIGHTING | B222: Rate Rider for Recovery of Incremental Capital Module Costs (2014) - in effect until the effective date of the next cost of service-based rate order | D222: $ | E222: 0.02 | K222: 7_P_MSC_Rate_Rider_2
A223: SENTINEL LIGHTING | B223: Distribution Volumetric Rate | D223: $/kW | E223: 8.0251 | K223: 7_P_VC_1
A224: SENTINEL LIGHTING | B224: Low Voltage Service Rate | D224: $/kW | E224: 0.1031 | K224: 7_P_LVrate
A225: SENTINEL LIGHTING | B225: Rate Rider for Disposition of Deferral/Variance Accounts (2014) - effective until December 31, 2015 | D225: $/kW | E225: -0.2297 | K225: 7_P_VC_DEFVAR_kW_1
A226: SENTINEL LIGHTING | B226: Rate Rider for Disposition of Global Adjustment Sub-Account (2014) - effective until December 31, 2015. Applicable only for Non-RPP Customers. | D226: $/kW | E226: -0.0732 | K226: 7_P_VC_GA_Rate_Rider_kW_1
A227: SENTINEL LIGHTING | B227: Rate Rider for Recovery of Incremental Capital Module Costs (2014) - in effect until the effective date of the next cost of service-based rate order | D227: $/kW | E227: 0.0416 | K227: 7_P_VC_Rate_Rider_kW_2
A228: SENTINEL LIGHTING | B228: Retail Transmission Rate - Network Service Rate | D228: $/kW | E228: 2.256098045 | K228: 7_P_RTSR_Network
A229: SENTINEL LIGHTING | B229: Retail Transmission Rate - Line and Transformation Connection Service Rate | D229: $/kW | E229: 0.8629408469 | K229: 7_P_RTSR_Connection
A230: SENTINEL LIGHTING
A231: SENTINEL LIGHTING | B231: MONTHLY RATES AND CHARGES - Regulatory Component
A232: SENTINEL LIGHTING
A233: SENTINEL LIGHTING | B233: Wholesale Market Service Rate | D233: $/kWh | E233: 0.0044 | K233: 7_P_WMSR
A234: SENTINEL LIGHTING | B234: Rural or Remote Electricity Rate Protection Charge (RRRP) | D234: $/kWh | E234: 0.0013 | K234: 7_P_RRPC
A235: SENTINEL LIGHTING | B235: Standard Supply Service - Administrative Charge (if applicable) | D235: $ | E235: 0.25 | K235: 7_P_SSS
B237: STREET LIGHTING SERVICE CLASSIFICATION
B239: This classification applies to an account for roadway lighting with a Municipality, Regional Municipality, Ministry of Transportation and private roadway lighting operation, controlled by photo cells. The consumption for these customers will be based on the calculated connected load times the required lighting times established in the approved OEB street lighting load shape template. Further servicing details are available in the distributor’s Conditions of Service. | L239: =ROUND(LEN(B239), -2) / 100 -> 5
B241: APPLICATION
B243: The application of these rates and charges shall be in accordance with the Licence of the Distributor and any Code or Order of the Board, and amendments thereto as approved by the Board, which may be applicable to the administration of this schedule. | L243: =ROUND(LEN(B243), -2) / 100 -> 3
B245: No rates and charges for the distribution of electricity and charges to meet the costs of any work or service done or furnished for the purpose of the distribution of electricity shall be made except as permitted by this schedule, unless required by the Distributor’s Licence or a Code or Order of the Board, and amendments thereto as approved by the Board, or as specified herein. | L245: =ROUND(LEN(B245), -2) / 100 -> 4
B247: Unless specifically noted, this schedule does not contain any charges for the electricity commodity, be it under the Regulated Price Plan, a contract with a retailer or the wholesale market price, as applicable. In addition, the charges in the MONTHLY RATES AND CHARGES – Regulatory Component of this schedule do not apply to a customer that is an embedded wholesale market participant. | L247: =ROUND(LEN(B247), -2) / 100 -> 4
B249: It should be noted that this schedule does not list any charges, assessments or credits that are required by law to be invoiced by a distributor and that are not subject to Board approval, such as the Debt Retirement Charge, the Global Adjustment, the Ontario Clean Energy Benefit and the HST. | L249: =ROUND(LEN(B249), -2) / 100 -> 3
B251: MONTHLY RATES AND CHARGES - Delivery Component
A253: STREET LIGHTING | B253: Service Charge (per connection) | D253: $ | E253: 1.26 | K253: 8_P_MSC
A254: STREET LIGHTING | B254: Rate Rider for Recovery of CGAAP/CWIP Differential - in effect until December 31, 2016 | D254: $ | E254: 0.02 | K254: 8_P_MSC_Rate_Rider_1
A255: STREET LIGHTING | B255: Rate Rider for Recovery of Incremental Capital Module Costs (2014) - in effect until the effective date of the next cost of service-based rate order | D255: $ | E255: 0.01 | K255: 8_P_MSC_Rate_Rider_2
A256: STREET LIGHTING | B256: Distribution Volumetric Rate | D256: $/kW | E256: 6.6612 | K256: 8_P_VC_1
A257: STREET LIGHTING | B257: Low Voltage Service Rate | D257: $/kW | E257: 0.0917 | K257: 8_P_LVrate
A258: STREET LIGHTING | B258: Rate Rider for Disposition of Deferral/Variance Accounts (2014) - effective until December 31, 2015 | D258: $/kW | E258: -0.2002 | K258: 8_P_VC_DEFVAR_kW_1
A259: STREET LIGHTING | B259: Rate Rider for Disposition of Global Adjustment Sub-Account (2014) - effective until December 31, 2015. Applicable only for Non-RPP Customers. | D259: $/kW | E259: -0.0653 | K259: 8_P_VC_GA_Rate_Rider_kW_1
A260: STREET LIGHTING | B260: Rate Rider for Recovery of Incremental Capital Module Costs (2014) - in effect until the effective date of the next cost of service-based rate order | D260: $/kW | E260: 0.0345 | K260: 8_P_VC_Rate_Rider_kW_2
A261: STREET LIGHTING | B261: Retail Transmission Rate - Network Service Rate | D261: $/kW | E261: 2.220270529 | K261: 8_P_RTSR_Network
A262: STREET LIGHTING | B262: Retail Transmission Rate - Line and Transformation Connection Service Rate | D262: $/kW | E262: 0.9502805478 | K262: 8_P_RTSR_Connection
A263: STREET LIGHTING
A264: STREET LIGHTING | B264: MONTHLY RATES AND CHARGES - Regulatory Component
A265: STREET LIGHTING
A266: STREET LIGHTING | B266: Wholesale Market Service Rate | D266: $/kWh | E266: 0.0044 | K266: 8_P_WMSR
A267: STREET LIGHTING | B267: Rural or Remote Electricity Rate Protection Charge (RRRP) | D267: $/kWh | E267: 0.0013 | K267: 8_P_RRPC
A268: STREET LIGHTING | B268: Standard Supply Service - Administrative Charge (if applicable) | D268: $ | E268: 0.25 | K268: 8_P_SSS
B270: MICROFIT SERVICE CLASSIFICATION
B272: This classification applies to an electricity generation facility contracted under the Ontario Power Authority’s microFIT program and connected to the distributor’s distribution system. Further servicing details are available in the distributor’s Conditions of Service. | L272: =ROUND(LEN(B272), -2) / 100 -> 3
B274: APPLICATION
B276: The application of these rates and charges shall be in accordance with the Licence of the Distributor and any Code or Order of the Board, and amendments thereto as approved by the Board, which may be applicable to the administration of this schedule. | L276: =ROUND(LEN(B276), -2) / 100 -> 3
B278: No rates and charges for the distribution of electricity and charges to meet the costs of any work or service done or furnished for the purpose of the distribution of electricity shall be made except as permitted by this schedule, unless required by the Distributor’s Licence or a Code or Order of the Board, and amendments thereto as approved by the Board, or as specified herein. | L278: =ROUND(LEN(B278), -2) / 100 -> 4
... 65 more rows

Sheet 14. Bill Impacts (hidden)
Z1: =MATCH(A13, '3. Rate Class Selection'!B19:B40,0) -> 1 | AA1: =VLOOKUP(A13, lists!AO:AP,2,0) -> kWh
A11: Choose a Rate Class from the drop-down menu below and click UPDATE. For Street Lighting and USL classes, please ensure that the number of customers is manually entered into cells B30 and B31. Click the UPDATE button to refresh the sheet.
A13: RESIDENTIAL | F13: =IF(ISERROR(SEARCH("MicroFit",A13,1))=FALSE,"Bill impact presentation for this class does not exist.", "") -> 
A15: Consumption | B15: =730*D15*B17 -> 3650000 | C15: kWh | D15: 10000 | E15: =IF(AA1 = "kWh", "", "kW") -> 
A16: RPP Tier One | B16: 600 | C16: kWh | E16: 1
A17: Load Factor | B17: 0.5
A18: Loss Factor | B18: 1
B21: CURRENT ESTIMATED BILL | E21: PROPOSED ESTIMATED BILL
B22: Volume | C22: Current Rate ($) | D22: Current Charge ($) | E22: Volume | F22: Proposed Rate ($) | G22: Proposed Charge ($) | I22: Change ($) | J22: Change (%) | K22: % of Total RPP Bill | L22: % of Total TOU Bill
A23: Energy First Tier (kWh) | B23: 3650000 | C23: 0.075 | D23: =B23*C23 -> 273750 | E23: =B23 -> 3650000 | F23: =C23 -> 0.075 | G23: =E23*F23 -> 273750 | I23: =G23-D23 -> 0 | J23: =I23/D23 -> 0 | K23: =G23/G48 -> 0.8646078577
A24: Energy Second Tier (kWh) | B24: 0 | C24: 0.088 | D24: =B24*C24 -> 0 | E24: =B24 -> 0 | F24: =C24 -> 0.088 | G24: =E24*F24 -> 0 | I24: =G24-D24 -> 0 | J24: 0 | K24: =G24/G48 -> 0
A26: TOU - Off Peak | B26: =0.64*$B$15*$B$18 -> 2336000 | C26: 0.065 | D26: =C26*B26 -> 151840 | E26: =B26 -> 2336000 | F26: =C26 -> 0.065 | G26: =F26*E26 -> 151840 | I26: =G26-D26 -> 0 | J26: =I26/D26 -> 0 | L26: =G26/G54 -> 0.449726096
A27: TOU - Mid Peak | B27: =0.18*$B$15*$B$18 -> 657000 | C27: 0.1 | D27: =C27*B27 -> 65700 | E27: =B27 -> 657000 | F27: =C27 -> 0.1 | G27: =F27*E27 -> 65700 | H27: =G27*F27 -> 6570 | I27: =G27-D27 -> 0 | J27: =I27/D27 -> 0 | L27: =G27/G54 -> 0.1945930223
A28: TOU - On Peak | B28: =0.18*$B$15*$B$18 -> 657000 | C28: 0.117 | D28: 76869 | F28: =C28 -> 0.117 | G28: =F28*E28 -> 0 | H28: =G28*F28 -> 0 | J28: =I28/D28 -> 0 | L28: =G28/G54 -> 0
A30: Service Charge | B30: 1 | D30: 0 | G30: =F30*E30 -> 0 | H30: 0 | J30: 0 | K30: 0 | L30: 0
A31: Service Charge Rate Rider(s) | B31: 1 | C31: 0 | D31: 0 | F31: 0 | G31: 0 | H31: 0 | J31: 0 | K31: 0 | L31: 0
A32: Distribution Volumetric Rate | B32: 10000 | D32: 0 | E32: =B32 -> 10000 | G32: 0 | H32: 0 | I32: =G32-D32 -> 0 | J32: 0 | K32: 0 | L32: 0
A33: Low Voltage Volumetric Rate | B33: 10000 | D33: 0 | G33: 0 | H33: 0 | J33: 0 | K33: 0 | L33: 0
A34: Distribution Volumetric Rate Rider(s) | B34: 10000 | C34: 0 | D34: 0 | F34: 1.2025 | G34: 0 | H34: 0 | J34: 0 | K34: =G34/G48 -> 0 | L34: =G34/G54 -> 0
A35: Total: Distribution | D35: =ROUND(SUM(D30:D34),2) -> 0 | G35: =ROUND(SUM(G30:G34),2) -> 0 | J35: 0 | K35: =G35/G48 -> 0 | L35: =G35/G54 -> 0
A36: Total: Retail Transmission
A37: Sub-Total: Delivery (Distribution and Retail Transmission) | D37: =SUM(D36,D35) -> 0 | G37: =SUM(G36,G35) -> 0 | J37: 0 | K37: =G37/G48 -> 0 | L37: =G37/G54 -> 0
A38: Wholesale Market Service Rate | B38: 3650000 | C38: 0 | D38: =B38*C38 -> 0 | F38: =C38 -> 0 | G38: =E38*F38 -> 0 | J38: 0 | K38: 0 | L38: 0
A39: Rural Rate Protection Charge | B39: 3650000 | C39: 0 | D39: =B39*C39 -> 0 | E39: 3650000 | F39: 0 | G39: =E39*F39 -> 0 | I39: =G39-D39 -> 0 | J39: 0 | K39: 0 | L39: 0
A40: Standard Supply Service – Administration Charge (if applicable) | B40: 1 | C40: 0 | D40: =B40*C40 -> 0 | E40: 1 | F40: 0 | G40: =E40*F40 -> 0 | I40: =G40-D40 -> 0 | J40: 0 | K40: 0 | L40: 0
A41: Sub-Total: Regulatory | D41: =SUM(D38:D40) -> 0 | G41: =SUM(G38:H40) -> 0 | I41: =G41-D41 -> 0 | J41: 0 | K41: 0 | L41: 0
A42: Debt Retirement Charge (DRC) | B42: 3650000 | C42: 0.007 | D42: =B42*C42 -> 25550 | E42: =B42 -> 3650000 | F42: =C42 -> 0.007 | G42: =E42*F42 -> 25550 | I42: =G42-D42 -> 0 | J42: =I42/D42 -> 0 | K42: =G42/G48 -> 0.08069673339 | L42: =G42/G54 -> 0.07567506422
A44: Total Bill on RPP (before taxes) | D44: 299300 | G44: 311325 | I44: =G44-D44 -> 12025 | J44: =I44/D44 -> 0.04017707985 | K44: =G44/G48 -> 0.9832841691
A45: HST | C45: 0.13 | D45: =C45*D44 -> 38909 | F45: =C45 -> 0.13 | G45: =F45*G44 -> 40472.25 | I45: =G45-D45 -> 1563.25 | J45: =I45/D45 -> 0.04017707985 | K45: =G45/G48 -> 0.127826942
A46: Total Bill (including HST) | D46: =D45+D44 -> 338209 | G46: =G45+G44 -> 351797.25 | I46: =G46-D46 -> 13588.25 | J46: =I46/D46 -> 0.04017707985 | K46: =G46/G48 -> 1.111111111
A47: Ontario Clean Energy Benefit (OCEB) | C47: -0.1 | D47: =-0.1*D46 -> -33820.9 | F47: =C47 -> -0.1 | G47: =-0.1*G46 -> -35179.725 | I47: =G47-D47 -> -1358.825 | J47: =I47/D47 -> 0.04017707985 | K47: =G47/G48 -> -0.1111111111
A48: Total Bill on RPP (including OCEB) | D48: =D46+D47 -> 304388.1 | G48: =G46+G47 -> 316617.525 | I48: =G48-D48 -> 12229.425 | J48: =I48/D48 -> 0.04017707985 | K48: =G48/G48 -> 1
A50: Total Bill on TOU (before taxes) | D50: 319959 | G50: 331984 | I50: =G50-D50 -> 12025 | J50: =I50/D50 -> 0.03758294031 | L50: =G50/G54 -> 0.9832841691
A51: HST | C51: 0.13 | D51: =C51*D50 -> 41594.67 | F51: =C51 -> 0.13 | G51: =F51*G50 -> 43157.92 | I51: =G51-D51 -> 1563.25 | J51: =I51/D51 -> 0.03758294031 | L51: =G51/G54 -> 0.127826942
A52: Total Bill (including HST) | D52: =D51+D50 -> 361553.67 | G52: =G51+G50 -> 375141.92 | I52: =G52-D52 -> 13588.25 | J52: =I52/D52 -> 0.03758294031 | L52: =G52/G54 -> 1.111111111
A53: Ontario Clean Energy Benefit (OCEB) | C53: -0.1 | D53: =-0.1*D52 -> -36155.367 | F53: =C53 -> -0.1 | G53: =-0.1*G52 -> -37514.192 | I53: =G53-D53 -> -1358.825 | J53: =I53/D53 -> 0.03758294031 | L53: =G53/G54 -> -0.1111111111
A54: Total Bill on TOU (including OCEB) | D54: =D52+D53 -> 325398.303 | G54: =G52+G53 -> 337627.728 | I54: =G54-D54 -> 12229.425 | J54: =I54/D54 -> 0.03758294031 | L54: =G54/G54 -> 1
A57: Applicants must provide bill impacts for residential at 800 kWh and GS<50kW at 2000 kWh. In addition, their filing should cover the range that is relevant to their service territory, class by class. A general guideline of consumption levels follows: Residential (kWh) - 100, 250, 500, 800, 1000, 1500, 2000 GS<50kW (kWh) - 1000, 2000, 5000, 10000, 15000 GS>50kW (kW) 100, 500, 1000 Large User - range appropriate for utility Street/Sentinel Lighting Classes and USL - 150 kWh and 1 kW, range appropriate for utility.

Sheet 28. Bill Impacts
S1: 1 | Z1: =MATCH(C14, '3. Rate Class Selection'!B19:B40,0) -> 1 | AA1: =VLOOKUP(C14, lists!AO:AP,2,0) -> kWh
A14: Rate Class | C14: RESIDENTIAL
A16: Loss Factor | E16: 1.0345
A18: Consumption | C18: kWh | E18: 800
A20: If Billed on a kW basis:
A21: Demand | C21: kW
E25: Current Board-Approved | I25: Proposed | M25: Impact
E26: Rate | F26: Volume | G26: Charge | I26: Rate | J26: Volume | K26: Charge | M26: $ Change | N26: % Change
E27: ($) | G27: ($) | I27: ($) | K27: ($)
A28: Monthly Service Charge | E28: 12.51 | F28: 1 | G28: =F28*E28 -> 12.51 | I28: 12.69 | J28: 1 | K28: =J28*I28 -> 12.69 | M28: =K28-G28 -> 0.18 | N28: =IF((G28)=0,"",(M28/G28)) -> 0.01438848921
A29: Distribution Volumetric Rate | E29: 0.0138 | F29: 800 | G29: =F29*E29 -> 11.04 | I29: 0.014 | J29: =F29 -> 800 | K29: =J29*I29 -> 11.2 | M29: 0.16 | N29: 0.01449275362
A30: Fixed Rate Riders | E30: 0.51 | F30: 1 | G30: =F30*E30 -> 0.51 | I30: 0.27 | J30: 1 | K30: =J30*I30 -> 0.27 | M30: -0.24 | N30: -0.4705882353
A31: Volumetric Rate Riders | E31: 0.0015 | F31: 800 | G31: =F31*E31 -> 1.2 | I31: 0.0002 | J31: =F31 -> 800 | K31: =J31*I31 -> 0.16 | M31: -1.04 | N31: -0.8666666667
A32: Sub-Total A (excluding pass through) | G32: =SUM(G28:G31) -> 25.26 | K32: =SUM(K28:K31) -> 24.32 | M32: -0.94 | N32: -0.03721298496
A33: Line Losses on Cost of Power | E33: =E45*0.64+E46*0.18+E47*0.18 -> 0.09246 | F33: =E18*(E16-1) -> 27.6 | G33: =E33*F33 -> 2.551896 | I33: =I45*0.64+I46*0.18+I47*0.18 -> 0.09246 | J33: =F33 -> 27.6 | K33: =I33*J33 -> 2.551896 | M33: 0 | N33: 0
A34: Total Deferral/Variance Account Rate Riders | E34: -0.0025 | F34: 800 | G34: =F34*E34 -> -2 | I34: -0.0006 | J34: =F34 -> 800 | K34: =J34*I34 -> -0.48 | M34: 1.52 | N34: -0.76
A35: Low Voltage Service Charge | E35: 0.0003 | F35: 800 | G35: =F35*E35 -> 0.24 | I35: 0.0003 | J35: =F35 -> 800 | K35: =J35*I35 -> 0.24 | M35: 0 | N35: 0
A36: Smart Meter Entity Charge | E36: 0.79 | F36: 1 | G36: =F36*E36 -> 0.79 | I36: 0.79 | J36: =F36 -> 1 | K36: =J36*I36 -> 0.79 | M36: 0 | N36: 0
A37: Sub-Total B - Distribution (includes Sub-Total A) | G37: =SUM(G32:G36) -> 26.841896 | K37: =SUM(K32:K36) -> 27.421896 | M37: =K37-G37 -> 0.58 | N37: =IF((G37)=0,"",(M37/G37)) -> 0.0216080116
A38: RTSR - Network | E38: 0.0077 | F38: 827.6 | G38: =F38*E38 -> 6.37252 | I38: 0.008 | J38: =F38 -> 827.6 | K38: =J38*I38 -> 6.6208 | M38: 0.24828 | N38: 0.03896103896
A39: RTSR - Connection and/or Line and Transformation Connection | E39: 0.0034 | F39: 827.6 | G39: =F39*E39 -> 2.81384 | I39: 0.0035 | J39: =F39 -> 827.6 | K39: =J39*I39 -> 2.8966 | M39: 0.08276 | N39: 0.02941176471
A40: Sub-Total C - Delivery (including Sub-Total B) | G40: =SUM(G37:G39) -> 36.028256 | K40: =SUM(K37:K39) -> 36.939296 | M40: 0.91104 | N40: 0.02528681932
A41: Wholesale Market Service Charge (WMSC) | E41: 0.0044 | F41: =E18*E16 -> 827.6 | G41: =F41*E41 -> 3.64144 | I41: 0.0044 | J41: =E18*E16 -> 827.6 | K41: =J41*I41 -> 3.64144 | M41: 0 | N41: 0
A42: Rural and Remote Rate Protection (RRRP) | E42: 0.0013 | F42: =E18*E16 -> 827.6 | G42: 1.07588 | I42: 0.0013 | J42: =E18*E16 -> 827.6 | K42: 1.07588 | M42: 0 | N42: 0
A43: Standard Supply Service Charge | E43: 0.25 | F43: 1 | G43: 0.25 | I43: 0.25 | J43: 1 | K43: 0.25 | M43: 0 | N43: 0
A44: Debt Retirement Charge (DRC) | E44: 0.007 | F44: =E18 -> 800 | G44: 5.6 | I44: 0.007 | J44: =E18 -> 800 | K44: 5.6 | M44: 0 | N44: 0
A45: TOU - Off Peak | E45: 0.075 | F45: 512 | G45: 38.4 | I45: 0.075 | J45: =F45 -> 512 | K45: 38.4 | M45: 0 | N45: 0
A46: TOU - Mid Peak | E46: 0.112 | F46: 144 | G46: 16.128 | I46: 0.112 | J46: =F46 -> 144 | K46: 16.128 | M46: 0 | N46: 0
A47: TOU - On Peak | E47: 0.135 | F47: 144 | G47: 19.44 | I47: 0.135 | J47: =F47 -> 144 | K47: 19.44 | M47: 0 | N47: 0
A49: Total Bill on TOU (before Taxes) | G49: =SUM(G40:G44,G45:G47) -> 120.563576 | K49: =SUM(K40:K44,K45:K47) -> 121.474616 | M49: =K49-G49 -> 0.91104 | N49: =IF((G49)=0,"",(M49/G49)) -> 0.007556511098
A50: HST | E50: 0.13 | G50: =G49*E50 -> 15.67326488 | I50: 0.13 | K50: =K49*I50 -> 15.79170008 | M50: 0.1184352 | N50: 0.007556511098
A51: Total Bill (including HST) | G51: =G49+G50 -> 136.2368409 | K51: =K49+K50 -> 137.2663161 | M51: 1.0294752 | N51: 0.007556511098
A52: Ontario Clean Energy Benefit 1 | G52: =ROUND(-G51*10%,2) -> -13.62 | K52: =ROUND(-K51*10%,2) -> -13.73 | M52: -0.11 | N52: 0.008076358297
A53: Total Bill on TOU (including OCEB) | G53: =G51+G52 -> 122.6168409 | K53: =K51+K52 -> 123.5363161 | M53: 0.9194752 | N53: 0.007498767652
A58: Note: For distributors who have a majority of customers on Tiered pricing, please provide a separate bill impact for such customers.

Sheet lists (hidden)
A1: DISTRIBUTED GENERATION [DGEN] | B1: Embedded Distributor | C1: =COUNTA(B1:B17) -> 4 | I1: A Standby Service Charge will be applied for a month where standby power is not provided. The applicable rate is the approved Distribution Volumetric Rate of the applicable service class and is applied to gross metered demand or contracted amount, whichever is greater. A monthly administration charge of $200, for simple metering arrangements, or $500, for complex metering arrangements, will also be applied. | L1: Loss Factors | N1: Units | O1: Units1 | P1: Units2 | Z1: Account History | AA1: Account set up charge/change of occupancy charge (plus credit agency costs if applicable) | AB1: Total Loss Factor – Embedded Distributor – Hydro One Networks Inc. | AL1: Algoma Power Inc. | AM1: Algoma Power Inc. | AO1: DISTRIBUTED GENERATION [DGEN] | AP1: kW | AT1: Sub-Total: Delivery (Distribution and Retail Transmission)
A2: EMBEDDED DISTRIBUTOR | B2: General Service 3,000 to 4,999 kW | I2: Distribution Volumetric Rate | L2: Total Loss Factor – Primary Metered Customer | N2: $ | O2: $/kWh | P2: $ | Z2: Account set up charge/change of occupancy charge | AA2: Administrative Billing Charge | AB2: Total Loss Factor – Primary Metered Customer | AL2: Atikokan Hydro Inc. | AM2: Atikokan Hydro Inc. | AO2: EMBEDDED DISTRIBUTOR | AP2: kW | AT2: Wholesale Market Service Rate | AW2: =AU2*AV2 -> 0 | AX2: =AU2 -> 0 | AY2: 0 | AZ2: =AX2*AY2 -> 0 | BB2: =AZ2-AW2 -> 0 | BC2: =BB2/AW2 -> 
A3: EMBEDDED DISTRIBUTOR | B3: General Service 1,000 to 4,999 kW | I3: Distribution Volumetric Rate - $/kW of contracted amount | L3: Total Loss Factor – Primary Metered Customer < 5,000 kW | N3: $/kWh | O3: $/kW | P3: % | W3: MSC | Z3: Account set up charge/change of occupancy charge (plus credit agency costs if applicable – Residential) | AA3: Bell Canada Pole Rentals | AB3: Total Loss Factor – Primary Metered Customer < 5,000 kW | AL3: Bluewater Power Distribution Corporation | AM3: Bluewater Power Distribution Corporation | AO3: EMBEDDED DISTRIBUTOR | AP3: kW | AT3: Rural or Remote Electricity Rate Protection Charge (RRRP) | AW3: =AU3*AV3 -> 0 | AX3: 0 | AY3: 0 | AZ3: =AX3*AY3 -> 0 | BB3: =AZ3-AW3 -> 0 | BC3: =BB3/AW3 -> 
A4: FARMS - SINGLE PHASE ENERGY-BILLED [F1] | B4: General Service Equal To Or Greater Than 1,500 kW - Interval Metered | I4: Distribution Wheeling Service Rate | L4: Total Loss Factor – Primary Metered Customer > 5,000 kW | N4: $/kW | O4: $/kVA | W4: SM_Rate_Adder | Z4: Account set up charge/change of occupancy charge (plus credit agency costs if applicable) | AA4: Clearance Pole Attachment charge $/pole/year | AB4: Total Loss Factor – Primary Metered Customer > 5,000 kW | AL4: Brant County Power Inc. | AM4: Brant County Power Inc. | AO4: FARMS - SINGLE PHASE ENERGY-BILLED [F1] | AP4: kWh | AT4: Standard Supply Service – Administration Charge (if applicable) | AW4: =AU4*AV4 -> 0 | AX4: 0 | AY4: 0 | AZ4: =AX4*AY4 -> 0 | BB4: =AZ4-AW4 -> 0 | BC4: =BB4/AW4 -> 
A5: FARMS - THREE PHASE ENERGY-BILLED [F3] | I5: Electricity Rate | L5: Total Loss Factor – Secondary Metered Customer | N5: $/kVA | W5: MSC_Rate_Rider_ | Z5: Arrears certificate | AA5: Collection of account charge – no disconnection | AB5: Total Loss Factor – Secondary Metered Customer | AL5: Brantford Power Inc. | AM5: Brantford Power Inc. | AO5: FARMS - THREE PHASE ENERGY-BILLED [F3] | AP5: kWh | AT5: Sub-Total: Regulatory | AW5: =SUM(AW2:AW4) -> 0 | AZ5: =SUM(AZ2:BA4) -> 0 | BB5: =AZ5-AW5 -> 0 | BC5: =BB5/AW5 -> 
A6: GENERAL SERVICE - COMMERCIAL | I6: Electricity Rate - All Additional kWh | L6: Total Loss Factor – Secondary Metered Customer < 5,000 kW | W6: VC | Z6: Arrears certificate (credit reference) | AA6: Collection of account charge – no disconnection – after regular hours | AB6: Total Loss Factor – Secondary Metered Customer < 5,000 kW | AL6: Burlington Hydro Inc. | AM6: Burlington Hydro Inc. | AO6: GENERAL SERVICE - COMMERCIAL | AP6: kW | AT6: Debt Retirement Charge (DRC) | AW6: =AU6*AV6 -> 0 | AX6: =AU6 -> 0 | AY6: =AV6 -> 0 | AZ6: =AX6*AY6 -> 0 | BB6: =AZ6-AW6 -> 0 | BC6: =BB6/AW6 -> 
A7: GENERAL SERVICE - INSTITUTIONAL | I7: Electricity Rate - First 250 kWh | AL7: Cambridge and North Dumfries Hydro Inc. | AM7: Cambridge and North Dumfries Hydro Inc. | AO7: GENERAL SERVICE - INSTITUTIONAL | AP7: kW
A8: GENERAL SERVICE 1,000 TO 2,999 KW | I8: Electricity Rate -All Additional kWh | L8: Total Loss Factor – Secondary Metered Customer > 5,000 kW | W8: VC_Rate_Rider_ | Z8: Charge to certify cheque | AA8: Collection of account charge – no disconnection - during regular business hours | AB8: Total Loss Factor – Secondary Metered Customer > 5,000 kW | AL8: Canadian Niagara Power Inc. | AM8: Canadian Niagara Power Inc. | AO8: GENERAL SERVICE 1,000 TO 2,999 KW | AP8: kW | AT8: Total Bill on RPP (before taxes) | BB8: =AZ8-AW8 -> 0
A9: GENERAL SERVICE 1,000 TO 4,999 KW | I9: Electricity Rate First 1,000 kWh | L9: Distribution Loss Factor - Secondary Metered Customer < 5,000 kW | W9: VC_GA_Rate_Rider_kW_ | Z9: Collection of Account Charge – No Disconnection | AA9: Collection of account charge – no disconnection – during regular hours | AL9: Centre Wellington Hydro Ltd. | AM9: Centre Wellington Hydro Ltd. | AO9: GENERAL SERVICE 1,000 TO 4,999 KW | AP9: kW | AT9: HST | AW9: =AV9*AW8 -> 0 | AY9: =AV9 -> 0 | AZ9: =AY9*AZ8 -> 0 | BB9: =AZ9-AW9 -> 0 | BC9: =BB9/AW9 -> 
A10: GENERAL SERVICE 1,000 TO 4,999 KW - INTERVAL METERS | I10: Electricity Rate First 25,000 kWh | L10: Distribution Loss Factor - Secondary Metered Customer > 5,000 kW | W10: VC_LV_Rate | Z10: Credit Card Convenience Charge | AA10: Collection/Disconnection/Load Limiter/Reconnection – if in Community | AL10: Chapleau Public Utilities Corporation | AM10: Chapleau Public Utilities Corporation | AO10: GENERAL SERVICE 1,000 TO 4,999 KW - INTERVAL METERS | AP10: kW | AT10: Total Bill (including HST) | AW10: =AW9+AW8 -> 0 | AZ10: =AZ9+AZ8 -> 0 | BB10: =AZ10-AW10 -> 0 | BC10: =BB10/AW10 -> 
A11: GENERAL SERVICE 1,000 TO 4,999 KW (CO-GENERATION) | I11: Electricity Rate First 6,000 kWh | L11: Distribution Loss Factor - Primary Metered Customer < 5,000 kW | W11: RTSR_Network | Z11: Credit check (plus credit agency costs) | AA11: Credit Card Convenience Charge | AL11: Collus PowerStream Corporation | AM11: Collus PowerStream Corporation | AO11: GENERAL SERVICE 1,000 TO 4,999 KW (CO-GENERATION) | AP11: kW | AT11: Ontario Clean Energy Benefit (OCEB) | AW11: =-0.1*AW10 -> 0 | AY11: =AV11 -> 0 | AZ11: =-0.1*AZ10 -> 0 | BB11: =AZ11-AW11 -> 0 | BC11: =BB11/AW11 -> 
A12: GENERAL SERVICE 1,500 TO 4,999 KW | I12: Electricity Rate Next 1,500 kWh | L12: Distribution Loss Factor - Primary Metered Customer > 5,000 kW | W12: RTSR_Connection | Z12: Credit reference Letter | AA12: Disconnect/Reconnect at meter – after regular hours | AL12: Cooperative Hydro Embrun Inc. | AM12: Cooperative Hydro Embrun Inc. | AO12: GENERAL SERVICE 1,500 TO 4,999 KW | AP12: kW | AT12: Total Bill on RPP (including OCEB) | AW12: =AW10+AW11 -> 0 | AZ12: =AZ10+AZ11 -> 0 | BB12: =AZ12-AW12 -> 0 | BC12: =BB12/AW12 -> 
A13: GENERAL SERVICE 2,500 TO 4,999 KW | I13: General Service 1,500 to 4,999 kW customer | AL13: E.L.K. Energy Inc. | AM13: E.L.K. Energy Inc. | AO13: GENERAL SERVICE 2,500 TO 4,999 KW | AP13: kW
A14: GENERAL SERVICE 3,000 TO 4,999 KW | I14: General Service 50 to 1,499 kW customer | L14: Total Loss Factor - Embedded Distributor | W14: RTSR_Network_Interval | Z14: Credit reference/credit check (plus credit agency costs – General Service) | AA14: Disconnect/Reconnect at meter – during regular hours | AL14: Enersource Hydro Mississauga Inc. | AM14: Enersource Hydro Mississauga Inc. | AO14: GENERAL SERVICE 3,000 TO 4,999 KW | AP14: kW | AT14: Total Bill on TOU (before taxes) | BB14: =AZ14-AW14 -> 0
A15: GENERAL SERVICE 3,000 TO 4,999 KW - INTERMEDIATE USE | I15: General Service Large Use customer | L15: Total Loss Factor – Embedded Distributor – Hydro One Networks Inc. | W15: RTSR_Connection_Interval | Z15: Credit Reference/credit check (plus credit agency costs) | AA15: Disconnect/Reconnect at pole – after regular hours | AL15: Entegrus Powerlines Inc. | AM15: Entegrus Powerlines Inc. | AO15: GENERAL SERVICE 3,000 TO 4,999 KW - INTERMEDIATE USE | AP15: kW | AT15: HST | AW15: =AV15*AW14 -> 0 | AY15: =AV15 -> 0 | AZ15: =AY15*AZ14 -> 0 | BB15: =AZ15-AW15 -> 0 | BC15: =BB15/AW15 -> 
A16: GENERAL SERVICE 3,000 TO 4,999 KW - INTERVAL METERED | I16: Green Energy Act Initiatives Funding Adder - effective until the date of the next cost of service-based rate order | W16: RTSR_Network_Interval_GR1000kW | Z16: Dispute Test – Commercial self contained -- MC | AA16: Disconnect/Reconnect at pole – during regular hours | AL16: Entegrus Powerlines Inc. - Dutton Service Area | AM16: Entegrus Powerlines Inc. - Dutton Service Area | AO16: GENERAL SERVICE 3,000 TO 4,999 KW - INTERVAL METERED | AP16: kW | AT16: Total Bill (including HST) | AW16: =AW15+AW14 -> 0 | AZ16: =AZ15+AZ14 -> 0 | BB16: =AZ16-AW16 -> 0 | BC16: =BB16/AW16 -> 
A17: GENERAL SERVICE 3,000 TO 4,999 KW - TIME OF USE | I17: Green Energy Act Plan Funding Adder | W17: RTSR_Connection_Interval_GR1000kW | Z17: Dispute Test – Commercial TT -- MC | AA17: Disconnect/Reconnect Charge – At Meter – After Hours | AL17: Entegrus Powerlines Inc. - former Chatham-Kent Hydro Service Area | AM17: Entegrus Powerlines Inc. - former Chatham-Kent Hydro Service Area | AO17: GENERAL SERVICE 3,000 TO 4,999 KW - TIME OF USE | AP17: kW | AT17: Ontario Clean Energy Benefit (OCEB) | AW17: =-0.1*AW16 -> 0 | AY17: =AV17 -> 0 | AZ17: =-0.1*AZ16 -> 0 | BB17: =AZ17-AW17 -> 0 | BC17: =BB17/AW17 -> 
A18: GENERAL SERVICE 50 TO 1,000 KW | I18: Green Energy Act Plan Funding Adder - effective April 1, 2013 until March 31, 2014 | W18: RTSR_Line_Connection | Z18: Dispute Test – Residential | AA18: Disconnect/Reconnect Charge – At Meter – During Regular Hours | AL18: Entegrus Powerlines Inc. - Newbury Service Area | AM18: Entegrus Powerlines Inc. - Newbury Service Area | AO18: GENERAL SERVICE 50 TO 1,000 KW | AP18: kW | AT18: Total Bill on TOU (including OCEB) | AW18: =AW16+AW17 -> 0 | AZ18: =AZ16+AZ17 -> 0 | BB18: =AZ18-AW18 -> 0 | BC18: =BB18/AW18 -> 
A19: GENERAL SERVICE 50 TO 1,000 KW - INTERVAL METERS | I19: Green Energy Act Plan Funding Adder - effective April 1, 2014 until March 31, 2015 | W19: RTSR_Transformer_Connection | Z19: Duplicate Invoices for previous billing | AA19: Disconnect/Reconnect Charge – At Pole – After Hours | AL19: Entegrus Powerlines Inc. - Strathroy, Mount Brydges and Parkhill Service Areas | AM19: Entegrus Powerlines Inc. - Strathroy, Mount Brydges and Parkhill Service Areas | AO19: GENERAL SERVICE 50 TO 1,000 KW - INTERVAL METERS | AP19: kW
A20: GENERAL SERVICE 50 TO 1,000 KW - NON INTERVAL METERS | I20: ICM Rate Rider (2014) - in effect until the effective date of the next cost of service rates | W20: WMSR | Z20: Easement Letter | AA20: Disconnect/Reconnect Charge – At Pole – During Regular Hours | AL20: ENWIN Utilities Ltd. | AM20: ENWIN Utilities Ltd. | AO20: GENERAL SERVICE 50 TO 1,000 KW - NON INTERVAL METERS | AP20: kW
A21: GENERAL SERVICE 50 TO 1,499 KW | I21: Low Voltage Service Charge | W21: RRRP | Z21: Income Tax Letter | AA21: Disconnect/Reconnect Charges for non payment of account - At Meter After Hours | AL21: Erie Thames Powerlines Corporation | AM21: Erie Thames Powerlines Corporation | AO21: GENERAL SERVICE 50 TO 1,499 KW | AP21: kW
A22: GENERAL SERVICE 50 TO 1,499 KW - INTERVAL METERED | I22: Low Voltage Service Rate | W22: SPC | Z22: Interval Meter Interrogation | AA22: Disconnect/Reconnect charges for non payment of account – at meter after regular hours | AL22: Espanola Regional Hydro Distribution Corporation | AM22: Espanola Regional Hydro Distribution Corporation | AO22: GENERAL SERVICE 50 TO 1,499 KW - INTERVAL METERED | AP22: kW
A23: GENERAL SERVICE 50 TO 2,499 KW | I23: Low Voltage Volumetric Rate | W23: DRC | Z23: Interval meter request change | AA23: Disconnect/Reconnect Charges for non payment of account - At Meter During Regular Hours | AL23: Essex Powerlines Corporation | AM23: Essex Powerlines Corporation | AO23: GENERAL SERVICE 50 TO 2,499 KW | AP23: kW
A24: GENERAL SERVICE 50 TO 2,999 KW | I24: LRAM Rate Rider - Effective Until April 30, 2015 | W24: SSS | Z24: Legal letter | AA24: Disconnect/Reconnect charges for non payment of account – at meter during regular hours | AL24: Festival Hydro Inc. | AM24: Festival Hydro Inc. | AO24: GENERAL SERVICE 50 TO 2,999 KW | AP24: kW
A25: GENERAL SERVICE 50 TO 2,999 KW - INTERVAL METERED | I25: Minimum Distribution Charge - per KW of maximum billing demand in the previous 11 months | W25: SFLF | Z25: Legal letter charge | AA25: Disconnect/Reconnect charges for non payment of account – at pole after regular hours | AL25: Fort Frances Power Corporation | AM25: Fort Frances Power Corporation | AO25: GENERAL SERVICE 50 TO 2,999 KW - INTERVAL METERED | AP25: kW
A26: GENERAL SERVICE 50 TO 2,999 KW - TIME OF USE | B26: January | I26: Monthly Distribution Wheeling Service Rate - Dedicated LV Line | W26: DLF_Secondary_LT_5000kW | Z26: Meter dispute charge plus Measurement Canada fees (if meter found correct) | AA26: Disconnect/Reconnect charges for non payment of account – at pole during regular hours | AL26: Greater Sudbury Hydro Inc. | AM26: Greater Sudbury Hydro Inc. | AO26: GENERAL SERVICE 50 TO 2,999 KW - TIME OF USE | AP26: kW
A27: GENERAL SERVICE 50 TO 4,999 KW | B27: February | I27: Monthly Distribution Wheeling Service Rate - Hydro One Networks | W27: DLF_Secondary_GT_5000kW | Z27: Notification charge | AA27: Disconnect/Reconnection for >300 volts - after regular hours | AL27: Grimsby Power Inc. | AM27: Grimsby Power Inc. | AO27: GENERAL SERVICE 50 TO 4,999 KW | AP27: kW
A28: GENERAL SERVICE 50 TO 4,999 KW - INTERVAL METERED | B28: March | I28: Monthly Distribution Wheeling Service Rate - Shared LV Line | W28: DLF_Primary_LT_5000kW | Z28: Pulling Post Dated Cheques | AA28: Disconnect/Reconnection for >300 volts - during regular hours | AL28: Guelph Hydro Electric Systems Inc. | AM28: Guelph Hydro Electric Systems Inc. | AO28: GENERAL SERVICE 50 TO 4,999 KW - INTERVAL METERED | AP28: kW
A29: GENERAL SERVICE 50 TO 4,999 KW - TIME OF USE | B29: April | I29: Monthly Distribution Wheeling Service Rate - Waterloo North Hydro | W29: DLF_Primary_GT_5000kW | Z29: Request for other billing information | AA29: Disposal of Concrete Poles | AL29: Haldimand County Hydro Inc. | AM29: Haldimand County Hydro Inc. | AO29: GENERAL SERVICE 50 TO 4,999 KW - TIME OF USE | AP29: kW
A30: GENERAL SERVICE 50 TO 4,999 KW (COGENERATION) | B30: May | I30: Rate Rider for Application of Tax Change - effective until April 30, 2015 | W30: TLF_Secondary_LT_5000kW | Z30: Returned cheque (plus bank charges) | AA30: Dispute Test – Commercial TT -- MC | AL30: Halton Hills Hydro Inc. | AM30: Halton Hills Hydro Inc. | AO30: GENERAL SERVICE 50 TO 4,999 KW (COGENERATION) | AP30: kW
A31: GENERAL SERVICE 50 TO 4,999 KW (FORMERLY TIME OF USE) | B31: June | I31: Rate Rider for Application of Tax Change - effective until December 31, 2014 | W31: TLF_Secondary_GT_5000kW | Z31: Returned cheque charge (plus bank charges) | AA31: Install/Remove load control device – after regular hours | AL31: Hearst Power Distribution Company Limited | AM31: Hearst Power Distribution Company Limited | AO31: GENERAL SERVICE 50 TO 4,999 KW (FORMERLY TIME OF USE) | AP31: kW
A32: GENERAL SERVICE 50 TO 499 KW | B32: July | I32: Rate Rider for Application of Tax Change (2014) - effective until April 30, 2015 | W32: TLF_Primary_LT_5000kW | Z32: Special Billing Service (aggregation) | AA32: Install/Remove load control device – during regular hours | AL32: Horizon Utilities Corporation | AM32: Horizon Utilities Corporation | AO32: GENERAL SERVICE 50 TO 499 KW | AP32: kW
A33: GENERAL SERVICE 50 TO 699 KW | B33: August | I33: Rate Rider for Application of Tax Change (per connection) - effective until April 30, 2015 | W33: TLF_Primary_GT_5000kW | Z33: Special Billing Service (sub-metering charge per meter) | AA33: Interval Meter Interrogation | AL33: Hydro 2000 Inc. | AM33: Hydro 2000 Inc. | AO33: GENERAL SERVICE 50 TO 699 KW | AP33: kW
A34: GENERAL SERVICE 50 TO 999 KW | B34: September | I34: Rate Rider for CGAAP Accounting Changes (2013) - effective until April 30, 2017 | W34: TLF_EmbeddedDistributor | Z34: Special meter reads | AA34: Interval Meter Load Management Tool Charge $/month | AL34: Hydro Hawkesbury Inc. | AM34: Hydro Hawkesbury Inc. | AO34: GENERAL SERVICE 50 TO 999 KW | AP34: kW
A35: GENERAL SERVICE 50 TO 999 KW - INTERVAL METERED | B35: October | I35: Rate Rider for Deferral/Variance Account (2012) - effective unitl April 30, 2016 | Z35: Statement of Account | AA35: Interval meter request change | AL35: Hydro One Brampton Networks Inc. | AM35: Hydro One Brampton Networks Inc. | AO35: GENERAL SERVICE 50 TO 999 KW - INTERVAL METERED | AP35: kW
A36: GENERAL SERVICE 500 TO 4,999 KW | B36: November | I36: Rate Rider for Deferral/Variance Account Disposition – effective until April 30, 2015 | Z36: Unprocessed Payment Charge (plus bank charges) | AA36: Late Payment – per annum | AL36: Hydro One Networks Inc. | AM36: Hydro One Networks Inc. | AO36: GENERAL SERVICE 500 TO 4,999 KW | AP36: kW
A37: GENERAL SERVICE 700 TO 4,999 KW | B37: December | I37: Rate Rider for Deferral/Variance Account Disposition (2012) - effective until April 30, 2016 | AA37: Late Payment – per month | AL37: Hydro Ottawa Limited | AM37: Hydro Ottawa Limited | AO37: GENERAL SERVICE 700 TO 4,999 KW | AP37: kW
A38: GENERAL SERVICE DEMAND BILLED (50 KW AND ABOVE) [GSD] | I38: Rate Rider for Deferral/Variance Account Disposition (2013) - effective until April 30, 2014 | AA38: Layout fees | AL38: Innisfil Hydro Distribution Systems Limited | AM38: Innisfil Hydro Distribution Systems Limited | AO38: GENERAL SERVICE DEMAND BILLED (50 KW AND ABOVE) [GSD] | AP38: kW
A39: GENERAL SERVICE ENERGY BILLED (LESS THAN 50 KW) [GSE-METERED] | I39: Rate Rider for Deferral/Variance Account Disposition (2014) - effective until April 28, 2016 | AA39: Meter dispute charge plus Measurement Canada fees (if meter found correct) | AL39: Kenora Hydro Electric Corporation Ltd. | AM39: Kenora Hydro Electric Corporation Ltd. | AO39: GENERAL SERVICE ENERGY BILLED (LESS THAN 50 KW) [GSE-METERED] | AP39: kWh
A40: GENERAL SERVICE ENERGY BILLED (LESS THAN TO 50 KW) [GSE-UNMETERED] | I40: Rate Rider for Deferral/Variance Account Disposition (2014) - effective until April 30, 2015 | AA40: Meter Interrogation Charge | AL40: Kingston Hydro Corporation | AM40: Kingston Hydro Corporation | AO40: GENERAL SERVICE ENERGY BILLED (LESS THAN TO 50 KW) [GSE-UNMETERED] | AP40: kWh
A41: GENERAL SERVICE EQUAL TO OR GREATER THAN 1,500 KW | I41: Rate Rider for Deferral/Variance Account Disposition (2014) - effective until December 31, 2015 | AA41: Missed Service Appointment | AL41: Kitchener-Wilmot Hydro Inc. | AM41: Kitchener-Wilmot Hydro Inc. | AO41: GENERAL SERVICE EQUAL TO OR GREATER THAN 1,500 KW | AP41: kW
A42: GENERAL SERVICE EQUAL TO OR GREATER THAN 1,500 KW - INTERVAL METERED | I42: Rate Rider for Deferral/Variance Account Disposition (2014) - effective until December 31, 2014 | AA42: Norfolk Pole Rentals – Billed | AL42: Lakefront Utilities Inc. | AM42: Lakefront Utilities Inc. | AO42: GENERAL SERVICE EQUAL TO OR GREATER THAN 1,500 KW - INTERVAL METERED | AP42: kW
A43: GENERAL SERVICE GREATER THAN 1,000 KW | I43: Rate Rider for Deferral/Variance Account Dispositon (2012) - effective until April 30, 2016 | AA43: Optional Interval/TOU Meter charge $/month | AL43: Lakeland Power Distribution Ltd. | AM43: Lakeland Power Distribution Ltd. | AO43: GENERAL SERVICE GREATER THAN 1,000 KW | AP43: kW
A44: GENERAL SERVICE GREATER THAN 50 kW - WMP | I44: Rate Rider for Disposition of Accounting Changes Under CGAAP Account 1576 - effective until April 30, 2016 | AA44: Overtime Locate | AL44: London Hydro Inc. | AM44: London Hydro Inc. | AO44: GENERAL SERVICE GREATER THAN 50 kW - WMP | AP44: kW
A45: GENERAL SERVICE INTERMEDIATE 1,000 TO 4,999 KW | I45: Rate Rider for Disposition of Deferral/Variance Accounts (2010) - effective until December 31, 2014 | AA45: Owner Requested Disconnection/Reconnection – after regular hours | AL45: Midland Power Utility Corporation | AM45: Midland Power Utility Corporation | AO45: GENERAL SERVICE INTERMEDIATE 1,000 TO 4,999 KW | AP45: kW
A46: GENERAL SERVICE INTERMEDIATE RATE CLASS 1,000 TO 4,999 KW (FORMERLY GENERAL SERVICE > 50 KW CUSTOMERS) | I46: Rate Rider for Disposition of Deferral/Variance Accounts (2011) - effective until April 30, 2015 | AA46: Owner Requested Disconnection/Reconnection – during regular hours | AL46: Milton Hydro Distribution Inc. | AM46: Milton Hydro Distribution Inc. | AO46: GENERAL SERVICE INTERMEDIATE RATE CLASS 1,000 TO 4,999 KW (FORMERLY GENERAL SERVICE > 50 KW CUSTOMERS) | AP46: kW
A47: GENERAL SERVICE INTERMEDIATE RATE CLASS 1,000 TO 4,999 KW (FORMERLY LARGE USE CUSTOMERS) | I47: Rate Rider for Disposition of Deferral/Variance Accounts (2011) - effective until April 30, 2016 | AA47: Returned cheque (plus bank charges) | AL47: Newmarket - Tay Power Distribution Ltd. | AM47: Newmarket - Tay Power Distribution Ltd. | AO47: GENERAL SERVICE INTERMEDIATE RATE CLASS 1,000 TO 4,999 KW (FORMERLY LARGE USE CUSTOMERS) | AP47: kW
A48: GENERAL SERVICE LESS THAN 50 KW | I48: Rate Rider for Disposition of Deferral/Variance Accounts (2012) - effective until April 30, 2014 | AA48: Rural system expansion / line connection fee | AL48: Niagara Peninsula Energy Inc. | AM48: Niagara Peninsula Energy Inc. | AO48: GENERAL SERVICE LESS THAN 50 KW | AP48: kWh
A49: GENERAL SERVICE LESS THAN 50 KW - SINGLE PHASE ENERGY-BILLED [G1] | I49: Rate Rider for Disposition of Deferral/Variance Accounts (2012) - effective until April 30, 2015 | AA49: Same Day Open Trench | AL49: Niagara-on-the-Lake Hydro Inc. | AM49: Niagara-on-the-Lake Hydro Inc. | AO49: GENERAL SERVICE LESS THAN 50 KW - SINGLE PHASE ENERGY-BILLED [G1] | AP49: kWh
A50: GENERAL SERVICE LESS THAN 50 KW - THREE PHASE ENERGY-BILLED [G3] | I50: Rate Rider for Disposition of Deferral/Variance Accounts (2012) - effective until April 30, 2016 | AA50: Scheduled Day Open Trench | AL50: Norfolk Power Distribution Inc. | AM50: Norfolk Power Distribution Inc. | AO50: GENERAL SERVICE LESS THAN 50 KW - THREE PHASE ENERGY-BILLED [G3] | AP50: kWh
A51: GENERAL SERVICE LESS THAN 50 KW - TRANSMISSION CLASS ENERGY-BILLED [T] | I51: Rate Rider for Disposition of Deferral/Variance Accounts (2012) - effective until August 31, 2014 | AA51: Service call – after regular hours | AL51: North Bay Hydro Distribution Limited | AM51: North Bay Hydro Distribution Limited | AO51: GENERAL SERVICE LESS THAN 50 KW - TRANSMISSION CLASS ENERGY-BILLED [T] | AP51: kWh
A52: GENERAL SERVICE LESS THAN 50 KW - URBAN ENERGY-BILLED [UG] | I52: Rate Rider for Disposition of Deferral/Variance Accounts (2012) - effective until December 31, 2015 | AA52: Service call – customer owned equipment | AL52: Northern Ontario Wires Inc. | AM52: Northern Ontario Wires Inc. | AO52: GENERAL SERVICE LESS THAN 50 KW - URBAN ENERGY-BILLED [UG] | AP52: kWh
A53: GENERAL SERVICE SINGLE PHASE - G1 | I53: Rate Rider for Disposition of Deferral/Variance Accounts (2012) - effective until December 31, 2016 Applicable only in the former service area of Clinton Power | AA53: Service Call – Customer-owned Equipment – After Regular Hours | AL53: Oakville Hydro Electricity Distribution Inc. | AM53: Oakville Hydro Electricity Distribution Inc. | AO53: GENERAL SERVICE SINGLE PHASE - G1 | AP53: kW
A54: GENERAL SERVICE THREE PHASE - G3 | I54: Rate Rider for Disposition of Deferral/Variance Accounts (2012) – effective until December 31, 2016 Applicable only in the former service area of Clinton Power | AA54: Service Call – Customer-owned Equipment – During Regular Hours | AL54: Orangeville Hydro Limited | AM54: Orangeville Hydro Limited | AO54: GENERAL SERVICE THREE PHASE - G3 | AP54: kW
A55: INTERMEDIATE USERS | I55: Rate Rider for Disposition of Deferral/Variance Accounts (2012) - effective until January 31, 2014 | AA55: Service Charge for onsite interrogation of interval meter due to customer phone line failure - required weekly until line repaired $ 6 | AL55: Orillia Power Distribution Corporation | AM55: Orillia Power Distribution Corporation | AO55: INTERMEDIATE USERS | AP55: kW
A56: INTERMEDIATE WITH SELF GENERATION | I56: Rate Rider for Disposition of Deferral/Variance Accounts (2012) - effective until June 30, 2014 | AA56: Service Layout - Commercial | AL56: Oshawa PUC Networks Inc. | AM56: Oshawa PUC Networks Inc. | AO56: INTERMEDIATE WITH SELF GENERATION | AP56: kW
A57: LARGE USE | I57: Rate Rider for Disposition of Deferral/Variance Accounts (2013) - Applicable only to Wholesale Market Participants - effective until April 30, 2015 | AA57: Service Layout - ResidentiaI | AL57: Ottawa River Power Corporation | AM57: Ottawa River Power Corporation | AO57: LARGE USE | AP57: kW
A58: LARGE USE - 3TS | I58: Rate Rider for Disposition of Deferral/Variance Accounts (2013) - effective until April 30, 2014 | AA58: Special Billing Service (sub-metering charge per meter) | AL58: Parry Sound Power Corporation | AM58: Parry Sound Power Corporation | AO58: LARGE USE - 3TS | AP58: kW
A59: LARGE USE - FORD ANNEX | I59: Rate Rider for Disposition of Deferral/Variance Accounts (2013) - effective until April 30, 2015 | AA59: Special meter reads | AL59: Peterborough Distribution Incorporated | AM59: Peterborough Distribution Incorporated | AO59: LARGE USE - FORD ANNEX | AP59: kW
A60: LARGE USE - REGULAR | I60: Rate Rider for Disposition of Deferral/Variance Accounts (2013) - effective until April 30, 2015 - not applicable to Wholesale Market Participants | AA60: Specific Charge for Access to the Power Poles - $/pole/year | AL60: PowerStream Inc. | AM60: PowerStream Inc. | AO60: LARGE USE - REGULAR | AP60: kW
A61: LARGE USE > 5000 KW | I61: Rate Rider for Disposition of Deferral/Variance Accounts (2013) - effective until April 30, 2017 | AA61: Specific Charge for Bell Canada Access to the Power Poles – per pole/year | AL61: PUC Distribution Inc. | AM61: PUC Distribution Inc. | AO61: LARGE USE > 5000 KW | AP61: kW
A62: microFIT | I62: Rate Rider for Disposition of Deferral/Variance Accounts (2013) - effective until August 31, 2014 | AA62: Switching for company maintenance – Charge based on Time and Materials | AL62: Renfrew Hydro Inc. | AM62: Renfrew Hydro Inc. | AO62: microFIT | AP62: $
A63: RESIDENTIAL | I63: Rate Rider for Disposition of Deferral/Variance Accounts (2013) - effective until December 31, 2014 | AA63: Temporary Service – Install & remove – overhead – no transformer | AL63: Rideau St. Lawrence Distribution Inc. | AM63: Rideau St. Lawrence Distribution Inc. | AO63: RESIDENTIAL | AP63: kWh
A64: RESIDENTIAL - HENSALL | I64: Rate Rider for Disposition of Deferral/Variance Accounts (2013) - effective until May 31, 2014 | AA64: Temporary Service – Install & remove – overhead – with transformer | AL64: Sioux Lookout Hydro Inc. | AM64: Sioux Lookout Hydro Inc. | AO64: RESIDENTIAL - HENSALL | AP64: kWh
A65: RESIDENTIAL - HIGH DENSITY [R1] | I65: Rate Rider for Disposition of Deferred PILs Variance Account 1562 - effective until March 31, 2016 | AA65: Temporary Service – Install & remove – underground – no transformer | AL65: St. Thomas Energy Inc. | AM65: St. Thomas Energy Inc. | AO65: RESIDENTIAL - HIGH DENSITY [R1] | AP65: kWh
A66: RESIDENTIAL - LOW DENSITY [R2] | I66: Rate Rider for Disposition of Deferred PILs Variance Account 1562 (2012) - effective until April 30, 2015 | AA66: Temporary service install & remove – overhead – no transformer | AL66: Thunder Bay Hydro Electricity Distribution Inc. | AM66: Thunder Bay Hydro Electricity Distribution Inc. | AO66: RESIDENTIAL - LOW DENSITY [R2] | AP66: kWh
A67: RESIDENTIAL - MEDIUM DENSITY [R1] | I67: Rate Rider for Disposition of Deferred PILs Variance Account 1562 (2012) - effective until April 30, 2016 | AA67: Temporary Service Install & Remove – Overhead – With Transformer | AL67: Tillsonburg Hydro Inc. | AM67: Tillsonburg Hydro Inc. | AO67: RESIDENTIAL - MEDIUM DENSITY [R1] | AP67: kWh
A68: RESIDENTIAL - NORMAL DENSITY [R2] | I68: Rate Rider for Disposition of Deferred PILs Variance Account 1562 (2nd Installment - 2012) - effective until April 30, 2016 | AA68: Temporary Service Install & Remove – Underground – No Transformer | AL68: Toronto Hydro-Electric System Limited | AM68: Toronto Hydro-Electric System Limited | AO68: RESIDENTIAL - NORMAL DENSITY [R2] | AP68: kWh
A69: RESIDENTIAL - TIME OF USE | I69: Rate Rider for Disposition of Deferred PILs Variance Account 1562 (per connection) (2012) - effective until April 30, 2015 | AA69: Temporary service installation and removal – overhead – no transformer | AL69: Veridian Connections Inc. | AM69: Veridian Connections Inc. | AO69: RESIDENTIAL - TIME OF USE | AP69: kWh
A70: RESIDENTIAL - URBAN [UR] | I70: Rate Rider for Disposition of Deferred PILs Variance Account 1562 (per connection) (2012) - effective until April 30, 2016 | AA70: Temporary service installation and removal – overhead – with transformer | AL70: Wasaga Distribution Inc. | AM70: Wasaga Distribution Inc. | AO70: RESIDENTIAL - URBAN [UR] | AP70: kWh
A71: RESIDENTIAL REGULAR | I71: Rate Rider for Disposition of Global Adjustment Sub-Account (2011) - effective until April 30, 2015 Applicable only for Non-RPP Customers | AA71: Temporary service installation and removal – underground – no transformer | AL71: Waterloo North Hydro Inc. | AM71: Waterloo North Hydro Inc. | AO71: RESIDENTIAL REGULAR | AP71: kWh
A72: RESIDENTIAL SUBURBAN | I72: Rate Rider for Disposition of Global Adjustment Sub-Account (2011) - effective until April 30, 2016 Applicable only for Non-RPP Customers | AL72: Welland Hydro-Electric System Corp. | AM72: Welland Hydro-Electric System Corp. | AO72: RESIDENTIAL SUBURBAN | AP72: kWh
A73: RESIDENTIAL SUBURBAN SEASONAL | I73: Rate Rider for Disposition of Global Adjustment Sub-Account (2012) - effective until April 30, 2014 Applicable only for Non-RPP Customers | AL73: Wellington North Power Inc. | AM73: Wellington North Power Inc. | AO73: RESIDENTIAL SUBURBAN SEASONAL | AP73: kWh
A74: RESIDENTIAL SUBURBAN YEAR ROUND | I74: Rate Rider for Disposition of Global Adjustment Sub-Account (2012) - effective until April 30, 2015 Applicable only for Non-RPP Customers | AL74: West Coast Huron Energy Inc. | AM74: West Coast Huron Energy Inc. | AO74: RESIDENTIAL SUBURBAN YEAR ROUND | AP74: kWh
A75: RESIDENTIAL URBAN | I75: Rate Rider for Disposition of Global Adjustment Sub-Account (2012) - effective until April 30, 2015 Applicatble only for Non-RPP Customers | AL75: Westario Power Inc. | AM75: Westario Power Inc. | AO75: RESIDENTIAL URBAN | AP75: kWh
A76: RESIDENTIAL URBAN YEAR-ROUND | I76: Rate Rider for Disposition of Global Adjustment Sub-Account (2012) - effective until April 30, 2016 Applicable only for Non-RPP Customers | AL76: Whitby Hydro Electric Corporation | AM76: Whitby Hydro Electric Corporation | AO76: RESIDENTIAL URBAN YEAR-ROUND | AP76: kWh
A77: SEASONAL RESIDENTIAL | I77: Rate Rider for Disposition of Global Adjustment Sub-Account (2012) - effective until January 31, 2014. Applicable only for Non-RPP Customers | AL77: Woodstock Hydro Services Inc. | AM77: Woodstock Hydro Services Inc. | AO77: SEASONAL RESIDENTIAL | AP77: kWh
A78: SEASONAL RESIDENTIAL - HIGH DENSITY [R3] | I78: Rate Rider for Disposition of Global Adjustment Sub-Account (2012) - effective until June 30, 2014 Applicable only for Non-RPP Customers | AO78: SEASONAL RESIDENTIAL - HIGH DENSITY [R3] | AP78: kWh
A79: SEASONAL RESIDENTIAL - NORMAL DENSITY [R4] | I79: Rate Rider for Disposition of Global Adjustment Sub-Account (2012) Applicable only for Non-RPP Customers - effective until August 31, 2014 | AO79: SEASONAL RESIDENTIAL - NORMAL DENSITY [R4] | AP79: kWh
A80: SENTINEL LIGHTING | I80: Rate Rider for Disposition of Global Adjustment Sub-Account (2012) Applicable only to Non-RPP Customers - effective until August 31, 2014 | AO80: SENTINEL LIGHTING | AP80: kW
A81: SMALL COMMERCIAL AND USL - PER CONNECTION | I81: Rate Rider for Disposition of Global Adjustment Sub-Account (2013) - effective until April 30, 2014 Applicable only for Non-RPP Customers | AO81: SMALL COMMERCIAL AND USL - PER CONNECTION | AP81: kWh
A82: SMALL COMMERCIAL AND USL - PER METER | I82: Rate Rider for Disposition of Global Adjustment Sub-Account (2013) - effective until April 30, 2015 Applicable only for Non-RPP Customers | AO82: SMALL COMMERCIAL AND USL - PER METER | AP82: kWh
A83: STANDARD A GENERAL SERVICE AIR ACCESS | I83: Rate Rider for Disposition of Global Adjustment Sub-Account (2013) - effective until April 30, 2015 Applicable only for Non-RPP Customers and excluding Wholesale Market Participants | AO83: STANDARD A GENERAL SERVICE AIR ACCESS | AP83: kWh
A84: STANDARD A GENERAL SERVICE ROAD/RAIL | I84: Rate Rider for Disposition of Global Adjustment Sub-Account (2013) - effective until April 30, 2017 Applicable only for Non-RPP Customers | AO84: STANDARD A GENERAL SERVICE ROAD/RAIL | AP84: kWh
A85: STANDARD A GRID CONNECTED | I85: Rate Rider For Disposition of Global Adjustment Sub-Account (2013) - effective until August 31, 2014 Applicable only for Non-RPP Customers | AO85: STANDARD A GRID CONNECTED | AP85: kWh
A86: STANDARD A RESIDENTIAL AIR ACCESS | I86: Rate Rider for Disposition of Global Adjustment Sub-Account (2013) - effective until December 31, 2014 Applicable only for Non-RPP Customers | AO86: STANDARD A RESIDENTIAL AIR ACCESS | AP86: kWh
A87: STANDARD A RESIDENTIAL ROAD/RAIL | I87: Rate Rider for Disposition of Global Adjustment Sub-Account (2013) - effective until May 31, 2014 Applicable only for Non-RPP Customers | AO87: STANDARD A RESIDENTIAL ROAD/RAIL | AP87: kWh
A88: STANDBY - GENERAL SERVICE 1,000 - 5,000 KW | I88: Rate Rider for Disposition of Global Adjustment Sub-Account (2014) - effective until December 31, 2014. Applicable only for Non-RPP - Class B Customers | AO88: STANDBY - GENERAL SERVICE 1,000 - 5,000 KW | AP88: kW
A89: STANDBY - GENERAL SERVICE 50 - 1,000 KW | I89: Rate Rider for Disposition of Global Adjustment Sub-Account (2014) - effective until December 31, 2014. Applicable only for Non-RPP Customers | AO89: STANDBY - GENERAL SERVICE 50 - 1,000 KW | AP89: kW
A90: STANDBY - LARGE USE | I90: Rate Rider for Disposition of Global Adjustment Sub-Account (2014) - effective until December 31, 2014. Applicable only for Non-RPP Customers - Class A Customers | AO90: STANDBY - LARGE USE | AP90: kW
A91: STANDBY DISTRIBUTION SERVICE | I91: Rate Rider for Disposition of Global Adjustment Sub-Account (2014) - effective until December 31, 2014. Applicable only for Non-RPP Customers - Interval Metered | AO91: STANDBY DISTRIBUTION SERVICE | AP91: kW
A92: STANDBY POWER | I92: Rate Rider for Disposition of Global Adjustment Sub-Account (2014) - effective until December 31, 2014. Applicable only for Non-RPP Customers - Non Interval Metered | AO92: STANDBY POWER | AP92: kW
A93: STANDBY POWER - APPROVED ON AN INTERIM BASIS | I93: Rate Rider for Disposition of Post Retirement Actuarial Gain - effective until March 31, 2025 | AO93: STANDBY POWER - APPROVED ON AN INTERIM BASIS | AP93: kW
A94: STANDBY POWER GENERAL SERVICE 1,500 TO 4,999 KW | I94: Rate Rider for Disposition of Residual Hisotrical Smart Meter Costs - effective until April 30, 2015 | AO94: STANDBY POWER GENERAL SERVICE 1,500 TO 4,999 KW | AP94: kW
A95: STANDBY POWER GENERAL SERVICE 50 TO 1,499 KW | I95: Rate Rider for Disposition of Residual Hisotrical Smart Meter Costs - effective until April 30, 2017 | AO95: STANDBY POWER GENERAL SERVICE 50 TO 1,499 KW | AP95: kW
A96: STANDBY POWER GENERAL SERVICE LARGE USE | I96: Rate Rider for Disposition of Residual Historical Smart Meter Costs - effective until April 30, 2014 | AO96: STANDBY POWER GENERAL SERVICE LARGE USE | AP96: kW
A97: STREET LIGHTING | I97: Rate Rider for Disposition of Residual Historical Smart Meter Costs - effective until April 30, 2016 | AO97: STREET LIGHTING | AP97: kW
A98: SUB TRANSMISSION [ST] | I98: Rate Rider for Disposition of Residual Historical Smart Meter Costs - effective until August 31, 2014 | AO98: SUB TRANSMISSION [ST] | AP98: kW
A99: UNMETERED SCATTERED LOAD | I99: Rate Rider for Disposition of Residual Historical Smart Meter Costs - effective until August 31, 2015 | AO99: UNMETERED SCATTERED LOAD | AP99: kWh
A100: URBAN GENERAL SERVICE DEMAND BILLED (50 KW AND ABOVE) [UGD] | I100: Rate Rider for Disposition of Residual Historical Smart Meter Costs - effective until December 31, 2014 | AO100: URBAN GENERAL SERVICE DEMAND BILLED (50 KW AND ABOVE) [UGD] | AP100: kW
A101: URBAN GENERAL SERVICE ENERGY BILLED (LESS THAN 50 KW) [UGE] | I101: Rate Rider for Disposition of Residual Historical Smart Meter Costs – effective until December 31, 2014 | AO101: URBAN GENERAL SERVICE ENERGY BILLED (LESS THAN 50 KW) [UGE] | AP101: kWh
A102: WESTPORT SEWAGE TREATMENT PLANT | I102: Rate Rider for Disposition of Residual Historical Smart Meter Costs - effective until December 31, 2015 | AO102: WESTPORT SEWAGE TREATMENT PLANT | AP102: kW
A103: YEAR-ROUND RESIDENTIAL - R2 | I103: Rate Rider for Disposition of Residual Historical Smart Meter Costs - effective until December 31, 2016 | AO103: YEAR-ROUND RESIDENTIAL - R2 | AP103: kWh
I104: Rate Rider for Disposition of Residual Historical Smart Meter Costs - effective until October 31, 2014
I105: Rate Rider for Disposition of Residual Historical Smart Meter Costs - effective until September 30, 2014
I106: Rate Rider for Disposition of Residual Historical Smart Meter Costs - Non-Interval Metered - effective until April 30, 2014
I107: Rate Rider for Disposition of Residual Historical Smart Meter Costs 2 - in effect until the effective date of the next cost of service-based rate order
I108: Rate Rider for Disposition of Residual Historical Smart Meter Costs 3 - in effect until the effective date of the next cost of service-based rate order
I109: Rate Rider for Disposition of Residual Incremental Historical Smart Meter Costs - effective until August 31, 2015
I110: Rate Rider for Disposition of Stranded Meter costs - effective until April 30, 2015
I111: Rate Rider for Disposition of Stranded Meter Costs - effective until April 30, 2016
I112: Rate Rider for Disposition of Stranded Meter Costs - effective until April 30, 2017
I113: Rate Rider for Global Adjustment Sub Account Disposition - effective until April 30, 2016 Applicable only for Non RPP Customers
I114: Rate Rider for Global Adjustment Sub-Account Disposition Applicable only for Non-RPP Customers - effective until April 30, 2015
I115: Rate Rider for Global Adjustment Sub-Account Disposition (2014) - effective until April 28, 2016 Applicable only for Non-RPP Customers
I116: Rate Rider for Global Adjustment Sub-Account Disposition (2014) - effective until April 30, 2015 Applicable only for Non-RPP Customers
I117: Rate Rider for Global Adjustment Sub-Account Disposition (2014) - effective until December 30, 2015 Applicable only for Non-RPP Customers
I118: Rate Rider for Global Adjustment Sub-Account Disposition (2014) - effective until December 31, 2014 Applicable only for Non-RPP Customers
I119: Rate Rider for Global Adjustment Sub-Account Disposition (2014) - effective until December 31, 2015 Applicable only for Non-RPP Customers
I120: Rate Rider for Incremental Capital - Distribution Volumetric - effective until April 30, 2016
I121: Rate Rider for Incremental Capital - Service Charge - effective until April 30, 2016
I122: Rate Rider for Incremental Capital (2012) - effective until April 30, 2015
I123: Rate Rider for Lost Revenue Adjustment Mechanism Variance Account (LRAMVA) Recovery (2012 CDM Activities) - effective until April 30, 2015
I124: Rate Rider for Recover of Residual Historical Smart meter Costs - effective until June 30, 2014
I125: Rate Rider for Recovery of CGAAP/CWIP Differential - in effect until December 31, 2016
I126: Rate Rider for Recovery of Foregone Revenue - effective until April 30, 2015
I127: Rate Rider for Recovery of Forgone Revenue - effective until April 30, 2015
I128: Rate Rider for Recovery of Forgone Revenue - effective until December 31, 2014
I129: Rate Rider for Recovery of Green Energy Act related costs - effective until December 31, 2014
I130: Rate Rider for Recovery of Incremental Capital (2013) - in effect until the effective date of the next cost of service-based rate order
I131: Rate Rider for Recovery of Incremental Capital (2013) - in effect until the effective date of the next cost of service-based rate order
I132: Rate Rider for Recovery of Incremental Capital (2013) (per connection) - in effect until the effective date of the next cost of service-based rate order
I133: Rate Rider for Recovery of Incremental Capital (2013) (per connection)- in effect until the effective date of the next cost of service-based rate order
I134: Rate Rider for Recovery of Incremental Capital Costs
I135: Rate Rider for Recovery of Incremental Capital Costs - effective until April 30, 2015
I136: Rate Rider for Recovery of Lost Revenue Adjustment Mechanism ( LRAM)/Shared Savings Mechanism (SSM) (2012) - effective until August 31, 2014
I137: Rate Rider for Recovery of Lost Revenue Adjustment Mechanism (2013) - effective until December 31, 2014
I138: Rate Rider for Recovery of Lost Revenue Adjustment Mechanism (LRAM) - effective until April 30, 2016
I139: Rate Rider for Recovery of Lost Revenue Adjustment Mechanism (LRAM) (pre-2011 CDM Activities) - effective until April 30, 2015
I140: Rate Rider for Recovery of Lost Revenue Adjustment Mechanism (LRAM) (pre-2011 CDM Activities) (2013) - effective until April 30, 2015
I141: Rate Rider for Recovery of Lost Revenue Adjustment Mechanism (LRAM)/Shared Savings
I142: Rate Rider for Recovery of Lost Revenue Adjustment Mechanism (LRAM)/Shared Savings Mechanism (SSM) - effective until December 31, 2014 and applicable in the service area excluding the former service area of Clinton Power
I143: Rate Rider for Recovery of Lost Revenue Adjustment Mechanism (LRAM)/Shared Savings Mechanism (SSM) - effective until December 31, 2014 and applicable in the service area excluding the former service areas of Clinton Power and West Perth Power
I144: Rate Rider for Recovery of Lost Revenue Adjustment Mechanism (LRAM)/Shared Savings Mechanism (SSM) - effective until December 31, 2014 and applicable only in the former service area of Clinton Power
I145: Rate Rider for Recovery of Lost Revenue Adjustment Mechanism (LRAM)/Shared Savings Mechanism (SSM) - effective until December 31, 2014 and applicable only in the former service area of West Perth Power
I146: Rate Rider for Recovery of Lost Revenue Adjustment Mechanism (LRAM)/Shared Savings Mechanism (SSM) - effective until March 31, 2016
I147: Rate Rider for Recovery of Lost Revenue Adjustment Mechanism (LRAM)/Shared Savings Mechanism (SSM) (2012) - effective until August 31, 2014
I148: Rate Rider for Recovery of Lost Revenue Adjustment Mechanism (LRAM)/Shared Savings Mechanism (SSM) Recovery - effective until April 30, 2015 | J148: =LEN(I146) -> 138
I149: Rate Rider for Recovery of Lost Revenue Adjustment Mechanism Variance Account (LRAMVA) (2014) - effective until April 30, 2015 | J149: 146
I150: Rate Rider for Recovery of Residual Historical Smart Meter Costs - effective July 1, 2012 - April 30, 2016 | J150: 147
I151: Rate Rider for Recovery of Smart Meter Incremental Revenue Requirement - effective until the date of the next cost of service-based rate order | J151: 133
I152: Rate Rider for Recovery of Smart Meter Incremental Revenue Requirement - effective until the effective date of the next cost of service-based rate order, or October 31, 2017, whichever occurs earlier | J152: 106
I153: Rate Rider for Recovery of Smart Meter Incremental Revenue Requirement - in effect until the effective date of the next cost of service-based rate order | J153: 149
I154: Rate Rider for Recovery of Smart Meter Incremental Revenue Requirement - Non-Interval Metered - in effect until the effective date of the next cost of service-based rate order
I155: Rate Rider for Recovery of Smart Meter Incremental Revenue Requirements - in effect until the effective date of the next cost of service application
I156: Rate Rider for Recovery of Smart Meter Stranded Assets - effective until April 30, 2016
I157: Rate Rider for Recovery of Storm Damage Costs - effective until August 31, 2017 | J157: =LEN(I155) -> 155
I158: Rate Rider for Recovery of Stranded Assets - effective until April 30, 2016
I159: Rate Rider for Recovery of Stranded Meter Assets - effective July 1, 2012 - April 30, 2016
I160: Rate Rider for Recovery of Stranded Meter Assets – effective until April 30, 2015
I161: Rate Rider for Recovery of Stranded Meter Assets - effective until April 30, 2016
I162: Rate Rider for Recovery of Stranded Meter Assets - effective until April 30, 2017
I163: Rate Rider for Recovery of Stranded Meter Assets - effective until August 31, 2015
I164: Rate Rider for Recovery of Stranded Meter Assets - effective until August 31, 2017
I165: Rate Rider for Recovery of Stranded Meter Assets - effective until December 31, 2014
I166: Rate Rider for Recovery of Stranded Meter Assets - effective until December 31, 2015
I167: Rate Rider for Recovery of Stranded Meter Assets - effective until June 30, 2016
I168: Rate Rider for Recovery of Stranded Meter Assets - effective until March 31, 2016
I169: Rate Rider for Recovery of Stranded Meter Assets - effective until May 31, 2014
I170: Rate Rider for Reversal of Deferral/Variance Account Disposition (2011) - effective until April 30, 2015
I171: Rate Rider for Smart Meter Disposition - effective until April 30, 2016
I172: Rate Rider for Smart Meter Incremental Revenue Requirement - in effect until the effective date of the next cost of service-based rate order
I173: Rate Rider for Smart Metering Entity Charge - effective until October 31, 2018
I174: Rate Rider for Stranded Meter Cost Recovery - effective until April 30, 2017 | J174: =LEN(I172) -> 147
I175: Rate Rider for Tax Change
I176: Rate Rider for Tax Change - effective until April 30, 2015
I177: Rate Rider for Tax Change (2014) - effective until April 30, 2015
I178: Retail Transmission Rate - Line and Transformation Connection Service Rate
I179: Retail Transmission Rate - Line and Transformation Connection Service Rate - (less than 1,000 kW)
I180: Retail Transmission Rate - Line and Transformation Connection Service Rate - Interval Metered
I181: Retail Transmission Rate - Line and Transformation Connection Service Rate - Interval Metered (1,000 to 4,999 kW)
I182: Retail Transmission Rate - Line and Transformation Connection Service Rate - Interval Metered (less than 1,000 kW)
I183: Retail Transmission Rate - Line and Transformation Connection Service Rate - Interval Metered < 1,000 kW
I184: Retail Transmission Rate - Line and Transformation Connection Service Rate - Interval Metered > 1,000 kW
I185: Retail Transmission Rate - Line and Transformation Connection Service Rate FOR ALL SERVICE AREAS EXCEPT HENSALL
I186: Retail Transmission Rate - Line Connection Service Rate
I187: Retail Transmission Rate - Network Service Rate
I188: Retail Transmission Rate - Network Service Rate - (less than 1,000 kW)
I189: Retail Transmission Rate - Network Service Rate - Interval Metered
I190: Retail Transmission Rate - Network Service Rate - Interval Metered (1,000 to 4,999 kW)
I191: Retail Transmission Rate - Network Service Rate - Interval Metered (less than 1,000 kW)
I192: Retail Transmission Rate - Network Service Rate - Interval Metered > 1,000 kW
I193: Retail Transmission Rate - Transformation Connection Service Rate
I194: Rider for Global Adjustment Sub-Account Disposition (2012) - effective until April 30, 2016 Applicable only for Non-RPP Customers
I195: Rural or Remote Electricity Rate Protection Charge (RRRP)
I196: Sentinel lights (dusk-to-dawn) connected to unmetered wires will have a flat rate monthly energy charge added to the regular customer bill. Further servicing details are available in the distributor’s Conditions of Service.
I197: Service Charge
I198: Service Charge (per connection)
I199: Service Charge (per customer)
I200: Service Charge (per light)
... 14 more rows
